﻿Authority,URI,Payment Date,Service/Directorate,Purpose of Spend,Supplier,Trans. No.,Amount £
Borough Council of Kings Lynn and West Norfolk,E07000146,01/10/2020,Enterprise Zone,Professional Fees,New Anglia Local Enterprise Ptn Ltd,21002549,"18,413.10"
Borough Council of Kings Lynn and West Norfolk,E07000146,01/10/2020,Adapt Grant,Works,Chas D Allflatt Ltd,22002570,"1,142.01"
Borough Council of Kings Lynn and West Norfolk,E07000146,01/10/2020,Mintlyn Crematorium,Repairs & Maintenance,J & J Maintenance (Holdings) Ltd,21002219,"1,047.34"
Borough Council of Kings Lynn and West Norfolk,E07000146,01/10/2020,Printing & Graphics,Konica Usage,Konica Minolta Business Solutions,21002554,"1,802.04"
Borough Council of Kings Lynn and West Norfolk,E07000146,01/10/2020,Kings Court Kings Lynn,Repairs & Maintenance,Core Technology Projects Ltd,21002544,"1,294.70"
Borough Council of Kings Lynn and West Norfolk,E07000146,01/10/2020,Balance Sheet,VAT Input - VAT Only Purchases,Newlyn PLC,22002505,690.50
Borough Council of Kings Lynn and West Norfolk,E07000146,01/10/2020,Home Improvements Agency,Agency Staff,Seven Resourcing Ltd,21002435,"1,115.85"
Borough Council of Kings Lynn and West Norfolk,E07000146,01/10/2020,Parks & Open Spaces,Tree Work/Storm Damage,Golden Tree Surgeons Ltd,21002466,880.00
Borough Council of Kings Lynn and West Norfolk,E07000146,01/10/2020,Enabler Role,Computer Equipment,CDP Soft Ltd,21002128,"1,200.00"
Borough Council of Kings Lynn and West Norfolk,E07000146,01/10/2020,Planning Policy - Dept,Computer Equipment,CDP Soft Ltd,21002128,"2,400.00"
Borough Council of Kings Lynn and West Norfolk,E07000146,01/10/2020,KC Office accom rental,Contract Security,MPD FM Ltd,21002513,"5,728.77"
Borough Council of Kings Lynn and West Norfolk,E07000146,01/10/2020,Lily Phase 4,Lily Advisor Payments,Family Action,21002495,"1,695.00"
Borough Council of Kings Lynn and West Norfolk,E07000146,01/10/2020,Lily Phase 4,Lily Advisor Payments,West Norfolk Carers Association,21002534,"1,435.00"
Borough Council of Kings Lynn and West Norfolk,E07000146,01/10/2020,Adapt Grant,Works,Chas D Allflatt Ltd,22002489,"4,284.05"
Borough Council of Kings Lynn and West Norfolk,E07000146,01/10/2020,Adapt Grant,Works,Chas D Allflatt Ltd,22002495,"8,557.36"
Borough Council of Kings Lynn and West Norfolk,E07000146,01/10/2020,Adapt Grant,Works,Chas D Allflatt Ltd,21002550,"4,057.45"
Borough Council of Kings Lynn and West Norfolk,E07000146,01/10/2020,Adapt Grant,Works,Chas D Allflatt Ltd,21002499,"4,083.75"
Borough Council of Kings Lynn and West Norfolk,E07000146,01/10/2020,Grounds,Repairs & Maintenance,Collier Turf Care Ltd,22002546,"1,113.00"
Borough Council of Kings Lynn and West Norfolk,E07000146,01/10/2020,Grounds,Tools And Equipment,Collier Turf Care Ltd,22002547,749.59
Borough Council of Kings Lynn and West Norfolk,E07000146,01/10/2020,Grounds,Materials,Collier Turf Care Ltd,22002547,"4,903.76"
Borough Council of Kings Lynn and West Norfolk,E07000146,01/10/2020,Grounds,Materials,Collier Turf Care Ltd,22002547,"1,408.03"
Borough Council of Kings Lynn and West Norfolk,E07000146,01/10/2020,"St Edmunds, D'ham Mkt",Repairs & Maintenance,CGM Group (East Anglia) Ltd,21002475,490.00
Borough Council of Kings Lynn and West Norfolk,E07000146,01/10/2020,Adapt Grant,Works,Gaswise Services Ltd,22002573,"1,735.06"
Borough Council of Kings Lynn and West Norfolk,E07000146,01/10/2020,Adapt Grant,Works,Gaswise Services Ltd,22002574,"2,444.97"
Borough Council of Kings Lynn and West Norfolk,E07000146,01/10/2020,General Property,Repairs & Maintenance,KJN Landscapes,21002413,"1,000.00"
Borough Council of Kings Lynn and West Norfolk,E07000146,01/10/2020,Future High Streets Fund,Professional Fees,Norfolk County Council,21002407,"10,000.00"
Borough Council of Kings Lynn and West Norfolk,E07000146,01/10/2020,Parkway - Gaywood,External Fees/Consultancy,Norfolk County Council,21002343,"20,000.00"
Borough Council of Kings Lynn and West Norfolk,E07000146,01/10/2020,Head of Legal Services,External Legal fees,Norfolk County Council,22002502,754.80
Borough Council of Kings Lynn and West Norfolk,E07000146,01/10/2020,Postage Services K Court,Repairs & Maintenance,Pitney Bowes Ltd,22002508,"1,089.65"
Borough Council of Kings Lynn and West Norfolk,E07000146,01/10/2020,Postage Services K Court,Repairs & Maintenance,Pitney Bowes Ltd,22002509,"1,139.60"
Borough Council of Kings Lynn and West Norfolk,E07000146,01/10/2020,Postage Services K Court,Postages,Postage By Phone,22002510,"5,001.83"
Borough Council of Kings Lynn and West Norfolk,E07000146,01/10/2020,Postage Services K Court,Postages,Postage By Phone,22002510,11.00
Borough Council of Kings Lynn and West Norfolk,E07000146,01/10/2020,Custom House & Tics,Postages,Royal Mail Group Ltd,22002583,41.21
Borough Council of Kings Lynn and West Norfolk,E07000146,01/10/2020,Financial Services,Postages,Royal Mail Group Ltd,22002583,"1,151.11"
Borough Council of Kings Lynn and West Norfolk,E07000146,01/10/2020,Benefit Administration,Postages,Royal Mail Group Ltd,22002583,609.74
Borough Council of Kings Lynn and West Norfolk,E07000146,01/10/2020,Cost of Collection - CTax,Postages,Royal Mail Group Ltd,22002583,"1,252.57"
Borough Council of Kings Lynn and West Norfolk,E07000146,01/10/2020,Kings Lynn Bid,Postages,Royal Mail Group Ltd,22002583,0.86
Borough Council of Kings Lynn and West Norfolk,E07000146,01/10/2020,Postage Services K Court,Postages,Royal Mail Group Ltd,22002584,713.95
Borough Council of Kings Lynn and West Norfolk,E07000146,01/10/2020,Adapt Grant,Works,Closomat Ltd,21002340,"4,305.00"
Borough Council of Kings Lynn and West Norfolk,E07000146,01/10/2020,Neighbourhood Teams,Clothing/Uniforms,V & J Knitwear Ltd,22002518,874.30
Borough Council of Kings Lynn and West Norfolk,E07000146,01/10/2020,GM Central Area,Clothing/Uniforms,V & J Knitwear Ltd,22002518,686.95
Borough Council of Kings Lynn and West Norfolk,E07000146,01/10/2020,Grounds,Clothing/Uniforms,V & J Knitwear Ltd,22002518,124.90
Borough Council of Kings Lynn and West Norfolk,E07000146,01/10/2020,Public Cleansing,Tools And Equipment,V & J Knitwear Ltd,22002533,499.60
Borough Council of Kings Lynn and West Norfolk,E07000146,01/10/2020,Printing & Graphics,Materials,Antalis Ltd,21002118,441.18
Borough Council of Kings Lynn and West Norfolk,E07000146,01/10/2020,NNDC Carpark Operation,Broadband Charge,Claranet Ltd,21002480,131.63
Borough Council of Kings Lynn and West Norfolk,E07000146,01/10/2020,ICT,Broadband Charge,Claranet Ltd,21002480,44.89
Borough Council of Kings Lynn and West Norfolk,E07000146,01/10/2020,South Lynn Community Centre,Broadband Charge,Claranet Ltd,21002480,89.78
Borough Council of Kings Lynn and West Norfolk,E07000146,01/10/2020,Benefit Administration,Broadband Charge,Claranet Ltd,21002480,268.35
Borough Council of Kings Lynn and West Norfolk,E07000146,01/10/2020,Air Quality,Broadband Charge,Claranet Ltd,21002480,128.72
Borough Council of Kings Lynn and West Norfolk,E07000146,01/10/2020,Radio Phones,Communications,Claranet Ltd,21002480,62.95
Borough Council of Kings Lynn and West Norfolk,E07000146,01/10/2020,Decrim - Operational,Miscellaneous,Claranet Ltd,21002480,166.30
Borough Council of Kings Lynn and West Norfolk,E07000146,01/10/2020,CCTV,Broadband Charge,Claranet Ltd,21002480,64.36
Borough Council of Kings Lynn and West Norfolk,E07000146,01/10/2020,ICT,Broadband Charge,Claranet Ltd,21002480,64.36
Borough Council of Kings Lynn and West Norfolk,E07000146,01/10/2020,Kings Lynn Bus Station,Broadband Charge,Claranet Ltd,21002480,64.36
Borough Council of Kings Lynn and West Norfolk,E07000146,01/10/2020,Public Cleansing,Contract Repairs,Bucher Muncipal Ltd,22002378,972.40
Borough Council of Kings Lynn and West Norfolk,E07000146,01/10/2020,Public Cleansing,Contract Repairs,Bucher Muncipal Ltd,22002379,467.22
Borough Council of Kings Lynn and West Norfolk,E07000146,01/10/2020,Adapt Grant,Works,Ely Building & Maintenance Services Ltd,22002572,"4,433.87"
Borough Council of Kings Lynn and West Norfolk,E07000146,01/10/2020,Printing & Graphics,Materials,Premier Paper Group Ltd,21002517,918.81
Borough Council of Kings Lynn and West Norfolk,E07000146,01/10/2020,Valentine Road Hunstanton,Repairs & Maintenance,M English Security Limited,21002272,650.00
Borough Council of Kings Lynn and West Norfolk,E07000146,01/10/2020,Heacham Workshops,Repairs & Maintenance,M English Security Limited,21002273,512.99
Borough Council of Kings Lynn and West Norfolk,E07000146,01/10/2020,"L/Sport Toilet (Hky,Ten)",Works,AMR Electrical Services Ltd,21002467,"54,916.46"
Borough Council of Kings Lynn and West Norfolk,E07000146,01/10/2020,Public Cleansing,Cleaning Material & Equip,Graffiti Removal Ltd,21002139,"1,319.10"
Borough Council of Kings Lynn and West Norfolk,E07000146,01/10/2020,Balance Sheet,VAT Input - VAT Only Purchases,Weightmans LLP,22002538,840.36
Borough Council of Kings Lynn and West Norfolk,E07000146,01/10/2020,Adapt Grant,Works,T M Browne Ltd,22002575,"1,000.00"
Borough Council of Kings Lynn and West Norfolk,E07000146,01/10/2020,St James General Account,Gas,Corona Energy Retail 4 Ltd,22002550,934.74
Borough Council of Kings Lynn and West Norfolk,E07000146,01/10/2020,Downham MSports Centre,Gas,Corona Energy Retail 4 Ltd,22002552,"1,209.00"
Borough Council of Kings Lynn and West Norfolk,E07000146,01/10/2020,Kings Court Kings Lynn,Covid 19,Ken Booth & Co Ltd,22002499,931.36
Borough Council of Kings Lynn and West Norfolk,E07000146,01/10/2020,Corporate Communitcations,Advertising & Marketing,KL Publications Ltd,21002506,576.00
Borough Council of Kings Lynn and West Norfolk,E07000146,01/10/2020,Kings Lynn Bid,Agency,Kings Lynn BID Ltd,22002500,"97,763.00"
Borough Council of Kings Lynn and West Norfolk,E07000146,01/10/2020,Kings Lynn Bid,Professional Fees,Kings Lynn BID Ltd,22002500,"-7,047.00"
Borough Council of Kings Lynn and West Norfolk,E07000146,01/10/2020,Kings Lynn Bid,Postages,Kings Lynn BID Ltd,22002500,-810.00
Borough Council of Kings Lynn and West Norfolk,E07000146,01/10/2020,Kings Lynn Bid,Court Costs,Kings Lynn BID Ltd,22002500,-150.00
Borough Council of Kings Lynn and West Norfolk,E07000146,01/10/2020,Downham MSports Centre,Rchg Maint (Fr AML A910),Alive West Norfolk,22002493,"3,559.59"
Borough Council of Kings Lynn and West Norfolk,E07000146,01/10/2020,Lynnsport General Account,Rchg Maint (Fr AML A910),Alive West Norfolk,22002493,"21,298.00"
Borough Council of Kings Lynn and West Norfolk,E07000146,01/10/2020,Oasis General Account,Rchg Maint (Fr AML A910),Alive West Norfolk,22002493,"8,584.66"
Borough Council of Kings Lynn and West Norfolk,E07000146,01/10/2020,St James General Account,Rchg Maint (Fr AML A910),Alive West Norfolk,22002493,"4,284.49"
Borough Council of Kings Lynn and West Norfolk,E07000146,01/10/2020,Corn Exchange,Rchg Maint (Fr AML A910),Alive West Norfolk,22002493,"7,777.46"
Borough Council of Kings Lynn and West Norfolk,E07000146,01/10/2020,Lily Phase 4,Lily Advisor Payments,Norfolk and Waveney Mind,21002514,"3,805.00"
Borough Council of Kings Lynn and West Norfolk,E07000146,01/10/2020,Lily Phase 4,Lily Advisor Payments,Norfolk and Waveney Mind,21002515,"1,955.00"
Borough Council of Kings Lynn and West Norfolk,E07000146,01/10/2020,KL Innovation Centre,Repairs & Maintenance,Lucid Systems Ltd,21002555,499.80
Borough Council of Kings Lynn and West Norfolk,E07000146,01/10/2020,ICT,Computer Software Maint,Insight Direct,21002270,"1,865.00"
Borough Council of Kings Lynn and West Norfolk,E07000146,01/10/2020,Adapt Grant,Works,Fenland Garage Doors Ltd,21002551,899.00
Borough Council of Kings Lynn and West Norfolk,E07000146,01/10/2020,ICT,Computer Software Maint,MarXtar Ltd,21002186,"3,752.24"
Borough Council of Kings Lynn and West Norfolk,E07000146,01/10/2020,Balance Sheet,VAT Input - VAT Only Purchases,BC Legal Ltd,22002542,522.00
Borough Council of Kings Lynn and West Norfolk,E07000146,01/10/2020,Priory Road D Market,Repairs & Maintenance,ADT Fire and Security Plc,21002528,672.90
Borough Council of Kings Lynn and West Norfolk,E07000146,01/10/2020,Public conveniences,Sewerage/Cesspool Empty,BACO-Compak (Norfolk) Ltd,22002540,"3,328.75"
Borough Council of Kings Lynn and West Norfolk,E07000146,05/10/2020,Adapt Grant,Works,Chas D Allflatt Ltd,21002609,"3,278.18"
Borough Council of Kings Lynn and West Norfolk,E07000146,05/10/2020,Town Hall Kings Lynn,Repairs & Maintenance,E Akers,21002608,347.24
Borough Council of Kings Lynn and West Norfolk,E07000146,05/10/2020,Stories of Lynn,Repairs & Maintenance,E Akers,21002608,347.23
Borough Council of Kings Lynn and West Norfolk,E07000146,05/10/2020,Kings Court Kings Lynn,Covid 19,Kings Lynn Glass & Trimming Ltd,21002479,"1,180.00"
Borough Council of Kings Lynn and West Norfolk,E07000146,05/10/2020,Corn Exchange Cinema,Works,Norfolk County Council,22002610,638.58
Borough Council of Kings Lynn and West Norfolk,E07000146,05/10/2020,Custom House & Tics,Postages,Royal Mail Group Ltd,22002608,77.52
Borough Council of Kings Lynn and West Norfolk,E07000146,05/10/2020,Financial Services,Postages,Royal Mail Group Ltd,22002608,157.60
Borough Council of Kings Lynn and West Norfolk,E07000146,05/10/2020,Benefit Administration,Postages,Royal Mail Group Ltd,22002608,604.15
Borough Council of Kings Lynn and West Norfolk,E07000146,05/10/2020,Cost of Collection - CTax,Postages,Royal Mail Group Ltd,22002608,807.78
Borough Council of Kings Lynn and West Norfolk,E07000146,05/10/2020,Kings Lynn Bid,Postages,Royal Mail Group Ltd,22002608,2.58
Borough Council of Kings Lynn and West Norfolk,E07000146,05/10/2020,Adapt Grant,Works,Closomat Ltd,22002438,"4,305.00"
Borough Council of Kings Lynn and West Norfolk,E07000146,05/10/2020,Rough Sleeper Fund,Covid 19,The Purfleet Trust,21002594,"2,772.00"
Borough Council of Kings Lynn and West Norfolk,E07000146,05/10/2020,Public Cleansing,Staff Welfare,Cavell & Lind Ltd,21002605,984.00
Borough Council of Kings Lynn and West Norfolk,E07000146,05/10/2020,Play Areas,Repairs & Maintenance,Able Engineering Ltd,21002606,"1,200.00"
Borough Council of Kings Lynn and West Norfolk,E07000146,05/10/2020,Radios,Radio / Airwave,Direct Communications Radio Services Ltd,21002184,565.00
Borough Council of Kings Lynn and West Norfolk,E07000146,05/10/2020,Cost of Collection - NDR,Professional Fees,Civica UK Ltd,21002543,"1,300.00"
Borough Council of Kings Lynn and West Norfolk,E07000146,05/10/2020,ICT,Communications,Softcat PLC,21002522,"7,717.62"
Borough Council of Kings Lynn and West Norfolk,E07000146,05/10/2020,Reopening High Street,Professional Fees,Engaging People Company,21002418,"1,925.00"
Borough Council of Kings Lynn and West Norfolk,E07000146,05/10/2020,Reopening High Street,Professional Fees,Engaging People Company,21002419,"1,252.60"
Borough Council of Kings Lynn and West Norfolk,E07000146,05/10/2020,Leisure Management Costs,Agency Payments Received,Alive West Norfolk,22002595,"13,154.57"
Borough Council of Kings Lynn and West Norfolk,E07000146,05/10/2020,Leisure Management Costs,Agency Payments Received,Alive West Norfolk,22002595,-100.55
Borough Council of Kings Lynn and West Norfolk,E07000146,05/10/2020,Rough Sleeper Fund,Covid 19,Excaliber Security Services Ltd,21002604,"2,520.00"
Borough Council of Kings Lynn and West Norfolk,E07000146,05/10/2020,Sth Quay Sommerfield & Thomas CRF,Professional Fees,Templeman Associates Ltd,21002593,"3,440.00"
Borough Council of Kings Lynn and West Norfolk,E07000146,05/10/2020,Printing&Copying-Floor Copiers,Other Machine Lease,Capita Business Services Ltd,21002327,"2,005.75"
Borough Council of Kings Lynn and West Norfolk,E07000146,05/10/2020,Open Cemeteries,Repairs & Maintenance,RAE Rudd Ltd,21002542,450.00
Borough Council of Kings Lynn and West Norfolk,E07000146,05/10/2020,Open Cemeteries,Repairs & Maintenance,RAE Rudd Ltd,21002542,"4,795.00"
Borough Council of Kings Lynn and West Norfolk,E07000146,05/10/2020,Training Holding Account,Training,The Hub Events Ltd,21002574,"1,200.00"
Borough Council of Kings Lynn and West Norfolk,E07000146,05/10/2020,Community Projects CRS,Service Level Agreements,Festival Too,21002496,"9,877.50"
Borough Council of Kings Lynn and West Norfolk,E07000146,06/10/2020,westnorfolkwins,Small Projects,The Bridge for Heroes,22002664,"1,000.00"
Borough Council of Kings Lynn and West Norfolk,E07000146,06/10/2020,Rough Sleeper Fund,Covid 19,Calder Conferences Ltd,22002674,"32,777.50"
Borough Council of Kings Lynn and West Norfolk,E07000146,07/10/2020,Rough Sleeper Fund,Covid 19,Calder Conferences Ltd,22002694,"32,778.00"
Borough Council of Kings Lynn and West Norfolk,E07000146,07/10/2020,Leisure Management Costs,Income,Alive West Norfolk,22002695,"148,894.80"
Borough Council of Kings Lynn and West Norfolk,E07000146,07/10/2020,KL Arts Centre,Rchg Maint (Fr AML A910),Alive West Norfolk,22002695,"3,405.14"
Borough Council of Kings Lynn and West Norfolk,E07000146,07/10/2020,DuttonSports Pavillion,Rchg Maint (Fr AML A910),Alive West Norfolk,22002695,"3,031.50"
Borough Council of Kings Lynn and West Norfolk,E07000146,07/10/2020,Corn Exchange,Rchg Maint (Fr AML A910),Alive West Norfolk,22002695,"1,375.58"
Borough Council of Kings Lynn and West Norfolk,E07000146,07/10/2020,Lynnsport General Account,Rchg Maint (Fr AML A910),Alive West Norfolk,22002695,"11,784.24"
Borough Council of Kings Lynn and West Norfolk,E07000146,07/10/2020,Leisure Management Costs,Rchg Maint (Fr AML A910),Alive West Norfolk,22002695,0.33
Borough Council of Kings Lynn and West Norfolk,E07000146,07/10/2020,Downham MSports Centre,Rchg Maint (Fr AML A910),Alive West Norfolk,22002695,"1,956.95"
Borough Council of Kings Lynn and West Norfolk,E07000146,07/10/2020,Oasis General Account,Rchg Maint (Fr AML A910),Alive West Norfolk,22002695,79.59
Borough Council of Kings Lynn and West Norfolk,E07000146,07/10/2020,St James General Account,Rchg Maint (Fr AML A910),Alive West Norfolk,22002695,"6,433.16"
Borough Council of Kings Lynn and West Norfolk,E07000146,07/10/2020,South Lynn Community Centre,Rchg Maint (Fr AML A910),Alive West Norfolk,22002695,"3,163.63"
Borough Council of Kings Lynn and West Norfolk,E07000146,07/10/2020,Leisure Management Costs,Support Costs LAC Exp,Alive West Norfolk,22002695,"2,340.06"
Borough Council of Kings Lynn and West Norfolk,E07000146,07/10/2020,Financial Services,Agency Staff,Alive West Norfolk,22002695,"7,884.90"
Borough Council of Kings Lynn and West Norfolk,E07000146,07/10/2020,Play Areas,Covid 19,Junipero Ltd,22002696,"4,160.00"
Borough Council of Kings Lynn and West Norfolk,E07000146,07/10/2020,Play Areas,Covid 19,Anderson Electrical Trade Ltd,22002697,"3,204.00"
Borough Council of Kings Lynn and West Norfolk,E07000146,07/10/2020,Town Centre Manager,Covid 19,Evo Lifestyle Products,22002698,"3,888.75"
Borough Council of Kings Lynn and West Norfolk,E07000146,08/10/2020,Careline,Purchased For Resale,Supra UK Ltd T/A The Key Safe Company,21001638,"1,698.00"
Borough Council of Kings Lynn and West Norfolk,E07000146,08/10/2020,One Vu Project,Computer Software Maint,IEG4 Ltd,21001879,"5,000.00"
Borough Council of Kings Lynn and West Norfolk,E07000146,08/10/2020,Hunstanton Bus Station & NCC Library,Contractor Works,Lovell Partnerships Ltd,22002639,"6,163.65"
Borough Council of Kings Lynn and West Norfolk,E07000146,08/10/2020,Hunstanton Bus Station & NCC Library,Contractor Works,Lovell Partnerships Ltd,22002640,"5,556.00"
Borough Council of Kings Lynn and West Norfolk,E07000146,08/10/2020,Hunstanton Southend Road,Contractor Works,Lovell Partnerships Ltd,22002641,"3,105.00"
Borough Council of Kings Lynn and West Norfolk,E07000146,08/10/2020,Lynnsport 1,Contractor Works,Lovell Partnerships Ltd,22002642,913.50
Borough Council of Kings Lynn and West Norfolk,E07000146,08/10/2020,Lynnsport 1,Contractor Works,Lovell Partnerships Ltd,22002643,"10,504.00"
Borough Council of Kings Lynn and West Norfolk,E07000146,08/10/2020,Lynnsport 3,Contractor Works,Lovell Partnerships Ltd,22002644,"34,003.03"
Borough Council of Kings Lynn and West Norfolk,E07000146,08/10/2020,Lynnsport 3,Contractor Works,Lovell Partnerships Ltd,22002645,"393,008.53"
Borough Council of Kings Lynn and West Norfolk,E07000146,08/10/2020,Lynnsport 4 /5,Contractor Works,Lovell Partnerships Ltd,22002646,"1,678.32"
Borough Council of Kings Lynn and West Norfolk,E07000146,08/10/2020,NORA Phase 4,Contractor Works,Lovell Partnerships Ltd,22002647,"6,431.00"
Borough Council of Kings Lynn and West Norfolk,E07000146,08/10/2020,NORA Phase 3,External Fees/Consultancy,William H Brown,21002647,"1,750.00"
Borough Council of Kings Lynn and West Norfolk,E07000146,08/10/2020,Sail the Wash - Sutton Br,Works,Drake Towage Ltd,21002656,"35,457.05"
Borough Council of Kings Lynn and West Norfolk,E07000146,08/10/2020,Sail the Wash - KL,Works,Drake Towage Ltd,21002656,"47,846.02"
Borough Council of Kings Lynn and West Norfolk,E07000146,08/10/2020,Sail the Wash - Sutton Br,Works,Drake Towage Ltd,21002657,"6,481.84"
Borough Council of Kings Lynn and West Norfolk,E07000146,08/10/2020,Sail the Wash - KL,Works,Drake Towage Ltd,21002657,"8,746.66"
Borough Council of Kings Lynn and West Norfolk,E07000146,08/10/2020,Sports Grounds North,Repairs & Maintenance,Penty Contractors Ltd,21002662,500.00
Borough Council of Kings Lynn and West Norfolk,E07000146,08/10/2020,Resort Seafront,Repairs & Maintenance,Penty Contractors Ltd,21002667,480.00
Borough Council of Kings Lynn and West Norfolk,E07000146,08/10/2020,Parkway - Gaywood,Contractor Works,Lovell Partnerships Ltd,22002648,"36,596.00"
Borough Council of Kings Lynn and West Norfolk,E07000146,08/10/2020,Salters Road,Contractor Works,Lovell Partnerships Ltd,22002649,"8,891.00"
Borough Council of Kings Lynn and West Norfolk,E07000146,08/10/2020,Salters Road,Contractor Works,Lovell Partnerships Ltd,22002650,"10,307.00"
Borough Council of Kings Lynn and West Norfolk,E07000146,08/10/2020,Adapt Grant,Works,Chas D Allflatt Ltd,22002651,980.15
Borough Council of Kings Lynn and West Norfolk,E07000146,08/10/2020,Replacement Financial Ledger,Computer Equip (Software),Embridge Consulting (UK) Ltd,22002655,"4,133.47"
Borough Council of Kings Lynn and West Norfolk,E07000146,08/10/2020,Balance Sheet,VAT Input - VAT Only Purchases,Newlyn PLC,22002659,"1,640.13"
Borough Council of Kings Lynn and West Norfolk,E07000146,08/10/2020,Balance Sheet,VAT Input - VAT Only Purchases,Newlyn PLC,22002660,"2,321.55"
Borough Council of Kings Lynn and West Norfolk,E07000146,08/10/2020,Crematorium Trading Account,Book Of Remembrance Costs,F G Marshall Ltd,21002218,688.56
Borough Council of Kings Lynn and West Norfolk,E07000146,08/10/2020,Refuse - Black Bins,Equipment/Materials,MGB Plastics,21002323,"4,920.00"
Borough Council of Kings Lynn and West Norfolk,E07000146,08/10/2020,Green Bins/Recycling,Equipment/Materials,MGB Plastics,21002323,"4,920.00"
Borough Council of Kings Lynn and West Norfolk,E07000146,08/10/2020,Brown Bins/Compost,Equipment/Materials,MGB Plastics,21002323,"9,660.00"
Borough Council of Kings Lynn and West Norfolk,E07000146,08/10/2020,ICT,Communications,Adept Technology Group Plc,21002378,"4,686.87"
Borough Council of Kings Lynn and West Norfolk,E07000146,08/10/2020,Corporate,Stationery & Office,Adept Technology Group Plc,21002378,931.92
Borough Council of Kings Lynn and West Norfolk,E07000146,08/10/2020,ICT,Recoverable Fees,Adept Technology Group Plc,21002378,186.17
Borough Council of Kings Lynn and West Norfolk,E07000146,08/10/2020,Balance Sheet,Rechargeable Works Insurance,Adept Technology Group Plc,21002378,197.58
Borough Council of Kings Lynn and West Norfolk,E07000146,08/10/2020,ICT,Telephones,Adept Technology Group Plc,21002379,"5,270.96"
Borough Council of Kings Lynn and West Norfolk,E07000146,08/10/2020,Rough Sleeper Fund,Covid 19,Excaliber Security Services Ltd,21002675,"2,520.00"
Borough Council of Kings Lynn and West Norfolk,E07000146,08/10/2020,Parking Operations - Brgh,Tools And Equipment,Mobius Networks Ltd,21002679,705.30
Borough Council of Kings Lynn and West Norfolk,E07000146,08/10/2020,Domestic Refuse,Waste Processing Cost,Norse Environmental Services,21002680,"39,230.33"
Borough Council of Kings Lynn and West Norfolk,E07000146,08/10/2020,Domestic Refuse,Waste Processing Cost,Norse Environmental Services,21002681,"32,617.75"
Borough Council of Kings Lynn and West Norfolk,E07000146,08/10/2020,Printing & Graphics,Materials,Premier Paper Group Ltd,21002682,420.71
Borough Council of Kings Lynn and West Norfolk,E07000146,08/10/2020,Community Projects,Service Level Agreements,West Norfolk Befriending,21002688,"1,050.00"
Borough Council of Kings Lynn and West Norfolk,E07000146,08/10/2020,Mintlyn Crematorium,Repairs & Maintenance,CGM Group (East Anglia) Ltd,21002689,455.00
Borough Council of Kings Lynn and West Norfolk,E07000146,08/10/2020,Lynnsport 4 /5,Works,Norfolk County Council,21002691,"8,354.98"
Borough Council of Kings Lynn and West Norfolk,E07000146,08/10/2020,"St Edmunds, D'ham Mkt",Repairs & Maintenance,CGM Group (East Anglia) Ltd,21002476,490.00
Borough Council of Kings Lynn and West Norfolk,E07000146,08/10/2020,Adapt Grant,Works,Chas D Allflatt Ltd,21002498,"4,466.63"
Borough Council of Kings Lynn and West Norfolk,E07000146,08/10/2020,Local Land Charges,Agency,Norfolk County Council,22002628,"6,895.98"
Borough Council of Kings Lynn and West Norfolk,E07000146,08/10/2020,Replacement Financial Ledger,Computer Equip (Software),Embridge Consulting (UK) Ltd,22002629,850.00
Borough Council of Kings Lynn and West Norfolk,E07000146,08/10/2020,Parkway - Gaywood,Works,CGM Group (East Anglia) Ltd,22002630,"1,083.33"
Borough Council of Kings Lynn and West Norfolk,E07000146,08/10/2020,Parks & Open Spaces,Tree Work/Storm Damage,Golden Tree Surgeons Ltd,22002632,975.00
Borough Council of Kings Lynn and West Norfolk,E07000146,08/10/2020,"St Edmunds, D'ham Mkt",Repairs & Maintenance,Roderick Shelton Ltd,21002616,"2,125.00"
Borough Council of Kings Lynn and West Norfolk,E07000146,08/10/2020,Corporate Communitcations,Covid 19,Engaging People Company,21002623,"1,100.00"
Borough Council of Kings Lynn and West Norfolk,E07000146,08/10/2020,Domestic Refuse,Dayworks and Addnl Works,Kier Services Environmental,21002632,"5,993.20"
Borough Council of Kings Lynn and West Norfolk,E07000146,08/10/2020,Parkway - Gaywood,Works,Geotechnics Ltd,21002636,474.36
Borough Council of Kings Lynn and West Norfolk,E07000146,08/10/2020,Parkway - Gaywood,Works,Geotechnics Ltd,21002637,"3,779.28"
Borough Council of Kings Lynn and West Norfolk,E07000146,08/10/2020,Chapel Street,Professional Fees,Feilden & Mawson LLP1,21002639,"6,510.14"
Borough Council of Kings Lynn and West Norfolk,E07000146,08/10/2020,General Property,Repairs & Maintenance,Golden Tree Surgeons Ltd,22002635,"1,900.00"
Borough Council of Kings Lynn and West Norfolk,E07000146,08/10/2020,NORA Phase 3,Contractor Works,Lovell Partnerships Ltd,22002636,"10,735.71"
Borough Council of Kings Lynn and West Norfolk,E07000146,08/10/2020,NORA Phase 3,Contractor Works,Lovell Partnerships Ltd,22002636,795.00
Borough Council of Kings Lynn and West Norfolk,E07000146,08/10/2020,NORA Phase 4,Contractor Works,Lovell Partnerships Ltd,22002637,"24,466.96"
Borough Council of Kings Lynn and West Norfolk,E07000146,08/10/2020,Parkway - Gaywood,Contractor Works,Lovell Partnerships Ltd,22002638,"13,000.00"
Borough Council of Kings Lynn and West Norfolk,E07000146,08/10/2020,Flitcham Workshops,Rent,Sandringham Estate,22002662,"3,500.30"
Borough Council of Kings Lynn and West Norfolk,E07000146,08/10/2020,Property Services,Rent,Le Strange Estate,22002663,"1,350.00"
Borough Council of Kings Lynn and West Norfolk,E07000146,08/10/2020,ICT,Computer Software Maint,Softcat PLC,21002521,"1,774.50"
Borough Council of Kings Lynn and West Norfolk,E07000146,08/10/2020,Food Hygiene/H&S Sals/Sup,Recruitment,TMP (UK) Ltd,21002536,"1,235.08"
Borough Council of Kings Lynn and West Norfolk,E07000146,08/10/2020,Adapt Grant,Works,Stannah Lift Services Ltd,21002537,548.26
Borough Council of Kings Lynn and West Norfolk,E07000146,08/10/2020,Adapt Grant,Works,Chas D Allflatt Ltd,21002548,"4,847.15"
Borough Council of Kings Lynn and West Norfolk,E07000146,08/10/2020,Lynnsport 4 /5,Works,E-ON,21002560,607.03
Borough Council of Kings Lynn and West Norfolk,E07000146,08/10/2020,Lynnsport 4 /5,Works,E-ON,21002560,25.42
Borough Council of Kings Lynn and West Norfolk,E07000146,12/10/2020,Leisure & Tourism Grants,Grants,Stanton Farms Ltd,22002719,600.00
Borough Council of Kings Lynn and West Norfolk,E07000146,12/10/2020,Kings Court Kings Lynn,Confectionery - Supplies,H2O Vend Ltd,21002709,494.00
Borough Council of Kings Lynn and West Norfolk,E07000146,12/10/2020,Corn Exchange Cinema,Works,Cinema Next UK Ltd,22002688,"72,360.90"
Borough Council of Kings Lynn and West Norfolk,E07000146,12/10/2020,Head of Legal Services,External Legal fees,North Norfolk District Council,22002691,"15,000.00"
Borough Council of Kings Lynn and West Norfolk,E07000146,12/10/2020,Vehicle Recharge on account,Fuel,Worldline IT Services UK Re Fuelgenie,22002699,"9,980.78"
Borough Council of Kings Lynn and West Norfolk,E07000146,12/10/2020,Vehicle Recharge on account,Fuel,Worldline IT Services UK Re Fuelgenie,22002699,0.89
Borough Council of Kings Lynn and West Norfolk,E07000146,12/10/2020,Property Services,Recruitment,TMP (UK) Ltd,22002620,"9,430.22"
Borough Council of Kings Lynn and West Norfolk,E07000146,12/10/2020,Grounds,Vehicle - repairs & Maint,Ernest Doe & Sons Ltd,22002687,797.40
Borough Council of Kings Lynn and West Norfolk,E07000146,12/10/2020,Grounds,Vehicle - repairs & Maint,Ernest Doe & Sons Ltd,22002686,698.83
Borough Council of Kings Lynn and West Norfolk,E07000146,12/10/2020,Kings Court Kings Lynn,Covid 19,Trade UK Account,21002704,599.95
Borough Council of Kings Lynn and West Norfolk,E07000146,12/10/2020,Towns Fund,Professional Fees,Engaging People Company,21002490,"3,181.50"
Borough Council of Kings Lynn and West Norfolk,E07000146,12/10/2020,Supplier Holding Account,Vehicle - repairs & Maint,Lawn Boy (Farm Services),22002690,"2,429.14"
Borough Council of Kings Lynn and West Norfolk,E07000146,12/10/2020,ICT,Recoverable Fees,Insight Direct,21002504,"2,185.00"
Borough Council of Kings Lynn and West Norfolk,E07000146,12/10/2020,Leisure Management Costs,Security Services Charge,LOOMIS UK Ltd,21002676,617.51
Borough Council of Kings Lynn and West Norfolk,E07000146,12/10/2020,Parking Operations - Brgh,Security Services Charge,LOOMIS UK Ltd,21002676,741.99
Borough Council of Kings Lynn and West Norfolk,E07000146,12/10/2020,NNDC Carpark Operation,Security Services Charge,LOOMIS UK Ltd,21002676,245.23
Borough Council of Kings Lynn and West Norfolk,E07000146,12/10/2020,Supplier Holding Account,Vehicle - repairs & Maint,North Street Tyres,22002709,"1,477.20"
Borough Council of Kings Lynn and West Norfolk,E07000146,12/10/2020,Grounds,Vehicle - repairs & Maint,Ernest Doe & Sons Ltd,22002676,"1,265.00"
Borough Council of Kings Lynn and West Norfolk,E07000146,12/10/2020,Corporate Health & Safety,Covid 19,CMT Equipment Limited,21002725,"1,260.00"
Borough Council of Kings Lynn and West Norfolk,E07000146,12/10/2020,Grounds,Materials,Rigby Taylor Ltd,22002511,"2,915.00"
Borough Council of Kings Lynn and West Norfolk,E07000146,12/10/2020,Grounds,Materials,Rigby Taylor Ltd,22002511,"1,785.50"
Borough Council of Kings Lynn and West Norfolk,E07000146,12/10/2020,Domestic Refuse,Dayworks and Addnl Works,Kier Services Environmental,21002726,"4,362.01"
Borough Council of Kings Lynn and West Norfolk,E07000146,12/10/2020,Air Quality,Consultants Fees,Martin Cranfield Associates Ltd,21002728,"4,028.45"
Borough Council of Kings Lynn and West Norfolk,E07000146,12/10/2020,Mintlyn Crematorium,Repairs & Maintenance,Facultatieve Technologies Ltd,21002433,"3,776.86"
Borough Council of Kings Lynn and West Norfolk,E07000146,12/10/2020,Mintlyn Crematorium,Repairs & Maintenance,Facultatieve Technologies Ltd,21002437,"3,776.86"
Borough Council of Kings Lynn and West Norfolk,E07000146,12/10/2020,Handyperson Scheme K Lynn,Contractor Payments,T M Browne Ltd,21002752,"3,488.68"
Borough Council of Kings Lynn and West Norfolk,E07000146,12/10/2020,Parking Operations - Brgh,Repairs & Maintenance,JBC Roofing Ltd,21002488,"1,178.20"
Borough Council of Kings Lynn and West Norfolk,E07000146,12/10/2020,Handyperson Scheme K Lynn,Contractor Payments,Chas D Allflatt Ltd,21002749,"1,107.78"
Borough Council of Kings Lynn and West Norfolk,E07000146,12/10/2020,Handyperson Scheme K Lynn,Contractor Payments,Chas D Allflatt Ltd,21002751,600.00
Borough Council of Kings Lynn and West Norfolk,E07000146,12/10/2020,Rough Sleeper Fund,Covid 19,The Purfleet Trust,21002283,"1,119.92"
Borough Council of Kings Lynn and West Norfolk,E07000146,15/10/2020,Adapt Grant,Works,Chas D Allflatt Ltd,21002777,"4,188.53"
Borough Council of Kings Lynn and West Norfolk,E07000146,15/10/2020,Adapt Grant,Works,Gaswise Services Ltd,21002779,"1,978.73"
Borough Council of Kings Lynn and West Norfolk,E07000146,15/10/2020,Rough Sleeper Fund,Covid 19,Carter Accommodation Ltd,21002784,852.00
Borough Council of Kings Lynn and West Norfolk,E07000146,15/10/2020,Handyperson Scheme K Lynn,Purchased For Resale,Norse Eastern Ltd,22002751,852.25
Borough Council of Kings Lynn and West Norfolk,E07000146,15/10/2020,Corn Exchange Cinema,Works,Phelan Construction Ltd,22002753,"178,868.49"
Borough Council of Kings Lynn and West Norfolk,E07000146,15/10/2020,Public Cleansing,Contract Repairs,Ford & Slater DAF Kings Lynn,22002760,"1,153.89"
Borough Council of Kings Lynn and West Norfolk,E07000146,15/10/2020,Public Cleansing,Contract Repairs,Ford & Slater DAF Kings Lynn,22002760,91.00
Borough Council of Kings Lynn and West Norfolk,E07000146,15/10/2020,Kings Court Kings Lynn,Repairs & Maintenance,UPS Systems PLC,21002371,"1,342.00"
Borough Council of Kings Lynn and West Norfolk,E07000146,15/10/2020,Network Hardware holding,Repairs & Maintenance,Quality Essential Distribution Ltd,21002373,"7,456.68"
Borough Council of Kings Lynn and West Norfolk,E07000146,15/10/2020,CCTV,Repairs & Maintenance,Flow Communications UK Ltd,21002376,"1,627.72"
Borough Council of Kings Lynn and West Norfolk,E07000146,15/10/2020,Kings Court Kings Lynn,Cleaning Material & Equip,Ken Booth & Co Ltd,21002450,625.70
Borough Council of Kings Lynn and West Norfolk,E07000146,15/10/2020,Kings Court Kings Lynn,Repairs & Maintenance,Ken Booth & Co Ltd,21002450,32.40
Borough Council of Kings Lynn and West Norfolk,E07000146,15/10/2020,Kings Court Kings Lynn,Cleaning Material & Equip,Ken Booth & Co Ltd,21002450,199.80
Borough Council of Kings Lynn and West Norfolk,E07000146,15/10/2020,Sail the Wash - KL,Professional Fees,Ocean Science Consulting Limited,21002461,"3,104.81"
Borough Council of Kings Lynn and West Norfolk,E07000146,15/10/2020,Rough Sleeper Fund,Covid 19,AMR Electrical Services Ltd,21002654,688.99
Borough Council of Kings Lynn and West Norfolk,E07000146,15/10/2020,Home Improvements Agency,Agency Staff,Seven Resourcing Ltd,21002684,"1,317.63"
Borough Council of Kings Lynn and West Norfolk,E07000146,15/10/2020,Home Improvements Agency,Agency Staff,Seven Resourcing Ltd,21002685,"1,129.15"
Borough Council of Kings Lynn and West Norfolk,E07000146,15/10/2020,Play Areas,Repairs & Maintenance,Fenland Leisure Products Ltd,21002734,"2,135.00"
Borough Council of Kings Lynn and West Norfolk,E07000146,15/10/2020,Depot Infestation,Rechargeable Works Insurance,Carter Accommodation Ltd,21002753,702.88
Borough Council of Kings Lynn and West Norfolk,E07000146,15/10/2020,Depot Infestation,Rechargeable Works Insurance,Carter Accommodation Ltd,21002754,672.32
Borough Council of Kings Lynn and West Norfolk,E07000146,15/10/2020,North Lynn Managed Workshops,Repairs & Maintenance,Downham Door Services,21002756,"2,295.00"
Borough Council of Kings Lynn and West Norfolk,E07000146,15/10/2020,Car Park - Great Yarmouth,Repairs & Maintenance,Metric Group Ltd,21002758,"2,404.98"
Borough Council of Kings Lynn and West Norfolk,E07000146,15/10/2020,Priory Road D Market,Repairs & Maintenance,Robert Fox,21002885,"1,143.00"
Borough Council of Kings Lynn and West Norfolk,E07000146,15/10/2020,Priory Road D Market,Repairs & Maintenance,Robert Fox,21002885,242.00
Borough Council of Kings Lynn and West Norfolk,E07000146,15/10/2020,Adapt Grant,Works,A Smith Contractors,21002888,710.00
Borough Council of Kings Lynn and West Norfolk,E07000146,15/10/2020,Adapt Grant,Works,Chas D Allflatt Ltd,21002889,"7,441.21"
Borough Council of Kings Lynn and West Norfolk,E07000146,15/10/2020,Welfare Reform Funding,Professional Fees,North Norfolk District Council,21002797,"3,658.85"
Borough Council of Kings Lynn and West Norfolk,E07000146,15/10/2020,ICT,Computer Software Maint,Silktide Ltd,21002799,"1,836.00"
Borough Council of Kings Lynn and West Norfolk,E07000146,15/10/2020,ICT,Computer Hardware Maint,Dell Corporation Ltd,21002823,"3,257.35"
Borough Council of Kings Lynn and West Norfolk,E07000146,15/10/2020,Kings Court Kings Lynn,Repairs & Maintenance,Quadient UK Limited,22002581,"1,414.27"
Borough Council of Kings Lynn and West Norfolk,E07000146,15/10/2020,Rough Sleeper Fund,Covid 19,Carter Accommodation Ltd,21002785,444.00
Borough Council of Kings Lynn and West Norfolk,E07000146,15/10/2020,Kings Court Kings Lynn,Repairs & Maintenance,AMR Electrical Services Ltd,21002787,545.99
Borough Council of Kings Lynn and West Norfolk,E07000146,15/10/2020,Rough Sleeper Fund,Covid 19,Excaliber Security Services Ltd,21002788,"2,520.00"
Borough Council of Kings Lynn and West Norfolk,E07000146,15/10/2020,ICT,Computer Hardware Maint,Dell Corporation Ltd,21002822,605.60
Borough Council of Kings Lynn and West Norfolk,E07000146,15/10/2020,Food Hygiene General,Professional Fees,Stephen Flanagan,22002721,"3,575.00"
Borough Council of Kings Lynn and West Norfolk,E07000146,15/10/2020,Improving Attainment,Small Projects,Holly Meadows School,22002724,900.00
Borough Council of Kings Lynn and West Norfolk,E07000146,15/10/2020,Cashless Pk JF(NN on St),Agency,North Norfolk District Council,22002725,"66,989.10"
Borough Council of Kings Lynn and West Norfolk,E07000146,15/10/2020,Postage Services K Court,Postages,Purchase Power,22002726,652.18
Borough Council of Kings Lynn and West Norfolk,E07000146,15/10/2020,Postage Services K Court,Postages,Purchase Power,22002726,5.00
Borough Council of Kings Lynn and West Norfolk,E07000146,15/10/2020,Licensing,CRB Forms - Expenditure,Disclosure & Barring Service,22002728,80.00
Borough Council of Kings Lynn and West Norfolk,E07000146,15/10/2020,Personnel Services,Personnel DBS Checks,Disclosure & Barring Service,22002728,680.00
Borough Council of Kings Lynn and West Norfolk,E07000146,15/10/2020,Careline,Personnel DBS Checks,Disclosure & Barring Service,22002728,80.00
Borough Council of Kings Lynn and West Norfolk,E07000146,15/10/2020,Housing standards,Personnel DBS Checks,Disclosure & Barring Service,22002728,80.00
Borough Council of Kings Lynn and West Norfolk,E07000146,15/10/2020,Personnel Services,Personnel DBS Checks,Disclosure & Barring Service,22002728,160.00
Borough Council of Kings Lynn and West Norfolk,E07000146,15/10/2020,Adapt Grant,Works,Chas D Allflatt Ltd,22002731,"5,086.31"
Borough Council of Kings Lynn and West Norfolk,E07000146,15/10/2020,Adapt Grant,Works,Chas D Allflatt Ltd,22002732,"3,682.57"
Borough Council of Kings Lynn and West Norfolk,E07000146,15/10/2020,Adapt Grant,Works,Chas D Allflatt Ltd,22002733,"1,636.55"
Borough Council of Kings Lynn and West Norfolk,E07000146,15/10/2020,Adapt Grant,Works,Foster Property Maintenance Ltd,22002734,"2,636.18"
Borough Council of Kings Lynn and West Norfolk,E07000146,15/10/2020,Adapt Grant,Works,T M Browne Ltd,22002735,"5,323.84"
Borough Council of Kings Lynn and West Norfolk,E07000146,15/10/2020,Disabled Facilties Grant,Works,T M Browne Ltd,22002736,"6,651.60"
Borough Council of Kings Lynn and West Norfolk,E07000146,15/10/2020,Corn Exchange Cinema,Works,Alive West Norfolk,22002740,"5,408.40"
Borough Council of Kings Lynn and West Norfolk,E07000146,15/10/2020,Willows Park & Nature Rsv,Repairs & Maintenance,CGM Group (East Anglia) Ltd,22002741,600.00
Borough Council of Kings Lynn and West Norfolk,E07000146,15/10/2020,Careline,Purchased For Resale,Supra UK Ltd T/A The Key Safe Company,21002347,"1,698.00"
Borough Council of Kings Lynn and West Norfolk,E07000146,15/10/2020,Adapt Grant,Works,A Smith Contractors,21002887,"1,325.00"
Borough Council of Kings Lynn and West Norfolk,E07000146,19/10/2020,ICT,Computer Software Maint,IEG4 Ltd,21002708,"49,376.25"
Borough Council of Kings Lynn and West Norfolk,E07000146,19/10/2020,Street Sweeping,Added Years Pension,Norfolk Pension Fund,21002849,"-3,739.00"
Borough Council of Kings Lynn and West Norfolk,E07000146,19/10/2020,Domestic Refuse,Added Years Pension,Norfolk Pension Fund,21002849,714.40
Borough Council of Kings Lynn and West Norfolk,E07000146,19/10/2020,Trade Refuse,Added Years Pension,Norfolk Pension Fund,21002849,714.40
Borough Council of Kings Lynn and West Norfolk,E07000146,19/10/2020,Corporate,Added Years Pension,Norfolk Pension Fund,21002849,"21,023.80"
Borough Council of Kings Lynn and West Norfolk,E07000146,19/10/2020,Careline,Tools And Equipment,Tunstall Healthcare (UK) Ltd,21002851,"5,586.03"
Borough Council of Kings Lynn and West Norfolk,E07000146,19/10/2020,Adapt Grant,Works,T M Browne Ltd,22002778,"6,515.81"
Borough Council of Kings Lynn and West Norfolk,E07000146,19/10/2020,Heacham Beach,Repairs & Maintenance,Penty Contractors Ltd,21002869,"1,320.00"
Borough Council of Kings Lynn and West Norfolk,E07000146,19/10/2020,Adapt Grant,Works,A Smith Contractors,21002853,985.00
Borough Council of Kings Lynn and West Norfolk,E07000146,19/10/2020,Adapt Grant,Works,Chas D Allflatt Ltd,21002852,903.81
Borough Council of Kings Lynn and West Norfolk,E07000146,19/10/2020,Custom House & Tics,Postages,Royal Mail Group Ltd,22002763,28.21
Borough Council of Kings Lynn and West Norfolk,E07000146,19/10/2020,Financial Services,Postages,Royal Mail Group Ltd,22002763,"1,005.77"
Borough Council of Kings Lynn and West Norfolk,E07000146,19/10/2020,Benefit Administration,Postages,Royal Mail Group Ltd,22002763,831.84
Borough Council of Kings Lynn and West Norfolk,E07000146,19/10/2020,Cost of Collection - CTax,Postages,Royal Mail Group Ltd,22002763,"1,567.66"
Borough Council of Kings Lynn and West Norfolk,E07000146,19/10/2020,Kings Lynn Bid,Postages,Royal Mail Group Ltd,22002763,4.30
Borough Council of Kings Lynn and West Norfolk,E07000146,19/10/2020,Resort Seafront,Professional Fees,MED PTS Ambulance Services,21002848,"2,646.00"
Borough Council of Kings Lynn and West Norfolk,E07000146,19/10/2020,KL Innovation Centre,Contract Cleaning,Mr Brights Ltd,21002796,"1,518.36"
Borough Council of Kings Lynn and West Norfolk,E07000146,19/10/2020,Resort Seafront,Covid 19,GrafityP,21002878,635.40
Borough Council of Kings Lynn and West Norfolk,E07000146,19/10/2020,Parking Operations - Brgh,Repairs & Maintenance,Xylem Water Solutions UK Limited,21002698,"1,399.34"
Borough Council of Kings Lynn and West Norfolk,E07000146,19/10/2020,ICT,Computer Software Maint,Gladstone MRM Ltd,21002601,"1,382.56"
Borough Council of Kings Lynn and West Norfolk,E07000146,19/10/2020,Natl Assist Act Burials,Burial Fees-Nat.Ass.Act,Thornalley Funeral Services Ltd,22002782,"1,344.00"
Borough Council of Kings Lynn and West Norfolk,E07000146,19/10/2020,Crematorium Trading Account,Memorial Plates,Anglia Sign Casting Ltd,21002469,"1,095.16"
Borough Council of Kings Lynn and West Norfolk,E07000146,19/10/2020,Resort Seafront,Covid 19,GrafityP,21002880,988.09
Borough Council of Kings Lynn and West Norfolk,E07000146,19/10/2020,Corporate Health & Safety,Tools And Equipment,Ufficio Ltd,22002781,932.25
Borough Council of Kings Lynn and West Norfolk,E07000146,19/10/2020,General Property,Advertising & Marketing,Rightmove Group Ltd,21002539,570.00
Borough Council of Kings Lynn and West Norfolk,E07000146,19/10/2020,Public Cleansing,Cleaning Material & Equip,V & J Knitwear Ltd,21002812,402.73
Borough Council of Kings Lynn and West Norfolk,E07000146,19/10/2020,Public Cleansing,Clothing/Uniforms,V & J Knitwear Ltd,21002812,35.50
Borough Council of Kings Lynn and West Norfolk,E07000146,19/10/2020,Adapt Grant,Works,Chas D Allflatt Ltd,22002777,"4,347.47"
Borough Council of Kings Lynn and West Norfolk,E07000146,19/10/2020,General Property,Repairs & Maintenance,1-2 Call Drainage & Groundwork Ltd,21002855,"2,800.00"
Borough Council of Kings Lynn and West Norfolk,E07000146,19/10/2020,Resort Seafront,Beach Safety,Penty Contractors Ltd,21002871,"2,184.00"
Borough Council of Kings Lynn and West Norfolk,E07000146,19/10/2020,Waveney Road,Contractor Works,Lovell Partnerships Ltd,21002663,"2,564.00"
Borough Council of Kings Lynn and West Norfolk,E07000146,19/10/2020,Parking Operations - Brgh,Repairs & Maintenance,1-2 Call Drainage & Groundwork Ltd,21002856,"2,100.00"
Borough Council of Kings Lynn and West Norfolk,E07000146,22/10/2020,NNDC Penalty Notice,Agency,North Norfolk District Council,21002906,"7,241.96"
Borough Council of Kings Lynn and West Norfolk,E07000146,22/10/2020,Cashless Pk JC(SN on St),Merchant Fees,Chipside Ltd,21002912,0.04
Borough Council of Kings Lynn and West Norfolk,E07000146,22/10/2020,Cashless Pk JT(Brd on St),Merchant Fees,Chipside Ltd,21002912,0.17
Borough Council of Kings Lynn and West Norfolk,E07000146,22/10/2020,Cashless Pk JG (Bk on St),Merchant Fees,Chipside Ltd,21002912,0.21
Borough Council of Kings Lynn and West Norfolk,E07000146,22/10/2020,Cashless Pk JE(NN on St),Merchant Fees,Chipside Ltd,21002912,8.49
Borough Council of Kings Lynn and West Norfolk,E07000146,22/10/2020,Cashless Park KR (KLWN on ST),Merchant Fees,Chipside Ltd,21002912,36.17
Borough Council of Kings Lynn and West Norfolk,E07000146,22/10/2020,Cashless Pk JI(GYon St),Merchant Fees,Chipside Ltd,21002912,259.61
Borough Council of Kings Lynn and West Norfolk,E07000146,22/10/2020,Cashless Pk JF(NN on St),Merchant Fees,Chipside Ltd,21002912,631.29
Borough Council of Kings Lynn and West Norfolk,E07000146,22/10/2020,Cashless Pk YT(GY off St),Merchant Fees,Chipside Ltd,21002912,680.29
Borough Council of Kings Lynn and West Norfolk,E07000146,22/10/2020,Cashless Park KZ (KLWN off ST),Merchant Fees,Chipside Ltd,21002912,"1,235.22"
Borough Council of Kings Lynn and West Norfolk,E07000146,22/10/2020,Parking Operations - Brgh,Repairs & Maintenance,Focus Security (East Anglia) Ltd,21002915,210.40
Borough Council of Kings Lynn and West Norfolk,E07000146,22/10/2020,CCTV Breckland,Repairs & Maintenance,Focus Security (East Anglia) Ltd,21002915,465.00
Borough Council of Kings Lynn and West Norfolk,E07000146,22/10/2020,CCTV,Repairs & Maintenance,Focus Security (East Anglia) Ltd,21002915,607.40
Borough Council of Kings Lynn and West Norfolk,E07000146,22/10/2020,Network Hardware holding,Repairs & Maintenance,Focus Security (East Anglia) Ltd,21002915,"1,023.00"
Borough Council of Kings Lynn and West Norfolk,E07000146,22/10/2020,Radio Phones,Communications,Claranet Ltd,21002925,62.95
Borough Council of Kings Lynn and West Norfolk,E07000146,22/10/2020,ICT,Communications,Claranet Ltd,21002925,"4,343.28"
Borough Council of Kings Lynn and West Norfolk,E07000146,22/10/2020,Benefit Administration,Broadband Charge,Claranet Ltd,21002925,268.35
Borough Council of Kings Lynn and West Norfolk,E07000146,22/10/2020,South Lynn Community Centre,Broadband Charge,Claranet Ltd,21002925,89.78
Borough Council of Kings Lynn and West Norfolk,E07000146,22/10/2020,ICT,Broadband Charge,Claranet Ltd,21002925,44.89
Borough Council of Kings Lynn and West Norfolk,E07000146,22/10/2020,NNDC Carpark Operation,Broadband Charge,Claranet Ltd,21002925,131.63
Borough Council of Kings Lynn and West Norfolk,E07000146,22/10/2020,Communications,Covid 19,KL Publications Ltd,21002926,576.00
Borough Council of Kings Lynn and West Norfolk,E07000146,22/10/2020,One Public Estate,Photographs,M Usher,21002929,500.00
Borough Council of Kings Lynn and West Norfolk,E07000146,22/10/2020,Cafe in the Park,Tools And Equipment,Tastebuds Vending Ltd,21002932,"1,315.00"
Borough Council of Kings Lynn and West Norfolk,E07000146,22/10/2020,Property Services,Computer Software Maint,Systemslink 2000 Ltd,21002933,"1,250.00"
Borough Council of Kings Lynn and West Norfolk,E07000146,22/10/2020,ICT,Recoverable Fees,TelefonicaO2UK Ltd,21002935,"1,283.00"
Borough Council of Kings Lynn and West Norfolk,E07000146,22/10/2020,Dog Warden and Services,Contracted Services,Dogotel Kennels & Cattery,22002790,600.00
Borough Council of Kings Lynn and West Norfolk,E07000146,22/10/2020,Dog Warden and Services,Kennel Fees,Dogotel Kennels & Cattery,22002790,60.00
Borough Council of Kings Lynn and West Norfolk,E07000146,22/10/2020,Dog Warden and Services,Kennel Fees,Dogotel Kennels & Cattery,22002790,112.00
Borough Council of Kings Lynn and West Norfolk,E07000146,22/10/2020,Dog Warden and Services,Contracted Services,Dogotel Kennels & Cattery,22002790,325.00
Borough Council of Kings Lynn and West Norfolk,E07000146,22/10/2020,Dog Warden and Services,Kennel Fees Recd - Extl,Dogotel Kennels & Cattery,22002790,-236.50
Borough Council of Kings Lynn and West Norfolk,E07000146,22/10/2020,NEWS Depot,Contract Cleaning,Marathon Services Ltd,22002792,"1,420.65"
Borough Council of Kings Lynn and West Norfolk,E07000146,22/10/2020,Neighbourhood Teams,Vehicle - repairs & Maint,Able Engineering Ltd,22002795,"1,170.00"
Borough Council of Kings Lynn and West Norfolk,E07000146,22/10/2020,Replacement Financial Ledger,Computer Equip (Software),Embridge Consulting (UK) Ltd,22002800,"3,741.98"
Borough Council of Kings Lynn and West Norfolk,E07000146,22/10/2020,Adapt Grant,Works,Chas D Allflatt Ltd,22002801,"1,639.56"
Borough Council of Kings Lynn and West Norfolk,E07000146,22/10/2020,Adapt Grant,Works,T M Browne Ltd,22002802,"4,237.01"
Borough Council of Kings Lynn and West Norfolk,E07000146,22/10/2020,Disabled Facilties Grant,Works,T M Browne Ltd,22002803,"4,125.59"
Borough Council of Kings Lynn and West Norfolk,E07000146,22/10/2020,Recycling Composting,Waste Processing Cost,Greenworld Sales Ltd t/a Greenworld,22002804,662.23
Borough Council of Kings Lynn and West Norfolk,E07000146,22/10/2020,Head of Legal Services,External Legal fees,North Norfolk District Council,22002807,"87,401.50"
Borough Council of Kings Lynn and West Norfolk,E07000146,22/10/2020,Head of Legal Services,External Legal fees,North Norfolk District Council,22002808,300.00
Borough Council of Kings Lynn and West Norfolk,E07000146,22/10/2020,Head of Legal Services,External Legal fees,North Norfolk District Council,22002808,43.00
Borough Council of Kings Lynn and West Norfolk,E07000146,22/10/2020,Head of Legal Services,External Legal fees,North Norfolk District Council,22002808,110.00
Borough Council of Kings Lynn and West Norfolk,E07000146,22/10/2020,Head of Legal Services,External Legal fees,North Norfolk District Council,22002809,300.00
Borough Council of Kings Lynn and West Norfolk,E07000146,22/10/2020,Head of Legal Services,External Legal fees,North Norfolk District Council,22002809,43.00
Borough Council of Kings Lynn and West Norfolk,E07000146,22/10/2020,Head of Legal Services,External Legal fees,North Norfolk District Council,22002809,110.00
Borough Council of Kings Lynn and West Norfolk,E07000146,22/10/2020,Head of Legal Services,External Legal fees,North Norfolk District Council,22002810,300.00
Borough Council of Kings Lynn and West Norfolk,E07000146,22/10/2020,Head of Legal Services,External Legal fees,North Norfolk District Council,22002810,43.00
Borough Council of Kings Lynn and West Norfolk,E07000146,22/10/2020,Head of Legal Services,External Legal fees,North Norfolk District Council,22002810,110.00
Borough Council of Kings Lynn and West Norfolk,E07000146,22/10/2020,Supplier Holding Account,Vehicle - repairs & Maint,Paul Johnson Motor Services Ltd,22002813,"6,558.34"
Borough Council of Kings Lynn and West Norfolk,E07000146,22/10/2020,Supplier Holding Account,Vehicle - repairs & Maint,Paul Johnson Motor Services Ltd,22002813,668.59
Borough Council of Kings Lynn and West Norfolk,E07000146,22/10/2020,Nursery,Materials,Premium Horticultural Ltd,22002814,"1,567.47"
Borough Council of Kings Lynn and West Norfolk,E07000146,22/10/2020,Grounds,Fuel,UK Fuels Ltd,22002819,627.52
Borough Council of Kings Lynn and West Norfolk,E07000146,22/10/2020,Grounds,Fuel,UK Fuels Ltd,22002819,60.26
Borough Council of Kings Lynn and West Norfolk,E07000146,22/10/2020,Public Cleansing,Fuel,UK Fuels Ltd,22002819,319.24
Borough Council of Kings Lynn and West Norfolk,E07000146,22/10/2020,Resort Seafront,Repairs & Maintenance,ASSA ABLOY Ltd,21002470,749.00
Borough Council of Kings Lynn and West Norfolk,E07000146,22/10/2020,Public Clocks,Repairs & Maintenance,Les Kirk Clocks,21002507,"1,400.00"
Borough Council of Kings Lynn and West Norfolk,E07000146,22/10/2020,Network Hardware holding,Repairs & Maintenance,Quality Essential Distribution Ltd,21002519,979.10
Borough Council of Kings Lynn and West Norfolk,E07000146,22/10/2020,Grounds,Vehicle - repairs & Maint,Ben Burgess,22002678,"1,063.68"
Borough Council of Kings Lynn and West Norfolk,E07000146,22/10/2020,ICT,Computer Software Maint,Bytes Software Services Ltd,21002837,"1,564.80"
Borough Council of Kings Lynn and West Norfolk,E07000146,22/10/2020,Phase 5 Town Centre KL,Repairs & Maintenance,Advanced Water Treatment (UK) Ltd,21002846,894.00
Borough Council of Kings Lynn and West Norfolk,E07000146,22/10/2020,General Property,Repairs & Maintenance,Neville Godfrey Ltd,21002865,695.00
Borough Council of Kings Lynn and West Norfolk,E07000146,22/10/2020,Domestic Refuse,Contracted Services,Kier Services Environmental,21002898,"101,378.30"
Borough Council of Kings Lynn and West Norfolk,E07000146,22/10/2020,Domestic Refuse,Clinical & Medical Waste,Kier Services Environmental,21002898,"4,301.54"
Borough Council of Kings Lynn and West Norfolk,E07000146,22/10/2020,Dry Box Collection Scheme,Contracted Services,Kier Services Environmental,21002898,"99,508.02"
Borough Council of Kings Lynn and West Norfolk,E07000146,22/10/2020,Recycling Composting,Contracted Services,Kier Services Environmental,21002898,"46,031.89"
Borough Council of Kings Lynn and West Norfolk,E07000146,22/10/2020,Food Waste,Contracted Services,Kier Services Environmental,21002898,"26,822.04"
Borough Council of Kings Lynn and West Norfolk,E07000146,22/10/2020,Trade Refuse,Contracted Services,Kier Services Environmental,21002898,"10,241.38"
Borough Council of Kings Lynn and West Norfolk,E07000146,22/10/2020,Recycling Commercial,Contracted Services,Kier Services Environmental,21002898,859.66
Borough Council of Kings Lynn and West Norfolk,E07000146,22/10/2020,Food Waste,Waste Processing Cost,Kier Services Environmental,21002898,74.25
Borough Council of Kings Lynn and West Norfolk,E07000146,22/10/2020,Food Waste,Bins,Kier Services Environmental,21002898,"2,651.79"
Borough Council of Kings Lynn and West Norfolk,E07000146,22/10/2020,Refuse & Recyc Mgmt,Contracted Services,Kier Services Environmental,21002898,407.03
Borough Council of Kings Lynn and West Norfolk,E07000146,22/10/2020,L/Sport WC & Changing Rm,Works,Rexel UK Ltd,21002899,777.60
Borough Council of Kings Lynn and West Norfolk,E07000146,22/10/2020,Coast Defence/Protection,Professional Fees,UKRI-NERC,21002902,"2,656.48"
Borough Council of Kings Lynn and West Norfolk,E07000146,22/10/2020,General Property,Repairs & Maintenance,Neville Godfrey Ltd,22002874,695.00
Borough Council of Kings Lynn and West Norfolk,E07000146,22/10/2020,Careline,Advertising & Marketing,Rose Villa Publications Ltd,21002520,480.00
Borough Council of Kings Lynn and West Norfolk,E07000146,22/10/2020,Printing & Graphics,Materials,Antalis Ltd,21002562,566.64
Borough Council of Kings Lynn and West Norfolk,E07000146,22/10/2020,Training Holding Account,Training,The Hub Events Ltd,21002573,"1,200.00"
Borough Council of Kings Lynn and West Norfolk,E07000146,22/10/2020,Domestic Refuse,Waste Processing Cost,Norse Environmental Services,21002631,"32,446.07"
Borough Council of Kings Lynn and West Norfolk,E07000146,22/10/2020,Dry Box Collection Scheme,Waste Processing Cost,Norse Environmental Services,21002633,"39,834.41"
Borough Council of Kings Lynn and West Norfolk,E07000146,22/10/2020,Home Improvements Agency,Agency Staff,Seven Resourcing Ltd,21002683,"1,150.30"
Borough Council of Kings Lynn and West Norfolk,E07000146,22/10/2020,Home Improvements Agency,Agency Staff,Seven Resourcing Ltd,21002686,"1,318.53"
Borough Council of Kings Lynn and West Norfolk,E07000146,22/10/2020,Rough Sleeper Fund,Covid 19,Carter Accommodation Ltd,21002690,684.00
Borough Council of Kings Lynn and West Norfolk,E07000146,22/10/2020,Sports Grounds South,Repairs & Maintenance,Pick & Banham,21002761,802.65
Borough Council of Kings Lynn and West Norfolk,E07000146,26/10/2020,Adapt Grant,Works,Gaswise Services Ltd,21002957,"1,623.34"
Borough Council of Kings Lynn and West Norfolk,E07000146,26/10/2020,Public Cleansing,Repairs & Maintenance,Ford & Slater DAF Kings Lynn,22002820,793.87
Borough Council of Kings Lynn and West Norfolk,E07000146,26/10/2020,CCTV,Repairs & Maintenance,Ford & Slater DAF Kings Lynn,22002853,"1,174.25"
Borough Council of Kings Lynn and West Norfolk,E07000146,26/10/2020,CCTV,Repairs & Maintenance,Ford & Slater DAF Kings Lynn,22002853,91.00
Borough Council of Kings Lynn and West Norfolk,E07000146,26/10/2020,Cashless Pk YT(GY off St),Agency,Great Yarmouth Borough Council,22002849,"72,091.10"
Borough Council of Kings Lynn and West Norfolk,E07000146,26/10/2020,Precept Parish Councils,IDB,Littleport & Downham IDB,22002827,"11,723.58"
Borough Council of Kings Lynn and West Norfolk,E07000146,26/10/2020,Precept Parish Councils,IDB,Manea & Welney Dist Drainage Commrs,22002822,"9,883.00"
Borough Council of Kings Lynn and West Norfolk,E07000146,26/10/2020,Precept Parish Councils,IDB,Middle Level Commissioners,22002825,"102,232.50"
Borough Council of Kings Lynn and West Norfolk,E07000146,26/10/2020,Precept Parish Councils,IDB,Needham and Laddus IDB,22002832,"11,806.00"
Borough Council of Kings Lynn and West Norfolk,E07000146,26/10/2020,Play Areas,Repairs & Maintenance,Fenland Leisure Products Ltd,21002895,"1,191.40"
Borough Council of Kings Lynn and West Norfolk,E07000146,26/10/2020,Play Areas,Repairs & Maintenance,Fenland Leisure Products Ltd,21002896,877.40
Borough Council of Kings Lynn and West Norfolk,E07000146,26/10/2020,Precept Parish Councils,IDB,Kings Lynn Internal Drainage Board,22002826,"944,024.00"
Borough Council of Kings Lynn and West Norfolk,E07000146,26/10/2020,Precept Parish Councils,IDB,Norfolk Rivers IDB,22002828,"9,804.00"
Borough Council of Kings Lynn and West Norfolk,E07000146,26/10/2020,Future High Streets Fund,Professional Fees,AECOM Ltd,21002999,"1,000.00"
Borough Council of Kings Lynn and West Norfolk,E07000146,26/10/2020,Cost of Collection - CTax,Stationery & Office,Hound Envelopes Ltd,21002622,445.00
Borough Council of Kings Lynn and West Norfolk,E07000146,26/10/2020,Precept Parish Councils,IDB,Churchfield & Plawfield IDB,22002821,"11,269.50"
Borough Council of Kings Lynn and West Norfolk,E07000146,26/10/2020,Precept Parish Councils,IDB,Downham & Stow Bardolph IDB,22002823,"28,862.14"
Borough Council of Kings Lynn and West Norfolk,E07000146,26/10/2020,Precept Parish Councils,IDB,East of Ouse Polver & Nar IDB,22002824,"135,498.93"
Borough Council of Kings Lynn and West Norfolk,E07000146,26/10/2020,Custom House & Tics,Postages,Royal Mail Group Ltd,22002840,27.02
Borough Council of Kings Lynn and West Norfolk,E07000146,26/10/2020,Financial Services,Postages,Royal Mail Group Ltd,22002840,76.11
Borough Council of Kings Lynn and West Norfolk,E07000146,26/10/2020,Benefit Administration,Postages,Royal Mail Group Ltd,22002840,365.72
Borough Council of Kings Lynn and West Norfolk,E07000146,26/10/2020,Cost of Collection - CTax,Postages,Royal Mail Group Ltd,22002840,"1,949.44"
Borough Council of Kings Lynn and West Norfolk,E07000146,26/10/2020,Kings Lynn Bid,Postages,Royal Mail Group Ltd,22002840,99.76
Borough Council of Kings Lynn and West Norfolk,E07000146,26/10/2020,Precept Parish Councils,IDB,SOUTHERY & DISTRICT IDB,22002829,"105,531.00"
Borough Council of Kings Lynn and West Norfolk,E07000146,26/10/2020,Adapt Grant,Works,Stannah Lift Services Ltd,21002955,"5,290.00"
Borough Council of Kings Lynn and West Norfolk,E07000146,26/10/2020,Precept Parish Councils,IDB,Stoke Ferry International Drainage Board,22002830,"22,552.92"
Borough Council of Kings Lynn and West Norfolk,E07000146,26/10/2020,Precept Parish Councils,IDB,Stringside Internal Drainage Board,22002833,"1,621.36"
Borough Council of Kings Lynn and West Norfolk,E07000146,26/10/2020,Precept Parish Councils,IDB,Upwell Internal Drainage Board,22002834,"14,194.50"
Borough Council of Kings Lynn and West Norfolk,E07000146,26/10/2020,Printing & Graphics,Professional Fees,Copyright Licensing Agency Ltd,22002843,"1,955.00"
Borough Council of Kings Lynn and West Norfolk,E07000146,26/10/2020,ICT,Computer Software Maint,Ivanti UK Ltd,21002599,"1,468.00"
Borough Council of Kings Lynn and West Norfolk,E07000146,26/10/2020,Adapt Grant,Works,A Smith Contractors,21002963,810.00
Borough Council of Kings Lynn and West Norfolk,E07000146,26/10/2020,Stories of Lynn,Repairs & Maintenance,M English Security Limited,21002596,348.32
Borough Council of Kings Lynn and West Norfolk,E07000146,26/10/2020,Town Hall Kings Lynn,Repairs & Maintenance,M English Security Limited,21002596,348.33
Borough Council of Kings Lynn and West Norfolk,E07000146,26/10/2020,Grounds,Repairs & Maintenance,Richard King Memorials Ltd,21002646,200.00
Borough Council of Kings Lynn and West Norfolk,E07000146,26/10/2020,Grounds,Repairs & Maintenance,Richard King Memorials Ltd,21002646,280.00
Borough Council of Kings Lynn and West Norfolk,E07000146,26/10/2020,Building Control Non Fee,Agency,CNC Buiding Control,21002981,"15,600.50"
Borough Council of Kings Lynn and West Norfolk,E07000146,26/10/2020,NNDC Carpark Operation,Contract Repairs,East Coast Motor Company Ltd,22002759,597.98
Borough Council of Kings Lynn and West Norfolk,E07000146,26/10/2020,Decrim - Operational,Contract Repairs,East Coast Motor Company Ltd,22002758,973.87
Borough Council of Kings Lynn and West Norfolk,E07000146,26/10/2020,Habitat Regulations,Small Projects,RSPB,22002861,"1,359.00"
Borough Council of Kings Lynn and West Norfolk,E07000146,26/10/2020,Parks & Open Spaces,Tree Surgery,Golden Tree Surgeons Ltd,21003007,"5,280.00"
Borough Council of Kings Lynn and West Norfolk,E07000146,26/10/2020,Arts Initatives,Project Costs,Collusion Cambridge Ltd,21002983,"34,550.00"
Borough Council of Kings Lynn and West Norfolk,E07000146,26/10/2020,Cashless Pk JG (Bk on St),Transaction Fee,Chipside Ltd,21002948,1.00
Borough Council of Kings Lynn and West Norfolk,E07000146,26/10/2020,Cashless Pk JC(SN on St),Transaction Fee,Chipside Ltd,21002948,1.00
Borough Council of Kings Lynn and West Norfolk,E07000146,26/10/2020,Cashless Pk JT(Brd on St),Transaction Fee,Chipside Ltd,21002948,2.00
Borough Council of Kings Lynn and West Norfolk,E07000146,26/10/2020,Cashless Pk JE(NN on St),Transaction Fee,Chipside Ltd,21002948,82.00
Borough Council of Kings Lynn and West Norfolk,E07000146,26/10/2020,Cashless Park KR (KLWN on ST),Transaction Fee,Chipside Ltd,21002948,177.75
Borough Council of Kings Lynn and West Norfolk,E07000146,26/10/2020,Cashless Pk JI(GYon St),Transaction Fee,Chipside Ltd,21002948,449.33
Borough Council of Kings Lynn and West Norfolk,E07000146,26/10/2020,Cashless Pk YT(GY off St),Transaction Fee,Chipside Ltd,21002948,923.92
Borough Council of Kings Lynn and West Norfolk,E07000146,26/10/2020,Cashless Pk JF(NN on St),Transaction Fee,Chipside Ltd,21002948,"1,337.58"
Borough Council of Kings Lynn and West Norfolk,E07000146,26/10/2020,Cashless Park KZ (KLWN off ST),Transaction Fee,Chipside Ltd,21002948,"2,877.08"
Borough Council of Kings Lynn and West Norfolk,E07000146,26/10/2020,Kings Court Kings Lynn,Electricity,IMServ Europe Ltd,22002844,156.00
Borough Council of Kings Lynn and West Norfolk,E07000146,26/10/2020,Corn Exchange,Electricity,IMServ Europe Ltd,22002844,156.00
Borough Council of Kings Lynn and West Norfolk,E07000146,26/10/2020,Parking Operations - Brgh,Electricity,IMServ Europe Ltd,22002844,156.00
Borough Council of Kings Lynn and West Norfolk,E07000146,26/10/2020,Oasis General Account,Electricity,IMServ Europe Ltd,22002844,156.00
Borough Council of Kings Lynn and West Norfolk,E07000146,26/10/2020,Mintlyn Crematorium,Electricity,IMServ Europe Ltd,22002844,156.00
Borough Council of Kings Lynn and West Norfolk,E07000146,26/10/2020,Lynnsport & Leisure Park,Electricity,IMServ Europe Ltd,22002844,156.00
Borough Council of Kings Lynn and West Norfolk,E07000146,26/10/2020,St James General Account,Electricity,IMServ Europe Ltd,22002844,156.00
Borough Council of Kings Lynn and West Norfolk,E07000146,26/10/2020,L/Sport Air Conditioning,Works,Calcutt Ceilings & Walls Ltd,21003003,686.00
Borough Council of Kings Lynn and West Norfolk,E07000146,26/10/2020,Lynnsport 4 /5,Works,Norfolk Flooring Ltd,21002959,"11,077.03"
Borough Council of Kings Lynn and West Norfolk,E07000146,26/10/2020,Flexi hmless Suppt Grant,Homeless Prevention Fund,Broadland Housing Group,22002887,"4,000.00"
Borough Council of Kings Lynn and West Norfolk,E07000146,26/10/2020,Balance Sheet,General - 03101827,Broadland Housing Group,22002887,"-4,000.00"
Borough Council of Kings Lynn and West Norfolk,E07000146,26/10/2020,West Winch Growth Area,Grant Income - NCC,Clyde & Co LLP,22002886,"24,085.25"
Borough Council of Kings Lynn and West Norfolk,E07000146,26/10/2020,Balance Sheet,General - 03101827,Clyde & Co LLP,22002886,"-24,085.25"
Borough Council of Kings Lynn and West Norfolk,E07000146,29/10/2020,Public conveniences,Covid 19,BACO-Compak (Norfolk) Ltd,22002902,"1,310.00"
Borough Council of Kings Lynn and West Norfolk,E07000146,29/10/2020,Public conveniences,Sewerage/Cesspool Empty,BACO-Compak (Norfolk) Ltd,22002902,410.00
Borough Council of Kings Lynn and West Norfolk,E07000146,29/10/2020,ICT,Broadband Charge,British Telecommunications PLC,22002894,"1,045.02"
Borough Council of Kings Lynn and West Norfolk,E07000146,29/10/2020,Emergency Repair Grant,Works,Chas D Allflatt Ltd,21003010,500.00
Borough Council of Kings Lynn and West Norfolk,E07000146,29/10/2020,Adapt Grant,Works,Chas D Allflatt Ltd,21003012,"13,213.35"
Borough Council of Kings Lynn and West Norfolk,E07000146,29/10/2020,Neighbourhood Teams,Vehicle - repairs & Maint,Able Engineering Ltd,22002876,"1,170.00"
Borough Council of Kings Lynn and West Norfolk,E07000146,29/10/2020,Air Quality,Tools And Equipment,Air Liquide UK Ltd,21002738,845.62
Borough Council of Kings Lynn and West Norfolk,E07000146,29/10/2020,Handyperson Scheme K Lynn,Contractor Payments,A Smith Contractors,21002338,585.00
Borough Council of Kings Lynn and West Norfolk,E07000146,29/10/2020,Adapt Grant,Works,A Smith Contractors,21003080,825.00
Borough Council of Kings Lynn and West Norfolk,E07000146,29/10/2020,Public Cleansing,Contract Repairs,Bucher Muncipal Ltd,22002787,467.22
Borough Council of Kings Lynn and West Norfolk,E07000146,29/10/2020,Public Cleansing,Contract Repairs,Bucher Muncipal Ltd,22002788,972.40
Borough Council of Kings Lynn and West Norfolk,E07000146,29/10/2020,Housing Options Programme,Miscellaneous Income,Bedford Borough Council,22002914,"1,400.00"
Borough Council of Kings Lynn and West Norfolk,E07000146,29/10/2020,Personnel Services,Bedford Payroll Fees,Bedford Borough Council,21003019,"4,509.00"
Borough Council of Kings Lynn and West Norfolk,E07000146,29/10/2020,Personnel Services,Bedford Payroll Fees,Bedford Borough Council,21003018,"4,424.00"
Borough Council of Kings Lynn and West Norfolk,E07000146,29/10/2020,Register of Electors,Stationery & Office,Civica Election Services Ltd,22002852,"4,866.01"
Borough Council of Kings Lynn and West Norfolk,E07000146,29/10/2020,Register of Electors,Printing,Civica Election Services Ltd,22002679,767.70
Borough Council of Kings Lynn and West Norfolk,E07000146,29/10/2020,North Lynn Managed Workshops,Repairs & Maintenance,AMR Electrical Services Ltd,21003043,774.10
Borough Council of Kings Lynn and West Norfolk,E07000146,29/10/2020,Home Improvements Agency,Agency Staff,Seven Resourcing Ltd,21002904,"1,241.07"
Borough Council of Kings Lynn and West Norfolk,E07000146,29/10/2020,Home Improvements Agency,Agency Staff,Seven Resourcing Ltd,21002903,"1,213.30"
Borough Council of Kings Lynn and West Norfolk,E07000146,29/10/2020,Parks & Open Spaces,Tree Surgery,Golden Tree Surgeons Ltd,21003051,"2,260.00"
Borough Council of Kings Lynn and West Norfolk,E07000146,29/10/2020,Parkway - Gaywood,Works,Golden Tree Surgeons Ltd,21003008,"3,900.00"
Borough Council of Kings Lynn and West Norfolk,E07000146,29/10/2020,Parkway - Gaywood,Works,Golden Tree Surgeons Ltd,21003008,"2,600.00"
Borough Council of Kings Lynn and West Norfolk,E07000146,29/10/2020,Mintlyn Crematorium,Repairs & Maintenance,Golden Tree Surgeons Ltd,21003006,520.00
Borough Council of Kings Lynn and West Norfolk,E07000146,29/10/2020,Parks & Open Spaces,Tree Work/Storm Damage,Golden Tree Surgeons Ltd,21003021,"1,130.00"
Borough Council of Kings Lynn and West Norfolk,E07000146,29/10/2020,ICT,Computer Software Maint,Bytes Software Services Ltd,21002947,"129,563.76"
Borough Council of Kings Lynn and West Norfolk,E07000146,29/10/2020,KC Office accom rental,Contract Security,MPD FM Ltd,21002795,"7,025.85"
Borough Council of Kings Lynn and West Norfolk,E07000146,29/10/2020,Crematorium Trading Account,Webcasts/Tributes/Recordings,Vivedia Ltd,21002699,"2,276.00"
Borough Council of Kings Lynn and West Norfolk,E07000146,29/10/2020,Development Control,Recruitment,TMP (UK) Ltd,22002730,"1,704.28"
Borough Council of Kings Lynn and West Norfolk,E07000146,29/10/2020,Safety and Welfare,Staff Welfare,Mark Andrews,21002907,560.00
Borough Council of Kings Lynn and West Norfolk,E07000146,29/10/2020,Home Improvements Agency,Stationery & Office,Office Wise Ltd,21003036,427.32
Borough Council of Kings Lynn and West Norfolk,E07000146,29/10/2020,Leisure Management Costs,Agency Payments Received,Alive West Norfolk,22002903,"14,109.94"
Borough Council of Kings Lynn and West Norfolk,E07000146,29/10/2020,Leisure Management Costs,Agency Payments Received,Alive West Norfolk,22002903,-186.48
Borough Council of Kings Lynn and West Norfolk,E07000146,29/10/2020,W Norfolk Housing Co Ltd,Professional Fees,Clyde & Co LLP,21003085,"8,850.80"
Borough Council of Kings Lynn and West Norfolk,E07000146,29/10/2020,W Norfolk Housing Co Ltd,Professional Fees,Clyde & Co LLP,21003086,"25,764.40"
Borough Council of Kings Lynn and West Norfolk,E07000146,29/10/2020,Rough Sleeper Fund,Covid 19,Bunkabin Ltd,21002713,528.00
Borough Council of Kings Lynn and West Norfolk,E07000146,29/10/2020,Rough Sleeper Fund,Covid 19,Bunkabin Ltd,21002714,"1,584.00"
Borough Council of Kings Lynn and West Norfolk,E07000146,29/10/2020,Adapt Grant,Works,Chas D Allflatt Ltd,22002879,"1,639.56"
Borough Council of Kings Lynn and West Norfolk,E07000146,29/10/2020,Adapt Grant,Works,Chas D Allflatt Ltd,22002855,822.15
Borough Council of Kings Lynn and West Norfolk,E07000146,29/10/2020,Adapt Grant,Works,Chas D Allflatt Ltd,21003024,"2,719.25"
Borough Council of Kings Lynn and West Norfolk,E07000146,29/10/2020,Adapt Grant,Works,Chas D Allflatt Ltd,22002854,"2,569.80"
Borough Council of Kings Lynn and West Norfolk,E07000146,29/10/2020,Adapt Grant,Works,Chas D Allflatt Ltd,21003011,"1,939.08"
Borough Council of Kings Lynn and West Norfolk,E07000146,29/10/2020,Adapt Grant,Works,Chas D Allflatt Ltd,21002964,"5,000.00"
Borough Council of Kings Lynn and West Norfolk,E07000146,29/10/2020,Adapt Grant,Works,Chas D Allflatt Ltd,21002966,"5,000.00"
Borough Council of Kings Lynn and West Norfolk,E07000146,29/10/2020,Adapt Grant,Works,Chas D Allflatt Ltd,21003096,"4,381.80"
Borough Council of Kings Lynn and West Norfolk,E07000146,29/10/2020,Adapt Grant,Works,Chas D Allflatt Ltd,21003095,"3,833.31"
Borough Council of Kings Lynn and West Norfolk,E07000146,29/10/2020,Adapt Grant,Works,Chas D Allflatt Ltd,21002965,"3,608.26"
Borough Council of Kings Lynn and West Norfolk,E07000146,29/10/2020,Adapt Grant,Works,Chas D Allflatt Ltd,21003013,"3,439.42"
Borough Council of Kings Lynn and West Norfolk,E07000146,29/10/2020,Trade Refuse,NCC Trade Waste Disposal,Norfolk County Council,21003060,"83,431.02"
Borough Council of Kings Lynn and West Norfolk,E07000146,29/10/2020,Kings Court Kings Lynn,Repairs & Maintenance,Phs Group Plc,21002782,733.20
Borough Council of Kings Lynn and West Norfolk,E07000146,29/10/2020,Sports Grounds South,Repairs & Maintenance,Pick & Banham,22002880,802.65
Borough Council of Kings Lynn and West Norfolk,E07000146,29/10/2020,Postage Services K Court,Postages,Postage By Phone,22002907,"5,000.00"
Borough Council of Kings Lynn and West Norfolk,E07000146,29/10/2020,Postage Services K Court,Postages,Postage By Phone,22002907,11.00
Borough Council of Kings Lynn and West Norfolk,E07000146,29/10/2020,Postage Services K Court,Postages,Royal Mail Group Ltd,22002909,828.69
Borough Council of Kings Lynn and West Norfolk,E07000146,29/10/2020,Adapt Grant,Works,Stannah Lift Services Ltd,21003081,"3,146.00"
Borough Council of Kings Lynn and West Norfolk,E07000146,29/10/2020,Careline,Tools And Equipment,Tunstall Healthcare (UK) Ltd,21003001,"1,910.97"
Borough Council of Kings Lynn and West Norfolk,E07000146,29/10/2020,Cold Weather Funding,Grants,Housing Justice,21003100,"1,000.00"
Borough Council of Kings Lynn and West Norfolk,E07000146,29/10/2020,Adapt Grant,Works,T M Browne Ltd,22002877,"4,237.01"
Borough Council of Kings Lynn and West Norfolk,E07000146,29/10/2020,Disabled Facilties Grant,Works,T M Browne Ltd,22002878,"4,125.59"
Borough Council of Kings Lynn and West Norfolk,E07000146,29/10/2020,KL Innovation Centre,Repairs & Maintenance,1-2 Call Drainage & Groundwork Ltd,21003079,650.00
Borough Council of Kings Lynn and West Norfolk,E07000146,29/10/2020,ICT,Computer Software Maint,Idox Software Ltd,21002644,450.00
Borough Council of Kings Lynn and West Norfolk,E07000146,29/10/2020,ICT,Telephones,Adept Technology Group Plc,21002924,"5,403.41"
Borough Council of Kings Lynn and West Norfolk,E07000146,29/10/2020,Parking Operations - Brgh,Tek Fund,Traffic Enforcement Centre,22002900,"10,000.00"
Borough Council of Kings Lynn and West Norfolk,E07000146,29/10/2020,NORA Phase 3,External Fees/Consultancy,Westcotec Ltd,21002762,997.50
Borough Council of Kings Lynn and West Norfolk,E07000146,29/10/2020,Trade Bins,Equipment/Materials,MGB Plastics,21002630,"17,100.00"
Borough Council of Kings Lynn and West Norfolk,E07000146,29/10/2020,Handyperson Scheme K Lynn,Purchased For Resale,NRS Healthcare,21002634,449.99
Borough Council of Kings Lynn and West Norfolk,E07000146,30/10/2020,Street Lighting,Repairs & Maintenance,Westcotec Ltd,21003235,902.02
Borough Council of Kings Lynn and West Norfolk,E07000146,01/11/2020,General Property,Repairs & Maintenance,CGM Group (East Anglia) Ltd,21003687,"1,419.32"
Borough Council of Kings Lynn and West Norfolk,E07000146,01/11/2020,North Lynn Industrial Estate,Repairs & Maintenance,CGM Group (East Anglia) Ltd,21003687,28.33
Borough Council of Kings Lynn and West Norfolk,E07000146,02/11/2020,Disabled Facilties Grant,Works,Chas D Allflatt Ltd,22002925,"3,919.42"
Borough Council of Kings Lynn and West Norfolk,E07000146,02/11/2020,Adapt Grant,Works,Chas D Allflatt Ltd,21003150,"1,474.64"
Borough Council of Kings Lynn and West Norfolk,E07000146,02/11/2020,Adapt Grant,Works,Chas D Allflatt Ltd,21002858,"6,766.29"
Borough Council of Kings Lynn and West Norfolk,E07000146,02/11/2020,Parking Operations - Brgh,Repairs & Maintenance,Downham Door Services,21003004,895.00
Borough Council of Kings Lynn and West Norfolk,E07000146,02/11/2020,Sail the Wash - Sutton Br,Grants,Fenland District Council,21003135,"26,119.02"
Borough Council of Kings Lynn and West Norfolk,E07000146,02/11/2020,Cashless Pk YT(GY off St),Agency,Great Yarmouth Borough Council,21003153,"13,463.45"
Borough Council of Kings Lynn and West Norfolk,E07000146,02/11/2020,On Street Pay and Display,Repairs & Maintenance,Metric Group Ltd,21003165,315.84
Borough Council of Kings Lynn and West Norfolk,E07000146,02/11/2020,Breckland Carpark operation,Repairs & Maintenance,Metric Group Ltd,21003165,429.12
Borough Council of Kings Lynn and West Norfolk,E07000146,02/11/2020,Parking Operations - Brgh,Repairs & Maintenance,Metric Group Ltd,21003165,"5,448.24"
Borough Council of Kings Lynn and West Norfolk,E07000146,02/11/2020,Custom House & Tics,Postages,Royal Mail Group Ltd,22002930,21.72
Borough Council of Kings Lynn and West Norfolk,E07000146,02/11/2020,Financial Services,Postages,Royal Mail Group Ltd,22002930,48.59
Borough Council of Kings Lynn and West Norfolk,E07000146,02/11/2020,Benefit Administration,Postages,Royal Mail Group Ltd,22002930,396.89
Borough Council of Kings Lynn and West Norfolk,E07000146,02/11/2020,Cost of Collection - CTax,Postages,Royal Mail Group Ltd,22002930,569.76
Borough Council of Kings Lynn and West Norfolk,E07000146,02/11/2020,Planning Policy - Dept,Postages,Royal Mail Group Ltd,22002930,4.33
Borough Council of Kings Lynn and West Norfolk,E07000146,02/11/2020,Personnel Services,Postages,Royal Mail Group Ltd,22002930,0.65
Borough Council of Kings Lynn and West Norfolk,E07000146,02/11/2020,Parking Operations - Brgh,Postages,Royal Mail Group Ltd,22002930,42.25
Borough Council of Kings Lynn and West Norfolk,E07000146,02/11/2020,Adapt Grant,Works,Closomat Ltd,21002778,"4,504.00"
Borough Council of Kings Lynn and West Norfolk,E07000146,02/11/2020,Adapt Grant,Works,A Smith Contractors,21003149,"1,000.00"
Borough Council of Kings Lynn and West Norfolk,E07000146,02/11/2020,Lease Cars,Leasing,Commercial Services Trading Ltd,22002934,"3,536.02"
Borough Council of Kings Lynn and West Norfolk,E07000146,02/11/2020,Lease Cars,Leasing,Commercial Services Trading Ltd,22002934,"2,716.78"
Borough Council of Kings Lynn and West Norfolk,E07000146,02/11/2020,Lease Cars,Leasing,Commercial Services Trading Ltd,22002935,"2,104.45"
Borough Council of Kings Lynn and West Norfolk,E07000146,02/11/2020,Lease Cars,Leasing,Commercial Services Trading Ltd,22002935,"1,779.86"
Borough Council of Kings Lynn and West Norfolk,E07000146,02/11/2020,Lease Cars,Leasing,Commercial Services Trading Ltd,22002937,"1,996.77"
Borough Council of Kings Lynn and West Norfolk,E07000146,02/11/2020,Lease Cars,Leasing,Commercial Services Trading Ltd,22002937,"1,707.26"
Borough Council of Kings Lynn and West Norfolk,E07000146,02/11/2020,Council Tax Support Admin,Professional Fees,ACS Limited,21003066,850.00
Borough Council of Kings Lynn and West Norfolk,E07000146,02/11/2020,Welfare Reform Funding,Professional Fees,ACS Limited,21003066,700.00
Borough Council of Kings Lynn and West Norfolk,E07000146,02/11/2020,Lease Cars,Leasing,Commercial Services Trading Ltd,22002938,"2,030.47"
Borough Council of Kings Lynn and West Norfolk,E07000146,02/11/2020,Lease Cars,Leasing,Commercial Services Trading Ltd,22002938,"1,698.34"
Borough Council of Kings Lynn and West Norfolk,E07000146,02/11/2020,Play Areas,Repairs & Maintenance,Anvil Engineering Ltd,21003145,418.00
Borough Council of Kings Lynn and West Norfolk,E07000146,02/11/2020,Mintlyn Crematorium,Repairs & Maintenance,UPS Systems PLC,21002804,620.00
Borough Council of Kings Lynn and West Norfolk,E07000146,02/11/2020,Town Centre Manager,Christmas Lighting,Blachere Illumination UK Ltd,21002715,436.00
Borough Council of Kings Lynn and West Norfolk,E07000146,02/11/2020,Mintlyn Crematorium,Repairs & Maintenance,S Winter T/A Steve Winter Landscapes,21003146,"2,100.00"
Borough Council of Kings Lynn and West Norfolk,E07000146,02/11/2020,Street Sweeping,Materials,Aquam Water Services Ltd,21003121,935.00
Borough Council of Kings Lynn and West Norfolk,E07000146,02/11/2020,Phase 5 Town Centre KL,Water & Drainage Rates,Anglian Water Services Ltd,22002943,529.02
Borough Council of Kings Lynn and West Norfolk,E07000146,02/11/2020,Southgates HLF Scheme,Works,Shelley Signs Ltd,21003114,"1,545.00"
Borough Council of Kings Lynn and West Norfolk,E07000146,02/11/2020,Careline-Alarm Units,Equipment/Materials,Careline Care Limited,21003159,"9,750.00"
Borough Council of Kings Lynn and West Norfolk,E07000146,02/11/2020,Lease Cars,Leasing,Commercial Services Trading Ltd,22002939,"3,327.79"
Borough Council of Kings Lynn and West Norfolk,E07000146,02/11/2020,Lease Cars,Leasing,Commercial Services Trading Ltd,22002939,"2,747.36"
Borough Council of Kings Lynn and West Norfolk,E07000146,02/11/2020,Econ Dev. -  Operational,Stationery & Office,Posturite (UK) Ltd,21003103,820.90
Borough Council of Kings Lynn and West Norfolk,E07000146,02/11/2020,Austin Fields Industrial Estate,Repairs & Maintenance,Enhance,21003048,150.00
Borough Council of Kings Lynn and West Norfolk,E07000146,02/11/2020,Austin Fields Industrial Estate,Repairs & Maintenance,Enhance,21003048,625.20
Borough Council of Kings Lynn and West Norfolk,E07000146,04/11/2020,Corporate Project Manager,Covid 19,UK Power Networks (Operations ) Ltd,22003007,"5,374.36"
Borough Council of Kings Lynn and West Norfolk,E07000146,09/11/2020,Town Hall Kings Lynn,Repairs & Maintenance,Robertas Stanaitis T/A Cross Keys,21002859,"5,297.17"
Borough Council of Kings Lynn and West Norfolk,E07000146,09/11/2020,Town Hall Kings Lynn,Repairs & Maintenance,Robertas Stanaitis T/A Cross Keys,21002859,"2,146.58"
Borough Council of Kings Lynn and West Norfolk,E07000146,09/11/2020,Utility Holding,Electricity,British Gas,22002956,"8,674.02"
Borough Council of Kings Lynn and West Norfolk,E07000146,09/11/2020,Chapel Street,Professional Fees,Feilden & Mawson LLP1,21003148,"5,017.50"
Borough Council of Kings Lynn and West Norfolk,E07000146,09/11/2020,Towns Fund,Consultants Fees,Metro Dynamics Limited,21003123,"30,000.00"
Borough Council of Kings Lynn and West Norfolk,E07000146,09/11/2020,Balance Sheet,Rechargeable Works Insurance,Fastfix UK Garage Doors Ltd,21002477,"2,000.00"
Borough Council of Kings Lynn and West Norfolk,E07000146,09/11/2020,Balance Sheet,Rechargeable Works Insurance,Fastfix UK Garage Doors Ltd,21002477,150.00
Borough Council of Kings Lynn and West Norfolk,E07000146,09/11/2020,Lynnsport 3,Works,Norfolk Flooring Ltd,21003236,"4,588.28"
Borough Council of Kings Lynn and West Norfolk,E07000146,09/11/2020,Adapt Grant,Works,Closomat Ltd,21002958,"4,305.00"
Borough Council of Kings Lynn and West Norfolk,E07000146,09/11/2020,Register of Electors,Postages,Royal Mail Group Ltd,22002964,465.72
Borough Council of Kings Lynn and West Norfolk,E07000146,09/11/2020,Personnel Services,Covid 19,HFX Limited,21003056,750.00
Borough Council of Kings Lynn and West Norfolk,E07000146,09/11/2020,Personnel Services,Covid 19,HFX Limited,21003057,"2,580.00"
Borough Council of Kings Lynn and West Norfolk,E07000146,09/11/2020,Community Projects,Service Level Agreements,Shelter,21003183,"15,121.50"
Borough Council of Kings Lynn and West Norfolk,E07000146,09/11/2020,Town Hall Kings Lynn,Energy Certificate Stat,South Holland District Council,21002953,124.29
Borough Council of Kings Lynn and West Norfolk,E07000146,09/11/2020,Corn Exchange,Energy Certificate Stat,South Holland District Council,21002953,124.29
Borough Council of Kings Lynn and West Norfolk,E07000146,09/11/2020,Downham MSports Centre,Energy Certificate Stat,South Holland District Council,21002953,124.28
Borough Council of Kings Lynn and West Norfolk,E07000146,09/11/2020,Kings Court Kings Lynn,Energy Certificate Stat,South Holland District Council,21002953,124.28
Borough Council of Kings Lynn and West Norfolk,E07000146,09/11/2020,Lynnsport General Account,Energy Certificate Stat,South Holland District Council,21002953,124.28
Borough Council of Kings Lynn and West Norfolk,E07000146,09/11/2020,Oasis General Account,Energy Certificate Stat,South Holland District Council,21002953,124.29
Borough Council of Kings Lynn and West Norfolk,E07000146,09/11/2020,St James General Account,Energy Certificate Stat,South Holland District Council,21002953,124.29
Borough Council of Kings Lynn and West Norfolk,E07000146,09/11/2020,Lily Phase 4,Lily Advisor Payments,West Norfolk Deaf Association,21003270,"1,090.00"
Borough Council of Kings Lynn and West Norfolk,E07000146,09/11/2020,Kings Court Kings Lynn,Covid 19,Advance Engineering UK Ltd,21003215,"3,950.00"
Borough Council of Kings Lynn and West Norfolk,E07000146,09/11/2020,Kings Court Kings Lynn,Covid 19,Advance Engineering UK Ltd,21003214,"3,667.00"
Borough Council of Kings Lynn and West Norfolk,E07000146,09/11/2020,Kings Court Kings Lynn,Covid 19,Advance Engineering UK Ltd,21003216,"2,748.00"
Borough Council of Kings Lynn and West Norfolk,E07000146,09/11/2020,Kings Court Kings Lynn,Covid 19,Advance Engineering UK Ltd,21003213,"5,041.00"
Borough Council of Kings Lynn and West Norfolk,E07000146,09/11/2020,Adapt Grant,Works,Norse Eastern Ltd,21002956,"1,925.00"
Borough Council of Kings Lynn and West Norfolk,E07000146,09/11/2020,GM Southern Area & Lynnsport,Fuel,UK Fuels Ltd,22003003,51.04
Borough Council of Kings Lynn and West Norfolk,E07000146,09/11/2020,GM Southern Area & Lynnsport,Fuel,UK Fuels Ltd,22003003,520.99
Borough Council of Kings Lynn and West Norfolk,E07000146,09/11/2020,Public Cleansing,Fuel,UK Fuels Ltd,22003003,367.67
Borough Council of Kings Lynn and West Norfolk,E07000146,09/11/2020,St James General Account,Gas,Corona Energy Retail 4 Ltd,22002950,667.95
Borough Council of Kings Lynn and West Norfolk,E07000146,09/11/2020,Lily Phase 4,Small Projects,Idox Software Ltd,21002792,"12,763.00"
Borough Council of Kings Lynn and West Norfolk,E07000146,09/11/2020,Local Land Charges,Computer Equipment,Idox Software Ltd,21003217,"1,000.00"
Borough Council of Kings Lynn and West Norfolk,E07000146,09/11/2020,Hunstanton Bus Station & NCC Library,Contractor Works,Lovell Partnerships Ltd,21003263,"5,556.00"
Borough Council of Kings Lynn and West Norfolk,E07000146,09/11/2020,Parkway - Gaywood,Contractor Works,Lovell Partnerships Ltd,21003255,"4,555.16"
Borough Council of Kings Lynn and West Norfolk,E07000146,09/11/2020,Lynnsport 4 /5,Contractor Works,Lovell Partnerships Ltd,21003259,"3,913.82"
Borough Council of Kings Lynn and West Norfolk,E07000146,09/11/2020,Lynnsport 1,Contractor Works,Lovell Partnerships Ltd,21003257,913.50
Borough Council of Kings Lynn and West Norfolk,E07000146,09/11/2020,Hunstanton Southend Road,Contractor Works,Lovell Partnerships Ltd,21003264,"3,105.00"
Borough Council of Kings Lynn and West Norfolk,E07000146,09/11/2020,Salters Road,Contractor Works,Lovell Partnerships Ltd,21003261,"2,259.47"
Borough Council of Kings Lynn and West Norfolk,E07000146,09/11/2020,NORA Phase 4,Contractor Works,Lovell Partnerships Ltd,21003260,"1,490.40"
Borough Council of Kings Lynn and West Norfolk,E07000146,09/11/2020,NORA Phase 4,Contractor Works,Lovell Partnerships Ltd,21003265,"6,431.00"
Borough Council of Kings Lynn and West Norfolk,E07000146,09/11/2020,Lynnsport 1,Contractor Works,Lovell Partnerships Ltd,21003266,"10,504.00"
Borough Council of Kings Lynn and West Norfolk,E07000146,09/11/2020,NORA Phase 3,Contractor Works,Lovell Partnerships Ltd,21003269,"9,642.69"
Borough Council of Kings Lynn and West Norfolk,E07000146,09/11/2020,Lynnsport 3,Contractor Works,Lovell Partnerships Ltd,21003268,"345,711.95"
Borough Council of Kings Lynn and West Norfolk,E07000146,09/11/2020,Parkway - Gaywood,Contractor Works,Lovell Partnerships Ltd,21003262,"36,596.00"
Borough Council of Kings Lynn and West Norfolk,E07000146,09/11/2020,Lynnsport 3,Contractor Works,Lovell Partnerships Ltd,21003258,"26,072.47"
Borough Council of Kings Lynn and West Norfolk,E07000146,09/11/2020,Hunstanton Bus Station & NCC Library,Contractor Works,Lovell Partnerships Ltd,21003256,711.68
Borough Council of Kings Lynn and West Norfolk,E07000146,09/11/2020,Street Sweeping,Fuel,RIX Petroleum (East Anglia) Ltd,21002850,811.20
Borough Council of Kings Lynn and West Norfolk,E07000146,09/11/2020,Neighbourhood Teams,Fuel,RIX Petroleum (East Anglia) Ltd,21002850,"1,216.80"
Borough Council of Kings Lynn and West Norfolk,E07000146,09/11/2020,Adapt Grant,Works,Chas D Allflatt Ltd,21003292,"8,554.57"
Borough Council of Kings Lynn and West Norfolk,E07000146,09/11/2020,Adapt Grant,Works,Chas D Allflatt Ltd,22002996,"1,201.79"
Borough Council of Kings Lynn and West Norfolk,E07000146,09/11/2020,ICT,Computer Hardware Maint,Dell Corporation Ltd,21003130,739.80
Borough Council of Kings Lynn and West Norfolk,E07000146,09/11/2020,Internal Audit,Contracted Services,Fenland District Council,22002968,"6,907.78"
Borough Council of Kings Lynn and West Norfolk,E07000146,09/11/2020,Adapt Grant,Works,Gaswise Services Ltd,21003152,"4,459.24"
Borough Council of Kings Lynn and West Norfolk,E07000146,09/11/2020,Supplier Holding Account,Vehicle - repairs & Maint,Lawn Boy (Farm Services),22002976,643.78
Borough Council of Kings Lynn and West Norfolk,E07000146,09/11/2020,KL Arts Centre,Repairs & Maintenance,KJN Landscapes,21003190,825.00
Borough Council of Kings Lynn and West Norfolk,E07000146,09/11/2020,Planning Control,Stationery & Office,The Incom Group,21002945,490.50
Borough Council of Kings Lynn and West Norfolk,E07000146,09/11/2020,Planning Policy - Dept,Stationery & Office,The Incom Group,21002945,282.49
Borough Council of Kings Lynn and West Norfolk,E07000146,09/11/2020,Hardwick Industrial Estate,Repairs & Maintenance,Wrights & Holbeach Asphalt Ltd,21003197,840.00
Borough Council of Kings Lynn and West Norfolk,E07000146,09/11/2020,Disabled Facilties Grant,Works,T M Browne Ltd,22002998,"1,407.91"
Borough Council of Kings Lynn and West Norfolk,E07000146,09/11/2020,ICT,Communications,Adept Technology Group Plc,21003016,"2,648.63"
Borough Council of Kings Lynn and West Norfolk,E07000146,09/11/2020,Corporate,Stationery & Office,Adept Technology Group Plc,21003016,931.92
Borough Council of Kings Lynn and West Norfolk,E07000146,09/11/2020,ICT,Recoverable Fees,Adept Technology Group Plc,21003016,186.17
Borough Council of Kings Lynn and West Norfolk,E07000146,09/11/2020,Balance Sheet,Rechargeable Works Insurance,Adept Technology Group Plc,21003016,197.58
Borough Council of Kings Lynn and West Norfolk,E07000146,09/11/2020,Natl Assist Act Burials,Burial Fees-Nat.Ass.Act,Thornalley Funeral Services Ltd,22002971,"1,344.00"
Borough Council of Kings Lynn and West Norfolk,E07000146,09/11/2020,Corn Exchange Cinema,Works,Cinema Next UK Ltd,22002993,600.00
Borough Council of Kings Lynn and West Norfolk,E07000146,09/11/2020,Food Hygiene General,Shellfish Sampling,Public Health England,21002919,936.30
Borough Council of Kings Lynn and West Norfolk,E07000146,09/11/2020,Recycling Composting,Waste Processing Cost,Kier Services Environmental,21002835,"46,028.32"
Borough Council of Kings Lynn and West Norfolk,E07000146,09/11/2020,NORA Remediation,Remediation,Ashfield Japanese Knotweed Ltd,21003041,"2,500.00"
Borough Council of Kings Lynn and West Norfolk,E07000146,09/11/2020,Home Improvements Agency,Agency Staff,Seven Resourcing Ltd,21003104,"1,295.21"
Borough Council of Kings Lynn and West Norfolk,E07000146,09/11/2020,Home Improvements Agency,Agency Staff,Seven Resourcing Ltd,21003102,"1,161.55"
Borough Council of Kings Lynn and West Norfolk,E07000146,09/11/2020,Home Improvements Agency,Agency Staff,Seven Resourcing Ltd,21003115,"1,143.10"
Borough Council of Kings Lynn and West Norfolk,E07000146,09/11/2020,Home Improvements Agency,Agency Staff,Seven Resourcing Ltd,21003116,"1,100.36"
Borough Council of Kings Lynn and West Norfolk,E07000146,09/11/2020,General Property,Repairs & Maintenance,Golden Tree Surgeons Ltd,21003203,"1,130.00"
Borough Council of Kings Lynn and West Norfolk,E07000146,09/11/2020,Parks & Open Spaces,Tree Surgery,Golden Tree Surgeons Ltd,21003202,880.00
Borough Council of Kings Lynn and West Norfolk,E07000146,09/11/2020,Future High Streets Fund,Professional Fees,Anglia Business Growth Consultants Ltd,21002976,"1,200.00"
Borough Council of Kings Lynn and West Norfolk,E07000146,09/11/2020,Resort Seafront,Tools And Equipment,Metric Group Ltd,21002862,646.96
Borough Council of Kings Lynn and West Norfolk,E07000146,09/11/2020,Projections,Tools And Equipment,Penty Contractors Ltd,21003201,"3,240.00"
Borough Council of Kings Lynn and West Norfolk,E07000146,12/11/2020,Comm Infrastructure Levy,Payment to Parishes,Burnham Thorpe Parish Council,22003048,"4,202.94"
Borough Council of Kings Lynn and West Norfolk,E07000146,12/11/2020,Disabled Facilties Grant,Works,Chas D Allflatt Ltd,22003012,"11,000.00"
Borough Council of Kings Lynn and West Norfolk,E07000146,12/11/2020,Adapt Grant,Works,Chas D Allflatt Ltd,22003013,"4,670.68"
Borough Council of Kings Lynn and West Norfolk,E07000146,12/11/2020,Standard Desktop Refresh,Equipment/Materials,Dell Corporation Ltd,21003052,"30,212.20"
Borough Council of Kings Lynn and West Norfolk,E07000146,12/11/2020,Standard Desktop Refresh,Equipment/Materials,Dell Corporation Ltd,21003053,"52,090.00"
Borough Council of Kings Lynn and West Norfolk,E07000146,12/11/2020,Comm Infrastructure Levy,Payment to Parishes,Docking Parish Council,22003052,"8,224.04"
Borough Council of Kings Lynn and West Norfolk,E07000146,12/11/2020,Network Hardware holding,Repairs & Maintenance,E Akers,21003318,100.00
Borough Council of Kings Lynn and West Norfolk,E07000146,12/11/2020,CCTV,Repairs & Maintenance,E Akers,21003318,975.00
Borough Council of Kings Lynn and West Norfolk,E07000146,12/11/2020,Town Hall Kings Lynn,Repairs & Maintenance,E Akers,21003319,179.02
Borough Council of Kings Lynn and West Norfolk,E07000146,12/11/2020,Stories of Lynn,Repairs & Maintenance,E Akers,21003319,300.50
Borough Council of Kings Lynn and West Norfolk,E07000146,12/11/2020,Comm Infrastructure Levy,Payment to Parishes,East Winch & West Bilney Parish Council,22003053,786.39
Borough Council of Kings Lynn and West Norfolk,E07000146,12/11/2020,Comm Infrastructure Levy,Payment to Parishes,Emneth Parish Council,22003054,"1,101.60"
Borough Council of Kings Lynn and West Norfolk,E07000146,12/11/2020,Comm Infrastructure Levy,Payment to Parishes,Feltwell Parish Council,22003055,"2,218.20"
Borough Council of Kings Lynn and West Norfolk,E07000146,12/11/2020,NEWS Depot,Contract Cleaning,Marathon Services Ltd,22003016,775.00
Borough Council of Kings Lynn and West Norfolk,E07000146,12/11/2020,Comm Infrastructure Levy,Payment to Parishes,Methwold Parish Council,22003069,"3,244.65"
Borough Council of Kings Lynn and West Norfolk,E07000146,12/11/2020,Comm Infrastructure Levy,Payment to Parishes,Northwold Parish Council,22003070,799.20
Borough Council of Kings Lynn and West Norfolk,E07000146,12/11/2020,Comm Infrastructure Levy,Payment to Parishes,Outwell Parish Council,22003023,861.86
Borough Council of Kings Lynn and West Norfolk,E07000146,12/11/2020,Comm Infrastructure Levy,Payment to Parishes,Pentney Parish Council,22003024,"2,659.47"
Borough Council of Kings Lynn and West Norfolk,E07000146,12/11/2020,Grounds,Tools And Equipment,Rigby Taylor Ltd,22002860,650.00
Borough Council of Kings Lynn and West Norfolk,E07000146,12/11/2020,Comm Infrastructure Levy,Payment to Parishes,Roydon Parish Council,22003025,"1,127.67"
Borough Council of Kings Lynn and West Norfolk,E07000146,12/11/2020,Comm Infrastructure Levy,Payment to Parishes,Shouldham Parish Council,22003026,"4,456.80"
Borough Council of Kings Lynn and West Norfolk,E07000146,12/11/2020,Comm Infrastructure Levy,Payment to Parishes,Snettisham Parish Council,22003027,"2,390.55"
Borough Council of Kings Lynn and West Norfolk,E07000146,12/11/2020,Comm Infrastructure Levy,Payment to Parishes,Stow Bardolph Parish Council,22003029,"3,415.72"
Borough Council of Kings Lynn and West Norfolk,E07000146,12/11/2020,Comm Infrastructure Levy,Payment to Parishes,Terrington St Clement Parish Council,22003018,"6,577.93"
Borough Council of Kings Lynn and West Norfolk,E07000146,12/11/2020,Comm Infrastructure Levy,Payment to Parishes,Terrington St John Parish Council,22003030,"2,340.11"
Borough Council of Kings Lynn and West Norfolk,E07000146,12/11/2020,Comm Infrastructure Levy,Payment to Parishes,Tilney All Saints Parish Council,22003019,"4,544.24"
Borough Council of Kings Lynn and West Norfolk,E07000146,12/11/2020,Comm Infrastructure Levy,Payment to Parishes,Walpole Highway Parish Council,22003032,"1,264.48"
Borough Council of Kings Lynn and West Norfolk,E07000146,12/11/2020,Comm Infrastructure Levy,Payment to Parishes,Wereham Parish Council,22003033,"3,018.84"
Borough Council of Kings Lynn and West Norfolk,E07000146,12/11/2020,Comm Infrastructure Levy,Payment to Parishes,West Rudham Parish Council,22003034,513.00
Borough Council of Kings Lynn and West Norfolk,E07000146,12/11/2020,Comm Infrastructure Levy,Payment to Parishes,Titchwell Parish Mtg,22003020,"2,911.41"
Borough Council of Kings Lynn and West Norfolk,E07000146,12/11/2020,Supplier Holding Account,Vehicle - repairs & Maint,Paul Johnson Motor Services Ltd,22003042,"4,101.76"
Borough Council of Kings Lynn and West Norfolk,E07000146,12/11/2020,Supplier Holding Account,Vehicle - repairs & Maint,Paul Johnson Motor Services Ltd,22003042,90.00
Borough Council of Kings Lynn and West Norfolk,E07000146,12/11/2020,Adapt Grant,Works,Ely Building & Maintenance Services Ltd,22003021,"2,624.32"
Borough Council of Kings Lynn and West Norfolk,E07000146,12/11/2020,ICT,Computer Software Maint,Jobtrain Ltd,21002991,"10,450.00"
Borough Council of Kings Lynn and West Norfolk,E07000146,12/11/2020,ICT,Communications,Go Communications System Ltd,21002918,728.00
Borough Council of Kings Lynn and West Norfolk,E07000146,12/11/2020,ICT,Covid 19,Network Utilities (Systems) Ltd,21003301,"1,858.50"
Borough Council of Kings Lynn and West Norfolk,E07000146,12/11/2020,Balance Sheet,Transactions,Conservative Councillors Association,22002797,805.00
Borough Council of Kings Lynn and West Norfolk,E07000146,12/11/2020,Careline,Repairs & Maintenance,AMR Fire and Security Limited,21003313,"1,411.92"
Borough Council of Kings Lynn and West Norfolk,E07000146,12/11/2020,Home Improvements Agency,Agency Staff,Seven Resourcing Ltd,21003117,"1,125.55"
Borough Council of Kings Lynn and West Norfolk,E07000146,12/11/2020,Home Improvements Agency,Agency Staff,Seven Resourcing Ltd,21003118,"1,337.49"
Borough Council of Kings Lynn and West Norfolk,E07000146,12/11/2020,Depot Infestation,Rechargeable Works Insurance,Carter Accommodation Ltd,21003347,672.32
Borough Council of Kings Lynn and West Norfolk,E07000146,12/11/2020,Parking Operations - Brgh,Tools And Equipment,Parking and Secure Documents,21003297,445.00
Borough Council of Kings Lynn and West Norfolk,E07000146,12/11/2020,NNDC Carpark Operation,Tools And Equipment,Quality Essential Distribution Ltd,21003355,96.00
Borough Council of Kings Lynn and West Norfolk,E07000146,12/11/2020,Decrim - Operational,Tools And Equipment,Quality Essential Distribution Ltd,21003355,240.00
Borough Council of Kings Lynn and West Norfolk,E07000146,12/11/2020,Parking Operations - Brgh,Tools And Equipment,Quality Essential Distribution Ltd,21003355,384.00
Borough Council of Kings Lynn and West Norfolk,E07000146,12/11/2020,Food Hygiene/H&S Sals/Sup,Agency Staff,G2V Recruitment Ltd,21002988,"1,350.00"
Borough Council of Kings Lynn and West Norfolk,E07000146,12/11/2020,Lily Phase 4,Lily Advisor Payments,Norfolk and Waveney Mind,21003312,"2,150.00"
Borough Council of Kings Lynn and West Norfolk,E07000146,12/11/2020,General Property,Repairs & Maintenance,East Coast Insulations Ltd,21002897,675.00
Borough Council of Kings Lynn and West Norfolk,E07000146,12/11/2020,Neigbhd Planning Grant,Fees,John Parmiter Ltd,21003325,"5,499.98"
Borough Council of Kings Lynn and West Norfolk,E07000146,12/11/2020,Kings Court Kings Lynn,Covid 19,Timber Paint Solutions Ltd,21003302,650.00
Borough Council of Kings Lynn and West Norfolk,E07000146,12/11/2020,Training Holding Account,Training,Editorial Training Consultants Ltd,21003022,"1,270.00"
Borough Council of Kings Lynn and West Norfolk,E07000146,12/11/2020,Training Holding Account,Training,City College Norwich,21003338,"1,558.00"
Borough Council of Kings Lynn and West Norfolk,E07000146,12/11/2020,Mintlyn Crematorium,Beverage Supplies,Propel Finance Plc,22003078,150.00
Borough Council of Kings Lynn and West Norfolk,E07000146,12/11/2020,Mintlyn Crematorium,Beverage Supplies,Propel Finance Plc,22003078,396.50
Borough Council of Kings Lynn and West Norfolk,E07000146,12/11/2020,Mintlyn Crematorium,Beverage Supplies,Propel Finance Plc,22003078,396.50
Borough Council of Kings Lynn and West Norfolk,E07000146,12/11/2020,Adapt Grant,Works,Gaswise Services Ltd,22003059,"10,711.28"
Borough Council of Kings Lynn and West Norfolk,E07000146,12/11/2020,Comm Infrastructure Levy,Payment to Parishes,Gayton Parish Council,22003056,"1,731.21"
Borough Council of Kings Lynn and West Norfolk,E07000146,12/11/2020,Comm Infrastructure Levy,Payment to Parishes,Heacham Parish Council,22003062,"3,258.00"
Borough Council of Kings Lynn and West Norfolk,E07000146,12/11/2020,Heacham Beach,Repairs & Maintenance,Kings Lynn Signs,21003311,544.56
Borough Council of Kings Lynn and West Norfolk,E07000146,12/11/2020,NEWS Depot,Contract Cleaning,Marathon Services Ltd,22003015,"1,488.30"
Borough Council of Kings Lynn and West Norfolk,E07000146,12/11/2020,Lease Cars,Leasing,Commercial Services Trading Ltd,22002933,"2,871.51"
Borough Council of Kings Lynn and West Norfolk,E07000146,12/11/2020,Lease Cars,Leasing,Commercial Services Trading Ltd,22002933,"3,070.21"
Borough Council of Kings Lynn and West Norfolk,E07000146,12/11/2020,Lease Cars,Leasing,Commercial Services Trading Ltd,22002940,"1,554.74"
Borough Council of Kings Lynn and West Norfolk,E07000146,12/11/2020,Lease Cars,Leasing,Commercial Services Trading Ltd,22002940,"1,165.35"
Borough Council of Kings Lynn and West Norfolk,E07000146,12/11/2020,ICT,Computer Hardware Maint,Switchshop Ltd,21003062,"1,111.11"
Borough Council of Kings Lynn and West Norfolk,E07000146,12/11/2020,Mintlyn Crematorium,Repairs & Maintenance,Facultatieve Technologies Ltd,21002941,"1,513.59"
Borough Council of Kings Lynn and West Norfolk,E07000146,12/11/2020,Flitcham Workshops,Repairs - Services Chg,AMR Electrical Services Ltd,21003315,"1,050.88"
Borough Council of Kings Lynn and West Norfolk,E07000146,12/11/2020,Comm Infrastructure Levy,Payment to Parishes,Downham Market Town Council,22003051,"2,117.88"
Borough Council of Kings Lynn and West Norfolk,E07000146,12/11/2020,Training Holding Account,Training,Graffiti Removal Ltd,21002928,"1,750.00"
Borough Council of Kings Lynn and West Norfolk,E07000146,12/11/2020,Hardwick Industrial Estate,Repairs - Services Chg,1-2 Call Drainage & Groundwork Ltd,21003314,960.00
Borough Council of Kings Lynn and West Norfolk,E07000146,12/11/2020,Leisure Management Costs,Security Services Charge,LOOMIS UK Ltd,21003028,617.51
Borough Council of Kings Lynn and West Norfolk,E07000146,12/11/2020,Parking Operations - Brgh,Security Services Charge,LOOMIS UK Ltd,21003028,741.99
Borough Council of Kings Lynn and West Norfolk,E07000146,12/11/2020,NNDC Carpark Operation,Security Services Charge,LOOMIS UK Ltd,21003028,245.23
Borough Council of Kings Lynn and West Norfolk,E07000146,12/11/2020,Comm Infrastructure Levy,Payment to Parishes,Burnham Market Parish Council,22003046,"1,796.25"
Borough Council of Kings Lynn and West Norfolk,E07000146,12/11/2020,Comm Infrastructure Levy,Payment to Parishes,Brancaster Parish Council,22003045,"6,528.75"
Borough Council of Kings Lynn and West Norfolk,E07000146,12/11/2020,Street Naming & Numbering,Repairs & Maintenance,Midland Signs (Leics) t/a G & G Signs,21002994,764.65
Borough Council of Kings Lynn and West Norfolk,E07000146,12/11/2020,Street Naming & Numbering,Repairs & Maintenance,Midland Signs (Leics) t/a G & G Signs,21002994,45.00
Borough Council of Kings Lynn and West Norfolk,E07000146,13/11/2020,NORA Phase 4,External Fees/Consultancy,Norfolk County Council,22003108,"1,850.00"
Borough Council of Kings Lynn and West Norfolk,E07000146,16/11/2020,Public Cleansing,Clothing/Uniforms,V & J Knitwear Ltd,21003420,811.85
Borough Council of Kings Lynn and West Norfolk,E07000146,16/11/2020,Grounds,Clothing/Uniforms,V & J Knitwear Ltd,21003420,62.45
Borough Council of Kings Lynn and West Norfolk,E07000146,16/11/2020,Home Improvements Agency,Computer Equipment,The Incom Group,21003154,"1,675.31"
Borough Council of Kings Lynn and West Norfolk,E07000146,16/11/2020,Licensing,CRB Forms - Expenditure,Disclosure & Barring Service,22003086,40.00
Borough Council of Kings Lynn and West Norfolk,E07000146,16/11/2020,Personnel Services,Personnel DBS Checks,Disclosure & Barring Service,22003086,360.00
Borough Council of Kings Lynn and West Norfolk,E07000146,16/11/2020,Resort Seafront,Personnel DBS Checks,Disclosure & Barring Service,22003086,80.00
Borough Council of Kings Lynn and West Norfolk,E07000146,16/11/2020,Parking Operations - Brgh,Personnel DBS Checks,Disclosure & Barring Service,22003086,80.00
Borough Council of Kings Lynn and West Norfolk,E07000146,16/11/2020,Street Sweeping,Animal Removal,Peaceful Pets Ltd,22003099,467.50
Borough Council of Kings Lynn and West Norfolk,E07000146,16/11/2020,Street Sweeping,Animal Removal,Peaceful Pets Ltd,22003100,715.00
Borough Council of Kings Lynn and West Norfolk,E07000146,16/11/2020,Mintlyn Crematorium,Repairs & Maintenance,Facultatieve Technologies Ltd,21003005,"8,279.43"
Borough Council of Kings Lynn and West Norfolk,E07000146,16/11/2020,NORA Phase 3,External Fees/Consultancy,William H Brown,21003358,"1,750.00"
Borough Council of Kings Lynn and West Norfolk,E07000146,16/11/2020,Financial Services,Agency Staff,Hays Specialist Recruitment,21003351,"2,950.00"
Borough Council of Kings Lynn and West Norfolk,E07000146,16/11/2020,Dog Warden and Services,Contracted Services,Dogotel Kennels & Cattery,22003093,600.00
Borough Council of Kings Lynn and West Norfolk,E07000146,16/11/2020,Dog Warden and Services,Kennel Fees,Dogotel Kennels & Cattery,22003093,30.00
Borough Council of Kings Lynn and West Norfolk,E07000146,16/11/2020,Dog Warden and Services,Kennel Fees,Dogotel Kennels & Cattery,22003093,112.00
Borough Council of Kings Lynn and West Norfolk,E07000146,16/11/2020,Dog Warden and Services,Contracted Services,Dogotel Kennels & Cattery,22003093,275.00
Borough Council of Kings Lynn and West Norfolk,E07000146,16/11/2020,Dog Warden and Services,Kennel Fees Recd - Extl,Dogotel Kennels & Cattery,22003093,-70.50
Borough Council of Kings Lynn and West Norfolk,E07000146,16/11/2020,Parking Operations - Brgh,Tools And Equipment,Mobius Networks Ltd,21003369,633.30
Borough Council of Kings Lynn and West Norfolk,E07000146,16/11/2020,Pontoons at South Quay,Repairs & Maintenance,Rolec Services Ltd,21003386,763.00
Borough Council of Kings Lynn and West Norfolk,E07000146,16/11/2020,Disabled Facilties Grant,Works,Norfolk Stairlifts,21003373,"4,560.00"
Borough Council of Kings Lynn and West Norfolk,E07000146,16/11/2020,Stories of Lynn,Tools And Equipment,AV Parts Master Ltd,21002995,529.26
Borough Council of Kings Lynn and West Norfolk,E07000146,16/11/2020,Projections,Tools And Equipment,E Akers,21003393,475.00
Borough Council of Kings Lynn and West Norfolk,E07000146,16/11/2020,Public Cleansing,Contract Repairs,Ford & Slater DAF Kings Lynn,22003094,798.02
Borough Council of Kings Lynn and West Norfolk,E07000146,16/11/2020,Cashless Pk YT(GY off St),Agency,Great Yarmouth Borough Council,22003088,"36,282.60"
Borough Council of Kings Lynn and West Norfolk,E07000146,16/11/2020,Local Land Charges,Agency,Norfolk County Council,22003098,"9,292.18"
Borough Council of Kings Lynn and West Norfolk,E07000146,16/11/2020,Cashless Pk JF(NN on St),Agency,North Norfolk District Council,22003089,"34,817.50"
Borough Council of Kings Lynn and West Norfolk,E07000146,16/11/2020,Community Projects,Service Level Agreements,Shelter,21003362,"15,121.50"
Borough Council of Kings Lynn and West Norfolk,E07000146,16/11/2020,Research,Volume & Value,Destination Research Ltd,21002843,900.00
Borough Council of Kings Lynn and West Norfolk,E07000146,16/11/2020,Parks & Open Spaces,Tree Surgery,Golden Tree Surgeons Ltd,21003397,880.00
Borough Council of Kings Lynn and West Norfolk,E07000146,16/11/2020,Improving Attainment,Small Projects,Diocese of Norwich Education Academies,22003084,900.00
Borough Council of Kings Lynn and West Norfolk,E07000146,16/11/2020,Town Hall Kings Lynn,Professional Fees,Roderick Shelton Ltd,21003363,"8,490.00"
Borough Council of Kings Lynn and West Norfolk,E07000146,16/11/2020,W Norfolk Housing Co Ltd,Professional Fees,Gerald Eve LLP,21003375,"1,786.72"
Borough Council of Kings Lynn and West Norfolk,E07000146,16/11/2020,Depot Infestation,Rechargeable Works Insurance,Office Wise Ltd,21003244,743.30
Borough Council of Kings Lynn and West Norfolk,E07000146,16/11/2020,Rough Sleeper Fund,Covid 19,Excaliber Security Services Ltd,21003376,"2,520.00"
Borough Council of Kings Lynn and West Norfolk,E07000146,16/11/2020,Rough Sleeper Fund,Covid 19,Excaliber Security Services Ltd,21003377,"2,520.00"
Borough Council of Kings Lynn and West Norfolk,E07000146,16/11/2020,Rough Sleeper Fund,Covid 19,Excaliber Security Services Ltd,21003399,"2,520.00"
Borough Council of Kings Lynn and West Norfolk,E07000146,16/11/2020,Community Projects CRS,Service Level Agreements,SWAN Youth Opportunities Project,21003360,"2,500.00"
Borough Council of Kings Lynn and West Norfolk,E07000146,16/11/2020,Parking Operations - Brgh,Repairs & Maintenance,E Akers,21003402,100.00
Borough Council of Kings Lynn and West Norfolk,E07000146,16/11/2020,Network Hardware holding,Repairs & Maintenance,E Akers,21003402,350.00
Borough Council of Kings Lynn and West Norfolk,E07000146,16/11/2020,CCTV,Repairs & Maintenance,E Akers,21003402,900.00
Borough Council of Kings Lynn and West Norfolk,E07000146,16/11/2020,CCTV Breckland,Repairs & Maintenance,E Akers,21003403,562.50
Borough Council of Kings Lynn and West Norfolk,E07000146,16/11/2020,Hardwick Industrial Estate,Water & Drainage Rates,WAVE,22003079,609.45
Borough Council of Kings Lynn and West Norfolk,E07000146,16/11/2020,Disabled Facilties Grant,Works,Chas D Allflatt Ltd,22003085,"10,000.00"
Borough Council of Kings Lynn and West Norfolk,E07000146,16/11/2020,ICT,Computer Hardware Maint,Dell Corporation Ltd,21003379,605.60
Borough Council of Kings Lynn and West Norfolk,E07000146,16/11/2020,ICT,Computer Hardware Maint,Dell Corporation Ltd,21003380,"3,257.35"
Borough Council of Kings Lynn and West Norfolk,E07000146,16/11/2020,Public Cleansing,Cleaning Material & Equip,V & J Knitwear Ltd,21003411,417.37
Borough Council of Kings Lynn and West Norfolk,E07000146,16/11/2020,Projections,Tools And Equipment,E Akers,21003391,750.00
Borough Council of Kings Lynn and West Norfolk,E07000146,16/11/2020,Projections,Tools And Equipment,E Akers,21003391,260.96
Borough Council of Kings Lynn and West Norfolk,E07000146,17/11/2020,Financial Services,Agency Staff,Hays Specialist Recruitment,21003098,"4,130.00"
Borough Council of Kings Lynn and West Norfolk,E07000146,17/11/2020,Financial Services,Agency Staff,Hays Specialist Recruitment,21003099,"2,950.00"
Borough Council of Kings Lynn and West Norfolk,E07000146,17/11/2020,Financial Services,Agency Staff,Hays Specialist Recruitment,21003339,"2,360.00"
Borough Council of Kings Lynn and West Norfolk,E07000146,19/11/2020,ICT,Broadband Charge,British Telecommunications PLC,22003109,"1,045.02"
Borough Council of Kings Lynn and West Norfolk,E07000146,19/11/2020,Standard Desktop Refresh,Equipment/Materials,Dell Corporation Ltd,21003321,"26,604.56"
Borough Council of Kings Lynn and West Norfolk,E07000146,19/11/2020,Closed Churchyards,Repairs & Maintenance,KJN Landscapes,21003496,800.00
Borough Council of Kings Lynn and West Norfolk,E07000146,19/11/2020,Neigbhd Planning Grant,Fees,Edward F Cousins,21003489,"2,625.00"
Borough Council of Kings Lynn and West Norfolk,E07000146,19/11/2020,KL Innovation Centre,Contract Cleaning,Mr Brights Ltd,21003307,"1,518.36"
Borough Council of Kings Lynn and West Norfolk,E07000146,19/11/2020,NEWS Depot,Contract Cleaning,Marathon Services Ltd,22003112,"1,488.30"
Borough Council of Kings Lynn and West Norfolk,E07000146,19/11/2020,On Street Pay and Display,Repairs & Maintenance,Metric Group Ltd,21003423,758.58
Borough Council of Kings Lynn and West Norfolk,E07000146,19/11/2020,Parking Operations - Brgh,Repairs & Maintenance,Metric Group Ltd,21003442,906.13
Borough Council of Kings Lynn and West Norfolk,E07000146,19/11/2020,Parking Operations - Brgh,Repairs & Maintenance,Penty Contractors Ltd,21003480,"1,350.00"
Borough Council of Kings Lynn and West Norfolk,E07000146,19/11/2020,Custom House & Tics,Postages,Royal Mail Group Ltd,22003106,23.32
Borough Council of Kings Lynn and West Norfolk,E07000146,19/11/2020,Financial Services,Postages,Royal Mail Group Ltd,22003106,886.22
Borough Council of Kings Lynn and West Norfolk,E07000146,19/11/2020,Benefit Administration,Postages,Royal Mail Group Ltd,22003106,789.48
Borough Council of Kings Lynn and West Norfolk,E07000146,19/11/2020,Cost of Collection - CTax,Postages,Royal Mail Group Ltd,22003106,"3,013.00"
Borough Council of Kings Lynn and West Norfolk,E07000146,19/11/2020,Kings Lynn Bid,Postages,Royal Mail Group Ltd,22003106,130.17
Borough Council of Kings Lynn and West Norfolk,E07000146,19/11/2020,Personnel Services,Postages,Royal Mail Group Ltd,22003106,79.30
Borough Council of Kings Lynn and West Norfolk,E07000146,19/11/2020,Training Holding Account,Training,Institute Revenues Rating & Valuation,21003025,600.00
Borough Council of Kings Lynn and West Norfolk,E07000146,19/11/2020,Grounds,Clothing/Uniforms,V & J Knitwear Ltd,21003468,130.00
Borough Council of Kings Lynn and West Norfolk,E07000146,19/11/2020,Neighbourhood Teams,Clothing/Uniforms,V & J Knitwear Ltd,21003468,130.00
Borough Council of Kings Lynn and West Norfolk,E07000146,19/11/2020,Public Cleansing,Clothing/Uniforms,V & J Knitwear Ltd,21003468,260.00
Borough Council of Kings Lynn and West Norfolk,E07000146,19/11/2020,Standard Desktop Refresh,Equipment/Materials,Bechtle Direct Ltd,21003017,"2,046.00"
Borough Council of Kings Lynn and West Norfolk,E07000146,19/11/2020,Mintlyn Crematorium,Repairs & Maintenance,Facultatieve Technologies Ltd,21003427,"2,808.87"
Borough Council of Kings Lynn and West Norfolk,E07000146,19/11/2020,Mintlyn Crematorium,Repairs & Maintenance,Facultatieve Technologies Ltd,21003050,"2,119.25"
Borough Council of Kings Lynn and West Norfolk,E07000146,19/11/2020,Recycling Composting,Waste Processing Cost,Greenworld Sales Ltd t/a Greenworld,22003120,647.19
Borough Council of Kings Lynn and West Norfolk,E07000146,19/11/2020,Balance Sheet,VAT Input - VAT Only Purchases,Weightmans LLP,21003456,503.70
Borough Council of Kings Lynn and West Norfolk,E07000146,19/11/2020,Care & Repair - Fenland Agency,Agency,Morton & Hall Consulting Limited,22002929,"1,580.00"
Borough Council of Kings Lynn and West Norfolk,E07000146,19/11/2020,ICT,Computer Software Maint,Patronbase (UK) Partners Ltd,21003450,"5,930.23"
Borough Council of Kings Lynn and West Norfolk,E07000146,19/11/2020,Adapt Grant,Works,Norse Eastern Ltd,21003310,"4,438.61"
Borough Council of Kings Lynn and West Norfolk,E07000146,19/11/2020,General Property,Advertising & Marketing,Rightmove Group Ltd,21003061,570.00
Borough Council of Kings Lynn and West Norfolk,E07000146,19/11/2020,Salters Road,Contractor Works,Lovell Partnerships Ltd,21003267,"10,307.00"
Borough Council of Kings Lynn and West Norfolk,E07000146,19/11/2020,Home Improvements Agency,Agency Staff,Seven Resourcing Ltd,21003282,"1,349.51"
Borough Council of Kings Lynn and West Norfolk,E07000146,19/11/2020,Home Improvements Agency,Agency Staff,Seven Resourcing Ltd,21003283,"1,135.45"
Borough Council of Kings Lynn and West Norfolk,E07000146,19/11/2020,Parks & Open Spaces,Tree Surgery,Golden Tree Surgeons Ltd,21003430,"3,390.00"
Borough Council of Kings Lynn and West Norfolk,E07000146,19/11/2020,Homestay & Genesis,Agency,Home Group Ltd,21003448,"25,000.00"
Borough Council of Kings Lynn and West Norfolk,E07000146,19/11/2020,Parkway - Gaywood,Professional Fees,Gateley Plc,21003500,720.00
Borough Council of Kings Lynn and West Norfolk,E07000146,19/11/2020,Lynnsport 3,Professional Fees,Gateley Plc,21003501,539.00
Borough Council of Kings Lynn and West Norfolk,E07000146,19/11/2020,Food Hygiene/H&S Sals/Sup,Agency Staff,G2V Recruitment Ltd,21003023,"1,372.50"
Borough Council of Kings Lynn and West Norfolk,E07000146,19/11/2020,Parkway - Gaywood,Professional Fees,Feilden & Mawson LLP1,21003227,531.25
Borough Council of Kings Lynn and West Norfolk,E07000146,19/11/2020,Emergency Repair Grant,Works,Jarvis Roofing Ltd,21003504,500.00
Borough Council of Kings Lynn and West Norfolk,E07000146,19/11/2020,Domestic Refuse,Added Years Pension,Norfolk Pension Fund,21003449,"-3,029.85"
Borough Council of Kings Lynn and West Norfolk,E07000146,19/11/2020,Trade Refuse,Added Years Pension,Norfolk Pension Fund,21003449,714.41
Borough Council of Kings Lynn and West Norfolk,E07000146,19/11/2020,Corporate,Added Years Pension,Norfolk Pension Fund,21003449,"21,036.66"
Borough Council of Kings Lynn and West Norfolk,E07000146,19/11/2020,ICT,Computer Software Maint,TecTrade Computers Limited,21003495,"4,741.00"
Borough Council of Kings Lynn and West Norfolk,E07000146,19/11/2020,Register of Electors,Stationery & Office,Civica Election Services Ltd,22002970,"6,305.21"
Borough Council of Kings Lynn and West Norfolk,E07000146,19/11/2020,Mintlyn Crematorium,Trade Waste,Facultatieve Technologies Ltd,21003461,937.55
Borough Council of Kings Lynn and West Norfolk,E07000146,19/11/2020,Mintlyn Crematorium,Repairs & Maintenance,Facultatieve Technologies Ltd,21003425,"1,206.08"
Borough Council of Kings Lynn and West Norfolk,E07000146,19/11/2020,Mintlyn Crematorium,Repairs & Maintenance,Facultatieve Technologies Ltd,21003426,"1,262.66"
Borough Council of Kings Lynn and West Norfolk,E07000146,23/11/2020,Domestic Refuse,Contracted Services,Kier Services Environmental,21003574,"101,378.31"
Borough Council of Kings Lynn and West Norfolk,E07000146,23/11/2020,Domestic Refuse,Clinical & Medical Waste,Kier Services Environmental,21003574,"4,301.54"
Borough Council of Kings Lynn and West Norfolk,E07000146,23/11/2020,Dry Box Collection Scheme,Contracted Services,Kier Services Environmental,21003574,"99,508.02"
Borough Council of Kings Lynn and West Norfolk,E07000146,23/11/2020,Recycling Composting,Contracted Services,Kier Services Environmental,21003574,"46,031.89"
Borough Council of Kings Lynn and West Norfolk,E07000146,23/11/2020,Food Waste,Contracted Services,Kier Services Environmental,21003574,"26,285.03"
Borough Council of Kings Lynn and West Norfolk,E07000146,23/11/2020,Trade Refuse,Contracted Services,Kier Services Environmental,21003574,"10,241.38"
Borough Council of Kings Lynn and West Norfolk,E07000146,23/11/2020,Recycling Commercial,Contracted Services,Kier Services Environmental,21003574,859.66
Borough Council of Kings Lynn and West Norfolk,E07000146,23/11/2020,Food Waste,Bins,Kier Services Environmental,21003574,"2,651.79"
Borough Council of Kings Lynn and West Norfolk,E07000146,23/11/2020,Refuse & Recyc Mgmt,Contracted Services,Kier Services Environmental,21003574,407.02
Borough Council of Kings Lynn and West Norfolk,E07000146,23/11/2020,CCTV,Repairs & Maintenance,Quality Essential Distribution Ltd,21003222,"14,610.66"
Borough Council of Kings Lynn and West Norfolk,E07000146,23/11/2020,Network Hardware holding,Repairs & Maintenance,Quality Essential Distribution Ltd,21003222,"5,063.40"
Borough Council of Kings Lynn and West Norfolk,E07000146,23/11/2020,Cashless Pk JC(SN on St),Transaction Fee,Chipside Ltd,21003557,2.00
Borough Council of Kings Lynn and West Norfolk,E07000146,23/11/2020,Cashless Pk JT(Brd on St),Transaction Fee,Chipside Ltd,21003557,4.00
Borough Council of Kings Lynn and West Norfolk,E07000146,23/11/2020,Cashless Pk JG (Bk on St),Transaction Fee,Chipside Ltd,21003557,10.00
Borough Council of Kings Lynn and West Norfolk,E07000146,23/11/2020,Cashless Pk JE(NN on St),Transaction Fee,Chipside Ltd,21003557,116.00
Borough Council of Kings Lynn and West Norfolk,E07000146,23/11/2020,Cashless Park KR (KLWN on ST),Transaction Fee,Chipside Ltd,21003557,207.25
Borough Council of Kings Lynn and West Norfolk,E07000146,23/11/2020,Cashless Pk JI(GYon St),Transaction Fee,Chipside Ltd,21003557,415.67
Borough Council of Kings Lynn and West Norfolk,E07000146,23/11/2020,Cashless Pk YT(GY off St),Transaction Fee,Chipside Ltd,21003557,659.75
Borough Council of Kings Lynn and West Norfolk,E07000146,23/11/2020,Cashless Pk JF(NN on St),Transaction Fee,Chipside Ltd,21003557,931.50
Borough Council of Kings Lynn and West Norfolk,E07000146,23/11/2020,Cashless Park KZ (KLWN off ST),Transaction Fee,Chipside Ltd,21003557,"2,627.08"
Borough Council of Kings Lynn and West Norfolk,E07000146,23/11/2020,Refuse - Black Bins,Equipment/Materials,UK Container Maintenance Ltd,21003172,"3,900.00"
Borough Council of Kings Lynn and West Norfolk,E07000146,23/11/2020,Corporate,Fees,AECOM Ltd,21003400,"3,214.65"
Borough Council of Kings Lynn and West Norfolk,E07000146,23/11/2020,Cashless Pk JC(SN on St),Merchant Fees,Chipside Ltd,21003559,0.09
Borough Council of Kings Lynn and West Norfolk,E07000146,23/11/2020,Cashless Pk JT(Brd on St),Merchant Fees,Chipside Ltd,21003559,0.53
Borough Council of Kings Lynn and West Norfolk,E07000146,23/11/2020,Cashless Pk JG (Bk on St),Merchant Fees,Chipside Ltd,21003559,1.19
Borough Council of Kings Lynn and West Norfolk,E07000146,23/11/2020,Cashless Pk JE(NN on St),Merchant Fees,Chipside Ltd,21003559,14.52
Borough Council of Kings Lynn and West Norfolk,E07000146,23/11/2020,Cashless Park KR (KLWN on ST),Merchant Fees,Chipside Ltd,21003559,37.00
Borough Council of Kings Lynn and West Norfolk,E07000146,23/11/2020,Cashless Pk JI(GYon St),Merchant Fees,Chipside Ltd,21003559,187.56
Borough Council of Kings Lynn and West Norfolk,E07000146,23/11/2020,Cashless Pk JF(NN on St),Merchant Fees,Chipside Ltd,21003559,333.66
Borough Council of Kings Lynn and West Norfolk,E07000146,23/11/2020,Cashless Pk YT(GY off St),Merchant Fees,Chipside Ltd,21003559,344.24
Borough Council of Kings Lynn and West Norfolk,E07000146,23/11/2020,Cashless Park KZ (KLWN off ST),Merchant Fees,Chipside Ltd,21003559,"1,042.15"
Borough Council of Kings Lynn and West Norfolk,E07000146,23/11/2020,Housing Options Programme,Homeless Prevention Fund,Sequence UK Ltd,22003137,635.00
Borough Council of Kings Lynn and West Norfolk,E07000146,23/11/2020,Postage Services K Court,Repairs & Maintenance,Pitney Bowes Ltd,22003128,"1,913.85"
Borough Council of Kings Lynn and West Norfolk,E07000146,23/11/2020,Resort Seafront,Memorial Seats (Resale),Street Master (South Wales) Ltd,21003361,"1,878.00"
Borough Council of Kings Lynn and West Norfolk,E07000146,23/11/2020,Revs & Bens System Replacement,Computer Equip (Software),Civica UK Ltd,21003128,"1,750.00"
Borough Council of Kings Lynn and West Norfolk,E07000146,23/11/2020,Financial Services,Postages,Royal Mail Group Ltd,22003127,30.96
Borough Council of Kings Lynn and West Norfolk,E07000146,23/11/2020,Benefit Administration,Postages,Royal Mail Group Ltd,22003127,366.36
Borough Council of Kings Lynn and West Norfolk,E07000146,23/11/2020,Cost of Collection - CTax,Postages,Royal Mail Group Ltd,22003127,"1,109.60"
Borough Council of Kings Lynn and West Norfolk,E07000146,23/11/2020,Kings Lynn Bid,Postages,Royal Mail Group Ltd,22003127,103.20
Borough Council of Kings Lynn and West Norfolk,E07000146,23/11/2020,Licensing,Tools And Equipment,VIP System Limited,21003239,"1,446.97"
Borough Council of Kings Lynn and West Norfolk,E07000146,23/11/2020,CCTV Control Room Upgrade,Equipment/Materials,Headsets4Business Ltd,21003138,"1,395.00"
Borough Council of Kings Lynn and West Norfolk,E07000146,23/11/2020,Adapt Grant,Works,T M Browne Ltd,22003143,"4,000.00"
Borough Council of Kings Lynn and West Norfolk,E07000146,23/11/2020,Handyperson Scheme K Lynn,Contractor Payments,Chas D Allflatt Ltd,21003553,"1,922.23"
Borough Council of Kings Lynn and West Norfolk,E07000146,23/11/2020,Handyperson Scheme K Lynn,Contractor Payments,T M Browne Ltd,21003550,"1,653.35"
Borough Council of Kings Lynn and West Norfolk,E07000146,23/11/2020,Handyperson Scheme K Lynn,Contractor Payments,Chas D Allflatt Ltd,21003565,"1,353.12"
Borough Council of Kings Lynn and West Norfolk,E07000146,23/11/2020,Handyperson Scheme K Lynn,Contractor Payments,Chas D Allflatt Ltd,21003558,754.50
Borough Council of Kings Lynn and West Norfolk,E07000146,23/11/2020,Resort Seafront,Repairs & Maintenance,Penty Contractors Ltd,21003552,600.00
Borough Council of Kings Lynn and West Norfolk,E07000146,23/11/2020,Hardwick Narrows Industrial Estate,Repairs & Maintenance,Simon Wade Electrical Engineer,21003528,180.00
Borough Council of Kings Lynn and West Norfolk,E07000146,23/11/2020,Hardwick Narrows Industrial Estate,Repairs & Maintenance,Simon Wade Electrical Engineer,21003528,390.00
Borough Council of Kings Lynn and West Norfolk,E07000146,23/11/2020,North Lynn Managed Workshops,Repairs & Maintenance,PH Door Services,21003527,475.00
Borough Council of Kings Lynn and West Norfolk,E07000146,23/11/2020,Handyperson Scheme K Lynn,Contractor Payments,A Smith Contractors,21003567,535.00
Borough Council of Kings Lynn and West Norfolk,E07000146,23/11/2020,Parking Operations - Brgh,Tools And Equipment,Metric Group Ltd,21003101,"9,850.10"
Borough Council of Kings Lynn and West Norfolk,E07000146,23/11/2020,Handyperson Scheme K Lynn,Contractor Payments,Chas D Allflatt Ltd,21003530,"5,201.76"
Borough Council of Kings Lynn and West Norfolk,E07000146,23/11/2020,Handyperson Scheme K Lynn,Contractor Payments,T M Browne Ltd,21003548,"4,493.73"
Borough Council of Kings Lynn and West Norfolk,E07000146,23/11/2020,Open Cemeteries,Repairs & Maintenance,Richard King Memorials Ltd,21003184,160.00
Borough Council of Kings Lynn and West Norfolk,E07000146,23/11/2020,Open Cemeteries,Repairs & Maintenance,Richard King Memorials Ltd,21003184,368.00
Borough Council of Kings Lynn and West Norfolk,E07000146,23/11/2020,Crematorium Trading Account,Memorial Plates,Anglia Sign Casting Ltd,21003158,"1,167.04"
Borough Council of Kings Lynn and West Norfolk,E07000146,23/11/2020,Crematorium Trading Account,Renewal Plates - Exp,Anglia Sign Casting Ltd,21003158,15.00
Borough Council of Kings Lynn and West Norfolk,E07000146,26/11/2020,Balance Sheet,VAT Input - VAT Only Purchases,Marston Group Ltd,21003534,"1,102.67"
Borough Council of Kings Lynn and West Norfolk,E07000146,26/11/2020,Parkway - Gaywood,Professional Fees,Gateley Plc,21003596,"6,500.00"
Borough Council of Kings Lynn and West Norfolk,E07000146,26/11/2020,KLAC Complex Rentals,Repairs & Maintenance,AMR Fire and Security Limited,21003588,883.65
Borough Council of Kings Lynn and West Norfolk,E07000146,26/11/2020,Lynnsport & Leisure Park,Repairs & Maintenance,Ridge & Partners LLP,21003221,"1,600.00"
Borough Council of Kings Lynn and West Norfolk,E07000146,26/11/2020,Food Hygiene/H&S Sals/Sup,Agency Staff,G2V Recruitment Ltd,21003175,"1,350.00"
Borough Council of Kings Lynn and West Norfolk,E07000146,26/11/2020,Rough Sleeper Fund,Covid 19,Excaliber Security Services Ltd,21003595,"2,520.00"
Borough Council of Kings Lynn and West Norfolk,E07000146,26/11/2020,KL Innovation Centre,Repairs & Maintenance,Lucid Systems Ltd,21003625,499.80
Borough Council of Kings Lynn and West Norfolk,E07000146,26/11/2020,Utility Holding,Electricity,British Gas,22003172,"3,357.73"
Borough Council of Kings Lynn and West Norfolk,E07000146,26/11/2020,Utility Holding,Electricity,British Gas,22003173,"7,474.89"
Borough Council of Kings Lynn and West Norfolk,E07000146,26/11/2020,Chapel Street,Professional Fees,Feilden & Mawson LLP1,21003680,"10,035.00"
Borough Council of Kings Lynn and West Norfolk,E07000146,26/11/2020,Flexi hmless Suppt Grant,Homeless Prevention Fund,Sanctuary Affordable Housing Ltd,21003631,"5,000.00"
Borough Council of Kings Lynn and West Norfolk,E07000146,26/11/2020,Homestay & Genesis,Agency,Sanctuary Affordable Housing Ltd,21003632,"12,500.00"
Borough Council of Kings Lynn and West Norfolk,E07000146,26/11/2020,Project Mmgt / Marketing,Professional Fees,EDP Environmental Ltd,21003668,"4,350.00"
Borough Council of Kings Lynn and West Norfolk,E07000146,26/11/2020,ICT,Telephones,British Telecommunications PLC,22003170,40.04
Borough Council of Kings Lynn and West Norfolk,E07000146,26/11/2020,ICT,Telephones,British Telecommunications PLC,22003170,501.10
Borough Council of Kings Lynn and West Norfolk,E07000146,26/11/2020,ICT,Communications,Vodafone Ltd,21003641,"3,036.96"
Borough Council of Kings Lynn and West Norfolk,E07000146,26/11/2020,Adapt Grant,Works,Chas D Allflatt Ltd,21003661,"10,793.90"
Borough Council of Kings Lynn and West Norfolk,E07000146,26/11/2020,Adapt Grant,Works,Chas D Allflatt Ltd,22003156,"1,061.12"
Borough Council of Kings Lynn and West Norfolk,E07000146,26/11/2020,North Lynn Industrial Estate,Repairs & Maintenance,Goodwill Roofing & Cladding Ltd,21003664,"9,500.00"
Borough Council of Kings Lynn and West Norfolk,E07000146,26/11/2020,Postage Services K Court,Postages,DX Network Services Ltd,21003248,"1,215.26"
Borough Council of Kings Lynn and West Norfolk,E07000146,26/11/2020,Parking Operations - Brgh,Repairs & Maintenance,Penty Contractors Ltd,21003651,420.00
Borough Council of Kings Lynn and West Norfolk,E07000146,26/11/2020,Parking Operations - Brgh,Repairs & Maintenance,Penty Contractors Ltd,21003653,"1,600.00"
Borough Council of Kings Lynn and West Norfolk,E07000146,26/11/2020,Resort Seafront,Repairs & Maintenance,Penty Contractors Ltd,21003655,800.00
Borough Council of Kings Lynn and West Norfolk,E07000146,26/11/2020,Improving Attainment,Small Projects,EMAT t/a Emneth Academy,22003186,900.00
Borough Council of Kings Lynn and West Norfolk,E07000146,26/11/2020,Register of Electors,Stationery & Office,Civica Election Services Ltd,22003141,601.40
Borough Council of Kings Lynn and West Norfolk,E07000146,26/11/2020,NORA Phase 3,External Fees/Consultancy,William H Brown,21003644,"1,750.00"
Borough Council of Kings Lynn and West Norfolk,E07000146,26/11/2020,Dry Box Collection Scheme,Waste Processing Cost,Norse Environmental Services,21003541,"51,008.56"
Borough Council of Kings Lynn and West Norfolk,E07000146,26/11/2020,ICT,MPhone Usage & Top-up,Vodafone (Corporate) Ltd,21003642,852.07
Borough Council of Kings Lynn and West Norfolk,E07000146,26/11/2020,ICT,MPhone Usage & Top-up,Vodafone (Corporate) Ltd,21003642,105.00
Borough Council of Kings Lynn and West Norfolk,E07000146,26/11/2020,ICT,MPhone Usage & Top-up,Vodafone (Corporate) Ltd,21003643,"6,387.61"
Borough Council of Kings Lynn and West Norfolk,E07000146,26/11/2020,ICT,MPhone Usage & Top-up,Vodafone (Corporate) Ltd,21003643,42.00
Borough Council of Kings Lynn and West Norfolk,E07000146,26/11/2020,Welfare Reform Funding,Professional Fees,Civica UK Ltd,21003147,"8,250.00"
Borough Council of Kings Lynn and West Norfolk,E07000146,26/11/2020,Public Cleansing,Vehicle - repairs & Maint,R B Trucks Ltd,22003166,790.72
Borough Council of Kings Lynn and West Norfolk,E07000146,26/11/2020,Tech/Officers/Repairs,Vehicle - repairs & Maint,Trakm8 Limited,22003004,70.98
Borough Council of Kings Lynn and West Norfolk,E07000146,26/11/2020,Grounds,Vehicle - repairs & Maint,Trakm8 Limited,22003004,111.99
Borough Council of Kings Lynn and West Norfolk,E07000146,26/11/2020,Careline,Vehicle - repairs & Maint,Trakm8 Limited,22003004,111.99
Borough Council of Kings Lynn and West Norfolk,E07000146,26/11/2020,Domestic Refuse,Vehicle - repairs & Maint,Trakm8 Limited,22003004,51.00
Borough Council of Kings Lynn and West Norfolk,E07000146,26/11/2020,GM Central Area,Vehicle - repairs & Maint,Trakm8 Limited,22003004,51.00
Borough Council of Kings Lynn and West Norfolk,E07000146,26/11/2020,Public Cleansing,Vehicle - repairs & Maint,Trakm8 Limited,22003004,51.00
Borough Council of Kings Lynn and West Norfolk,E07000146,26/11/2020,GM Central Area,Vehicle - repairs & Maint,Trakm8 Limited,22003031,204.84
Borough Council of Kings Lynn and West Norfolk,E07000146,26/11/2020,Grounds,Vehicle - repairs & Maint,Trakm8 Limited,22003031,204.84
Borough Council of Kings Lynn and West Norfolk,E07000146,26/11/2020,The Walks,Vehicle - repairs & Maint,Trakm8 Limited,22003031,204.84
Borough Council of Kings Lynn and West Norfolk,E07000146,26/11/2020,Public Cleansing,Vehicle - repairs & Maint,Trakm8 Limited,22003031,204.84
Borough Council of Kings Lynn and West Norfolk,E07000146,26/11/2020,Domestic Refuse,Vehicle - repairs & Maint,Trakm8 Limited,22003031,204.84
Borough Council of Kings Lynn and West Norfolk,E07000146,26/11/2020,Resort Seafront,Covid 19,GrafityP,21003226,740.60
Borough Council of Kings Lynn and West Norfolk,E07000146,26/11/2020,Careline,Purchased For Resale,Supra UK Ltd T/A The Key Safe Company,21003173,"1,698.00"
Borough Council of Kings Lynn and West Norfolk,E07000146,26/11/2020,ICT,Communications,Adept Technology Group Plc,21003662,"2,654.40"
Borough Council of Kings Lynn and West Norfolk,E07000146,26/11/2020,Corporate,Stationery & Office,Adept Technology Group Plc,21003662,931.92
Borough Council of Kings Lynn and West Norfolk,E07000146,26/11/2020,ICT,Recoverable Fees,Adept Technology Group Plc,21003662,186.17
Borough Council of Kings Lynn and West Norfolk,E07000146,26/11/2020,Balance Sheet,Rechargeable Works Insurance,Adept Technology Group Plc,21003662,197.58
Borough Council of Kings Lynn and West Norfolk,E07000146,26/11/2020,ICT,Telephones,Adept Technology Group Plc,21003663,"5,778.41"
Borough Council of Kings Lynn and West Norfolk,E07000146,26/11/2020,Handyperson Scheme K Lynn,Purchased For Resale,Norse Eastern Ltd,21003246,469.45
Borough Council of Kings Lynn and West Norfolk,E07000146,26/11/2020,Enforcement,Direct Action Fees,Norse Eastern Ltd,21003284,"1,954.08"
Borough Council of Kings Lynn and West Norfolk,E07000146,26/11/2020,Decrim - Operational,Miscellaneous,Patrol,21003404,"2,274.30"
Borough Council of Kings Lynn and West Norfolk,E07000146,26/11/2020,General Property,Advertising & Marketing,Your Local Paper Ltd,22003193,970.83
Borough Council of Kings Lynn and West Norfolk,E07000146,26/11/2020,Street Lighting,Repairs & Maintenance,Westcotec Ltd,22002995,"1,172.65"
Borough Council of Kings Lynn and West Norfolk,E07000146,26/11/2020,Street Lighting,Repairs & Maintenance,Westcotec Ltd,21003234,679.41
Borough Council of Kings Lynn and West Norfolk,E07000146,26/11/2020,Project Mmgt / Marketing,Professional Fees,EDP Environmental Ltd,21003669,870.00
Borough Council of Kings Lynn and West Norfolk,E07000146,26/11/2020,Emergency Repair Grant,Works,Noble Roofing Ltd,21003578,500.00
Borough Council of Kings Lynn and West Norfolk,E07000146,26/11/2020,Public conveniences,Sewerage/Cesspool Empty,BACO-Compak (Norfolk) Ltd,22003145,615.00
Borough Council of Kings Lynn and West Norfolk,E07000146,26/11/2020,Improving Attainment,Small Projects,EMAT t/a Southery Academy,22003187,661.66
Borough Council of Kings Lynn and West Norfolk,E07000146,26/11/2020,North Lynn Industrial Estate,Repairs & Maintenance,Ridge & Partners LLP,21003220,"1,437.00"
Borough Council of Kings Lynn and West Norfolk,E07000146,26/11/2020,Rough Sleeper Fund,Covid 19,Bunkabin Ltd,21003382,504.00
Borough Council of Kings Lynn and West Norfolk,E07000146,26/11/2020,Rough Sleeper Fund,Covid 19,Bunkabin Ltd,21003383,"1,512.00"
Borough Council of Kings Lynn and West Norfolk,E07000146,30/11/2020,Public conveniences,Covid 19,BACO-Compak (Norfolk) Ltd,22003233,"2,620.00"
Borough Council of Kings Lynn and West Norfolk,E07000146,30/11/2020,Public conveniences,Sewerage/Cesspool Empty,BACO-Compak (Norfolk) Ltd,22003233,410.00
Borough Council of Kings Lynn and West Norfolk,E07000146,30/11/2020,Public conveniences,Sewerage/Cesspool Empty,BACO-Compak (Norfolk) Ltd,22003203,910.00
Borough Council of Kings Lynn and West Norfolk,E07000146,30/11/2020,Public conveniences,Covid 19,BACO-Compak (Norfolk) Ltd,22003203,410.00
Borough Council of Kings Lynn and West Norfolk,E07000146,30/11/2020,Disabled Facilties Grant,Works,Chas D Allflatt Ltd,22003212,"5,546.49"
Borough Council of Kings Lynn and West Norfolk,E07000146,30/11/2020,Adapt Grant,Works,Chas D Allflatt Ltd,22003211,905.42
Borough Council of Kings Lynn and West Norfolk,E07000146,30/11/2020,North Lynn Industrial Estate,Repairs & Maintenance,CGM Group (East Anglia) Ltd,22003195,28.33
Borough Council of Kings Lynn and West Norfolk,E07000146,30/11/2020,General Property,Repairs & Maintenance,CGM Group (East Anglia) Ltd,22003195,"1,419.32"
Borough Council of Kings Lynn and West Norfolk,E07000146,30/11/2020,North Lynn Industrial Estate,Repairs & Maintenance,CGM Group (East Anglia) Ltd,22003196,28.33
Borough Council of Kings Lynn and West Norfolk,E07000146,30/11/2020,General Property,Repairs & Maintenance,CGM Group (East Anglia) Ltd,22003196,"1,419.32"
Borough Council of Kings Lynn and West Norfolk,E07000146,30/11/2020,North Lynn Industrial Estate,Repairs & Maintenance,CGM Group (East Anglia) Ltd,22003197,28.33
Borough Council of Kings Lynn and West Norfolk,E07000146,30/11/2020,General Property,Repairs & Maintenance,CGM Group (East Anglia) Ltd,22003197,"1,419.32"
Borough Council of Kings Lynn and West Norfolk,E07000146,30/11/2020,North Lynn Industrial Estate,Repairs & Maintenance,CGM Group (East Anglia) Ltd,22003198,28.33
Borough Council of Kings Lynn and West Norfolk,E07000146,30/11/2020,General Property,Repairs & Maintenance,CGM Group (East Anglia) Ltd,22003198,"1,419.32"
Borough Council of Kings Lynn and West Norfolk,E07000146,30/11/2020,North Lynn Industrial Estate,Repairs & Maintenance,CGM Group (East Anglia) Ltd,22003199,28.33
Borough Council of Kings Lynn and West Norfolk,E07000146,30/11/2020,General Property,Repairs & Maintenance,CGM Group (East Anglia) Ltd,22003199,"1,419.32"
Borough Council of Kings Lynn and West Norfolk,E07000146,30/11/2020,North Lynn Industrial Estate,Repairs & Maintenance,CGM Group (East Anglia) Ltd,22003200,28.33
Borough Council of Kings Lynn and West Norfolk,E07000146,30/11/2020,General Property,Repairs & Maintenance,CGM Group (East Anglia) Ltd,22003200,"1,419.32"
Borough Council of Kings Lynn and West Norfolk,E07000146,30/11/2020,North Lynn Industrial Estate,Repairs & Maintenance,CGM Group (East Anglia) Ltd,22003201,28.33
Borough Council of Kings Lynn and West Norfolk,E07000146,30/11/2020,General Property,Repairs & Maintenance,CGM Group (East Anglia) Ltd,22003201,"1,419.32"
Borough Council of Kings Lynn and West Norfolk,E07000146,30/11/2020,North Lynn Industrial Estate,Repairs & Maintenance,CGM Group (East Anglia) Ltd,22003202,28.33
Borough Council of Kings Lynn and West Norfolk,E07000146,30/11/2020,General Property,Repairs & Maintenance,CGM Group (East Anglia) Ltd,22003202,"1,419.32"
Borough Council of Kings Lynn and West Norfolk,E07000146,30/11/2020,Handyperson Scheme K Lynn,Contractor Payments,T M Browne Ltd,21003690,"2,727.74"
Borough Council of Kings Lynn and West Norfolk,E07000146,30/11/2020,St Johns Business Park,Repairs - Services Chg,1-2 Call Drainage & Groundwork Ltd,21003710,540.00
Borough Council of Kings Lynn and West Norfolk,E07000146,30/11/2020,Trafalgar (DM)  Industrial Estate,Repairs - Services Chg,1-2 Call Drainage & Groundwork Ltd,21003712,540.00
Borough Council of Kings Lynn and West Norfolk,E07000146,30/11/2020,Trafalgar (DM)  Industrial Estate,Repairs - Services Chg,1-2 Call Drainage & Groundwork Ltd,21003713,540.00
Borough Council of Kings Lynn and West Norfolk,E07000146,30/11/2020,ICT,Computer Software Maint,Idox Software Ltd,21003737,475.00
Borough Council of Kings Lynn and West Norfolk,E07000146,30/11/2020,ICT,Computer Software Maint,Idox Software Ltd,21003738,950.00
Borough Council of Kings Lynn and West Norfolk,E07000146,30/11/2020,Kings Court Kings Lynn,Tools And Equipment,Trade UK Account,21003718,109.97
Borough Council of Kings Lynn and West Norfolk,E07000146,30/11/2020,Regis Place Unit1-Non Inv Care,Tools And Equipment,Trade UK Account,21003718,199.98
Borough Council of Kings Lynn and West Norfolk,E07000146,30/11/2020,DWP at Kings Court,Tools And Equipment,Trade UK Account,21003718,599.95
Borough Council of Kings Lynn and West Norfolk,E07000146,30/11/2020,Kings Court Kings Lynn,Tools And Equipment,Trade UK Account,21003718,39.97
Borough Council of Kings Lynn and West Norfolk,E07000146,30/11/2020,CCTV,Repairs & Maintenance,Net-Ctrl Ltd,21003368,"2,971.35"
Borough Council of Kings Lynn and West Norfolk,E07000146,30/11/2020,Adapt Grant,Works,Preferred Access Ramp Systems Ltd,21003691,"2,483.00"
Borough Council of Kings Lynn and West Norfolk,E07000146,30/11/2020,Balance Sheet,VAT Input - VAT Only Purchases,Newlyn PLC,22003219,"2,053.33"
Borough Council of Kings Lynn and West Norfolk,E07000146,30/11/2020,Balance Sheet,VAT Input - VAT Only Purchases,Newlyn PLC,22003225,"1,347.99"
Borough Council of Kings Lynn and West Norfolk,E07000146,30/11/2020,Homechoice,Computer Software Maint,Home Connections Lettings Ltd,21003736,"6,122.00"
Borough Council of Kings Lynn and West Norfolk,E07000146,30/11/2020,Depot Infestation,Rechargeable Works Insurance,Carter Accommodation Ltd,21003754,672.32
Borough Council of Kings Lynn and West Norfolk,E07000146,30/11/2020,KC Office accom rental,Contract Security,MPD FM Ltd,21003354,"7,025.85"
Borough Council of Kings Lynn and West Norfolk,E07000146,30/11/2020,Leisure Management Costs,Agency Payments Received,Alive West Norfolk,22003232,"13,469.12"
Borough Council of Kings Lynn and West Norfolk,E07000146,30/11/2020,Leisure Management Costs,Agency Payments Received,Alive West Norfolk,22003232,-238.93
Borough Council of Kings Lynn and West Norfolk,E07000146,30/11/2020,CCTV Control Room Upgrade,Equipment/Materials,4Sight Communications,21003233,"13,152.86"
Borough Council of Kings Lynn and West Norfolk,E07000146,30/11/2020,Trade Bins,Equipment/Materials,Egbert H Taylor,21003671,"3,833.85"
Borough Council of Kings Lynn and West Norfolk,E07000146,30/11/2020,Green Bins/Recycling,Equipment/Materials,Egbert H Taylor,21003671,255.59
Borough Council of Kings Lynn and West Norfolk,E07000146,30/11/2020,Green Bins/Recycling,Equipment/Materials,Egbert H Taylor,21003670,"3,578.26"
Borough Council of Kings Lynn and West Norfolk,E07000146,30/11/2020,Towns Fund,Consultants Fees,Metro Dynamics Limited,21003370,"39,252.00"
Borough Council of Kings Lynn and West Norfolk,E07000146,30/11/2020,CCTV,Repairs & Maintenance,E Akers,21003724,967.98
Borough Council of Kings Lynn and West Norfolk,E07000146,30/11/2020,Property Services,Rent,Le Strange Estate,22003215,"3,587.50"
Borough Council of Kings Lynn and West Norfolk,E07000146,30/11/2020,Property Services,Rent,Le Strange Estate,22003216,"25,141.50"
Borough Council of Kings Lynn and West Norfolk,E07000146,30/11/2020,Property Services,Rent,Le Strange Estate,22003217,"1,750.00"
Borough Council of Kings Lynn and West Norfolk,E07000146,30/11/2020,KL Innovation Centre,Repairs & Maintenance,Mr Brights Ltd,21003463,436.00
Borough Council of Kings Lynn and West Norfolk,E07000146,30/11/2020,Grounds,Materials,Rigby Taylor Ltd,21003387,"1,694.40"
Borough Council of Kings Lynn and West Norfolk,E07000146,30/11/2020,Grounds,Materials,Rigby Taylor Ltd,21003387,516.00
Borough Council of Kings Lynn and West Norfolk,E07000146,30/11/2020,General Property,Repairs & Maintenance,C G Godfrey Ltd,21003722,"1,171.20"
Borough Council of Kings Lynn and West Norfolk,E07000146,30/11/2020,Domestic Refuse,Waste Processing Cost,Norse Environmental Services,21003745,"33,071.31"
Borough Council of Kings Lynn and West Norfolk,E07000146,30/11/2020,ICT,Repairs & Maintenance,PPL PRS Ltd,21003747,775.58
Borough Council of Kings Lynn and West Norfolk,E07000146,30/11/2020,Adapt Grant,Works,A Smith Contractors,21003291,735.00
Borough Council of Kings Lynn and West Norfolk,E07000146,30/11/2020,Breckland Carpark operation,Stationery & Office,Bemrose Booth Paragon Ltd,21003289,325.00
Borough Council of Kings Lynn and West Norfolk,E07000146,30/11/2020,NNDC Carpark Operation,Stationery & Office,Bemrose Booth Paragon Ltd,21003289,325.00
Borough Council of Kings Lynn and West Norfolk,E07000146,30/11/2020,Parking Operations - Brgh,Stationery & Office,Bemrose Booth Paragon Ltd,21003289,975.00
Borough Council of Kings Lynn and West Norfolk,E07000146,30/11/2020,Parking Operations - Brgh,Stationery & Office,Bemrose Booth Paragon Ltd,21003289,45.00
Borough Council of Kings Lynn and West Norfolk,E07000146,30/11/2020,KL Innovation Centre,Repairs & Maintenance,NVCS Ltd,21003327,780.00
Borough Council of Kings Lynn and West Norfolk,E07000146,30/11/2020,Register of Electors,Stationery & Office,Civica Election Services Ltd,22003214,"17,665.81"
Borough Council of Kings Lynn and West Norfolk,E07000146,30/11/2020,Handyperson Scheme K Lynn,Contractor Payments,T M Browne Ltd,22003222,"5,201.76"
Borough Council of Kings Lynn and West Norfolk,E07000146,30/11/2020,Adapt Grant,Works,T M Browne Ltd,22003205,"4,800.00"
Borough Council of Kings Lynn and West Norfolk,E07000146,01/12/2020,General Property,Repairs & Maintenance,CGM Group (East Anglia) Ltd,22003237,"1,419.32"
Borough Council of Kings Lynn and West Norfolk,E07000146,01/12/2020,North Lynn Industrial Estate,Repairs & Maintenance,CGM Group (East Anglia) Ltd,22003237,28.33
Borough Council of Kings Lynn and West Norfolk,E07000146,01/12/2020,Adapt Grant,Works,Closomat Ltd,21003350,"4,305.00"
Borough Council of Kings Lynn and West Norfolk,E07000146,01/12/2020,Community Safety,Corporate Items,The Incom Group,21003353,515.97
Borough Council of Kings Lynn and West Norfolk,E07000146,01/12/2020,Benefit Administration,Stationery & Office,The Incom Group,21003353,54.50
Borough Council of Kings Lynn and West Norfolk,E07000146,01/12/2020,Local Land Charges,Miscellaneous,The Incom Group,21003353,54.50
Borough Council of Kings Lynn and West Norfolk,E07000146,01/12/2020,Contaminated Land Act,Tools And Equipment,The Incom Group,21003353,54.50
Borough Council of Kings Lynn and West Norfolk,E07000146,01/12/2020,ICT,Broadband Charge,Claranet Ltd,21003757,44.89
Borough Council of Kings Lynn and West Norfolk,E07000146,01/12/2020,ICT,Communications,Claranet Ltd,21003757,"1,245.36"
Borough Council of Kings Lynn and West Norfolk,E07000146,01/12/2020,Town Hall Kings Lynn,Broadband Charge,Claranet Ltd,21003757,64.36
Borough Council of Kings Lynn and West Norfolk,E07000146,01/12/2020,Benefit Administration,Broadband Charge,Claranet Ltd,21003757,268.35
Borough Council of Kings Lynn and West Norfolk,E07000146,01/12/2020,South Lynn Community Centre,Broadband Charge,Claranet Ltd,21003757,89.78
Borough Council of Kings Lynn and West Norfolk,E07000146,01/12/2020,NNDC Carpark Operation,Broadband Charge,Claranet Ltd,21003757,131.63
Borough Council of Kings Lynn and West Norfolk,E07000146,01/12/2020,Future High Streets Fund,Professional Fees,Hewdon Consulting Ltd,21003432,"1,750.00"
Borough Council of Kings Lynn and West Norfolk,E07000146,01/12/2020,Public Cleansing,Vehicle - repairs & Maint,Trakm8 Limited,22003236,"2,654.60"
Borough Council of Kings Lynn and West Norfolk,E07000146,01/12/2020,GM Central Area,Vehicle - repairs & Maint,Trakm8 Limited,22003236,816.80
Borough Council of Kings Lynn and West Norfolk,E07000146,01/12/2020,The Walks,Vehicle - repairs & Maint,Trakm8 Limited,22003236,204.20
Borough Council of Kings Lynn and West Norfolk,E07000146,01/12/2020,CCTV,Vehicle - repairs & Maint,Trakm8 Limited,22003236,204.20
Borough Council of Kings Lynn and West Norfolk,E07000146,01/12/2020,Kings Court Kings Lynn,Vehicle - repairs & Maint,Trakm8 Limited,22003236,204.20
Borough Council of Kings Lynn and West Norfolk,E07000146,01/12/2020,Decrim - Operational,Vehicle - repairs & Maint,Trakm8 Limited,22003236,204.20
Borough Council of Kings Lynn and West Norfolk,E07000146,01/12/2020,Domestic Refuse,Vehicle - repairs & Maint,Trakm8 Limited,22003236,204.20
Borough Council of Kings Lynn and West Norfolk,E07000146,01/12/2020,Grounds,Vehicle - repairs & Maint,Trakm8 Limited,22003236,204.20
Borough Council of Kings Lynn and West Norfolk,E07000146,01/12/2020,Neighbourhood Teams,Vehicle - repairs & Maint,Trakm8 Limited,22003236,408.40
Borough Council of Kings Lynn and West Norfolk,E07000146,01/12/2020,Careline,Vehicle - repairs & Maint,Trakm8 Limited,22003236,408.40
Borough Council of Kings Lynn and West Norfolk,E07000146,01/12/2020,Financial Services,Agency Staff,Hays Specialist Recruitment,21003751,"3,540.00"
Borough Council of Kings Lynn and West Norfolk,E07000146,01/12/2020,Disabled Facilties Grant,Works,Richard Masham Building Services,22002997,689.00
Borough Council of Kings Lynn and West Norfolk,E07000146,01/12/2020,Town Hall Kings Lynn,Repairs & Maintenance,Robertas Stanaitis T/A Cross Keys,21003765,"2,481.25"
Borough Council of Kings Lynn and West Norfolk,E07000146,01/12/2020,Town Centre Manager,Covid 19 Marshalls,Excaliber Security Services Ltd,21003760,"2,589.61"
Borough Council of Kings Lynn and West Norfolk,E07000146,01/12/2020,Town Centre Manager,Covid 19 Marshalls,Excaliber Security Services Ltd,21003761,"2,633.72"
Borough Council of Kings Lynn and West Norfolk,E07000146,01/12/2020,Corporate Insurance,Miscellaneous,Municipal Mutual Insurance Ltd,22003035,652.50
Borough Council of Kings Lynn and West Norfolk,E07000146,01/12/2020,Pontoons at South Quay,KL Conserv Board,Kings Lynn Conservancy Board,22003240,"25,833.00"
Borough Council of Kings Lynn and West Norfolk,E07000146,02/12/2020,EZ- Roads/Infrastructure,External Fees/Consultancy,Golden Tree Surgeons Ltd,21004206,"5,230.00"
Borough Council of Kings Lynn and West Norfolk,E07000146,03/12/2020,Financial Services,Postages,Royal Mail Group Ltd,22003251,73.53
Borough Council of Kings Lynn and West Norfolk,E07000146,03/12/2020,Benefit Administration,Postages,Royal Mail Group Ltd,22003251,434.73
Borough Council of Kings Lynn and West Norfolk,E07000146,03/12/2020,Cost of Collection - CTax,Postages,Royal Mail Group Ltd,22003251,"1,240.63"
Borough Council of Kings Lynn and West Norfolk,E07000146,03/12/2020,Kings Lynn Bid,Postages,Royal Mail Group Ltd,22003251,2.15
Borough Council of Kings Lynn and West Norfolk,E07000146,03/12/2020,Adapt Grant,Works,Stannah Lift Services Ltd,21003827,"2,492.00"
Borough Council of Kings Lynn and West Norfolk,E07000146,03/12/2020,Adapt Grant,Works,Stannah Lift Services Ltd,21003828,"3,119.00"
Borough Council of Kings Lynn and West Norfolk,E07000146,03/12/2020,Adapt Grant,Works,Stannah Lift Services Ltd,21003829,"3,110.00"
Borough Council of Kings Lynn and West Norfolk,E07000146,03/12/2020,Parkway - Gaywood,Works,CGM Group (East Anglia) Ltd,21003723,"1,083.33"
Borough Council of Kings Lynn and West Norfolk,E07000146,03/12/2020,Town Hall Kings Lynn,Service Charges Exp,E Akers,21003809,100.00
Borough Council of Kings Lynn and West Norfolk,E07000146,03/12/2020,Town Hall Kings Lynn,Service Charges Exp,E Akers,21003809,387.82
Borough Council of Kings Lynn and West Norfolk,E07000146,03/12/2020,Local Land Charges,Agency,Norfolk County Council,22003252,"9,734.80"
Borough Council of Kings Lynn and West Norfolk,E07000146,03/12/2020,NORA Phase 4,Professional Fees,North Norfolk District Council,21003806,"2,900.00"
Borough Council of Kings Lynn and West Norfolk,E07000146,03/12/2020,Postage Services K Court,Postages,Postage By Phone,22003247,"5,002.64"
Borough Council of Kings Lynn and West Norfolk,E07000146,03/12/2020,Postage Services K Court,Postages,Postage By Phone,22003247,11.00
Borough Council of Kings Lynn and West Norfolk,E07000146,03/12/2020,Postage Services K Court,Postages,Royal Mail Group Ltd,22003250,692.81
Borough Council of Kings Lynn and West Norfolk,E07000146,03/12/2020,Adapt Grant,Works,Stannah Lift Services Ltd,21003830,"2,429.00"
Borough Council of Kings Lynn and West Norfolk,E07000146,03/12/2020,Adapt Grant,Works,Stannah Lift Services Ltd,21003831,"6,387.00"
Borough Council of Kings Lynn and West Norfolk,E07000146,03/12/2020,Adapt Grant,Works,Stannah Lift Services Ltd,21003834,"3,181.00"
Borough Council of Kings Lynn and West Norfolk,E07000146,03/12/2020,General Property,Covid 19,1-2 Call Drainage & Groundwork Ltd,21003770,"2,400.00"
Borough Council of Kings Lynn and West Norfolk,E07000146,03/12/2020,ICT,Computer Hardware Maint,UPS Systems PLC,21003328,"1,573.00"
Borough Council of Kings Lynn and West Norfolk,E07000146,03/12/2020,Grounds,Repairs & Maintenance,Richard King Memorials Ltd,21003451,193.33
Borough Council of Kings Lynn and West Norfolk,E07000146,03/12/2020,Grounds,Repairs & Maintenance,Richard King Memorials Ltd,21003451,280.00
Borough Council of Kings Lynn and West Norfolk,E07000146,03/12/2020,Subscriptions,Membership & Subscription,East of England LGA,21003774,"9,119.06"
Borough Council of Kings Lynn and West Norfolk,E07000146,03/12/2020,REGENERATION PROJECTS,External Archive Storage,Stor-A-File Ltd,22003028,3.86
Borough Council of Kings Lynn and West Norfolk,E07000146,03/12/2020,Domestic Refuse,External Archive Storage,Stor-A-File Ltd,22003028,0.91
Borough Council of Kings Lynn and West Norfolk,E07000146,03/12/2020,Mintlyn Crematorium,External Archive Storage,Stor-A-File Ltd,22003028,9.57
Borough Council of Kings Lynn and West Norfolk,E07000146,03/12/2020,Car Parks - BCKLWN,External Archive Storage,Stor-A-File Ltd,22003028,26.48
Borough Council of Kings Lynn and West Norfolk,E07000146,03/12/2020,Food Hygiene/H&S Sals/Sup,External Archive Storage,Stor-A-File Ltd,22003028,0.28
Borough Council of Kings Lynn and West Norfolk,E07000146,03/12/2020,Benefit Administration,External Archive Storage,Stor-A-File Ltd,22003028,8.80
Borough Council of Kings Lynn and West Norfolk,E07000146,03/12/2020,Parks & Open Spaces,External Archive Storage,Stor-A-File Ltd,22003028,4.77
Borough Council of Kings Lynn and West Norfolk,E07000146,03/12/2020,Resort Seafront,External Archive Storage,Stor-A-File Ltd,22003028,47.03
Borough Council of Kings Lynn and West Norfolk,E07000146,03/12/2020,Corn Exchange,External Archive Storage,Stor-A-File Ltd,22003028,7.97
Borough Council of Kings Lynn and West Norfolk,E07000146,03/12/2020,Pub & Tourism int charges,External Archive Storage,Stor-A-File Ltd,22003028,3.69
Borough Council of Kings Lynn and West Norfolk,E07000146,03/12/2020,Personnel Services,External Archive Storage,Stor-A-File Ltd,22003028,52.89
Borough Council of Kings Lynn and West Norfolk,E07000146,03/12/2020,Property Services,External Archive Storage,Stor-A-File Ltd,22003028,15.81
Borough Council of Kings Lynn and West Norfolk,E07000146,03/12/2020,Head of Legal Services,External Archive Storage,Stor-A-File Ltd,22003028,15.51
Borough Council of Kings Lynn and West Norfolk,E07000146,03/12/2020,Chf Exec -Member Services,External Archive Storage,Stor-A-File Ltd,22003028,12.84
Borough Council of Kings Lynn and West Norfolk,E07000146,03/12/2020,Financial Services,External Archive Storage,Stor-A-File Ltd,22003028,144.58
Borough Council of Kings Lynn and West Norfolk,E07000146,03/12/2020,Leisure Administration,External Archive Storage,Stor-A-File Ltd,22003028,1.93
Borough Council of Kings Lynn and West Norfolk,E07000146,03/12/2020,Planning Control,External Archive Storage,Stor-A-File Ltd,22003028,16.47
Borough Council of Kings Lynn and West Norfolk,E07000146,03/12/2020,Corporate,External Archive Storage,Stor-A-File Ltd,22003028,1.14
Borough Council of Kings Lynn and West Norfolk,E07000146,03/12/2020,Cost of Collection - CTax,External Archive Storage,Stor-A-File Ltd,22003028,8.32
Borough Council of Kings Lynn and West Norfolk,E07000146,03/12/2020,Local Land Charges,External Archive Storage,Stor-A-File Ltd,22003028,95.44
Borough Council of Kings Lynn and West Norfolk,E07000146,03/12/2020,Perfrmnce Rvww & Efficncy,External Archive Storage,Stor-A-File Ltd,22003028,3.41
Borough Council of Kings Lynn and West Norfolk,E07000146,03/12/2020,Lynnsport General Account,External Archive Storage,Stor-A-File Ltd,22003028,8.24
Borough Council of Kings Lynn and West Norfolk,E07000146,03/12/2020,Oasis General Account,External Archive Storage,Stor-A-File Ltd,22003028,33.72
Borough Council of Kings Lynn and West Norfolk,E07000146,03/12/2020,Recycling Composting,Waste Processing Cost,Kier Services Environmental,21003516,"33,751.29"
Borough Council of Kings Lynn and West Norfolk,E07000146,03/12/2020,Adapt Grant,Works,Preferred Access Ramp Systems Ltd,21003807,"1,000.00"
Borough Council of Kings Lynn and West Norfolk,E07000146,03/12/2020,Lynnsport 3,Contractor Works,Lovell Partnerships Ltd,21003793,"367,126.29"
Borough Council of Kings Lynn and West Norfolk,E07000146,03/12/2020,NORA Phase 3,Contractor Works,Lovell Partnerships Ltd,21003794,"4,975.29"
Borough Council of Kings Lynn and West Norfolk,E07000146,03/12/2020,NORA Phase 4,Contractor Works,Lovell Partnerships Ltd,21003795,"296,455.54"
Borough Council of Kings Lynn and West Norfolk,E07000146,03/12/2020,Lynnsport 1,Contractor Works,Lovell Partnerships Ltd,21003796,"11,893.64"
Borough Council of Kings Lynn and West Norfolk,E07000146,03/12/2020,Lynnsport 3,Contractor Works,Lovell Partnerships Ltd,21003797,"4,656.60"
Borough Council of Kings Lynn and West Norfolk,E07000146,03/12/2020,Parkway - Gaywood,Contractor Works,Lovell Partnerships Ltd,21003798,"2,812.22"
Borough Council of Kings Lynn and West Norfolk,E07000146,03/12/2020,Salters Road,Contractor Works,Lovell Partnerships Ltd,21003799,"4,689.79"
Borough Council of Kings Lynn and West Norfolk,E07000146,03/12/2020,Hunstanton Bus Station & NCC Library,Contractor Works,Lovell Partnerships Ltd,21003800,"5,556.00"
Borough Council of Kings Lynn and West Norfolk,E07000146,03/12/2020,NORA Phase 4,Contractor Works,Lovell Partnerships Ltd,21003802,"6,431.00"
Borough Council of Kings Lynn and West Norfolk,E07000146,03/12/2020,Parkway - Gaywood,Contractor Works,Lovell Partnerships Ltd,21003803,"36,596.00"
Borough Council of Kings Lynn and West Norfolk,E07000146,03/12/2020,Salters Road,Contractor Works,Lovell Partnerships Ltd,21003804,"10,307.00"
Borough Council of Kings Lynn and West Norfolk,E07000146,03/12/2020,Hunstanton Southend Road,Contractor Works,Lovell Partnerships Ltd,21003805,"3,105.00"
Borough Council of Kings Lynn and West Norfolk,E07000146,03/12/2020,ICT,Communications,Core Technology Projects Ltd,21003773,745.87
Borough Council of Kings Lynn and West Norfolk,E07000146,03/12/2020,Adapt Grant,Works,Ely Building & Maintenance Services Ltd,21003826,924.03
Borough Council of Kings Lynn and West Norfolk,E07000146,03/12/2020,Food Hygiene General,Tools And Equipment,V & J Knitwear Ltd,21003413,653.25
Borough Council of Kings Lynn and West Norfolk,E07000146,03/12/2020,Public conveniences,Repairs & Maintenance,Wrights & Holbeach Asphalt Ltd,21003727,"3,825.00"
Borough Council of Kings Lynn and West Norfolk,E07000146,03/12/2020,Public Cleansing,Vehicle - repairs & Maint,Bucher Muncipal Ltd,22003134,467.22
Borough Council of Kings Lynn and West Norfolk,E07000146,03/12/2020,Major Housing Management,External Fees/Consultancy,G C Baxter & Associates Ltd,21003734,"1,154.22"
Borough Council of Kings Lynn and West Norfolk,E07000146,03/12/2020,Adapt Grant,Works,Foster Property Maintenance Ltd,22003253,"9,709.33"
Borough Council of Kings Lynn and West Norfolk,E07000146,03/12/2020,Resort Seafront,Repairs & Maintenance,AMR Electrical Services Ltd,21003719,890.44
Borough Council of Kings Lynn and West Norfolk,E07000146,03/12/2020,Resort Seafront,Repairs & Maintenance,AMR Electrical Services Ltd,21003720,"6,588.90"
Borough Council of Kings Lynn and West Norfolk,E07000146,03/12/2020,Heacham Workshops,Repairs & Maintenance,AMR Electrical Services Ltd,21003721,545.88
Borough Council of Kings Lynn and West Norfolk,E07000146,03/12/2020,Adapt Grant,Works,T M Browne Ltd,21003832,"4,305.21"
Borough Council of Kings Lynn and West Norfolk,E07000146,03/12/2020,General Property,Covid 19,1-2 Call Drainage & Groundwork Ltd,21003768,"4,275.00"
Borough Council of Kings Lynn and West Norfolk,E07000146,03/12/2020,General Property,Covid 19,1-2 Call Drainage & Groundwork Ltd,21003769,420.00
Borough Council of Kings Lynn and West Norfolk,E07000146,03/12/2020,Handyperson Scheme K Lynn,Contractor Payments,Chas D Allflatt Ltd,21003820,500.00
Borough Council of Kings Lynn and West Norfolk,E07000146,03/12/2020,Adapt Grant,Works,Chas D Allflatt Ltd,21003821,"1,781.58"
Borough Council of Kings Lynn and West Norfolk,E07000146,03/12/2020,Adapt Grant,Works,Chas D Allflatt Ltd,21003822,"1,781.58"
Borough Council of Kings Lynn and West Norfolk,E07000146,03/12/2020,Home Improvements Agency,Agency Staff,Seven Resourcing Ltd,21003452,"1,122.40"
Borough Council of Kings Lynn and West Norfolk,E07000146,03/12/2020,Home Improvements Agency,Agency Staff,Seven Resourcing Ltd,21003453,"1,402.93"
Borough Council of Kings Lynn and West Norfolk,E07000146,03/12/2020,Rough Sleeper Fund,Covid 19,Carter Accommodation Ltd,21003766,"2,532.00"
Borough Council of Kings Lynn and West Norfolk,E07000146,03/12/2020,Lynnsport 3,Professional Fees,Gateley Plc,21003733,"2,530.00"
Borough Council of Kings Lynn and West Norfolk,E07000146,03/12/2020,Mintlyn Crematorium,Repairs & Maintenance,Norfolk Flooring Ltd,21003756,750.00
Borough Council of Kings Lynn and West Norfolk,E07000146,03/12/2020,Mintlyn Crematorium,Repairs & Maintenance,Norfolk Flooring Ltd,21003756,"2,035.00"
Borough Council of Kings Lynn and West Norfolk,E07000146,03/12/2020,Adapt Grant,Works,Chas D Allflatt Ltd,21003823,"2,365.79"
Borough Council of Kings Lynn and West Norfolk,E07000146,03/12/2020,Adapt Grant,Works,Chas D Allflatt Ltd,21003824,"4,600.76"
Borough Council of Kings Lynn and West Norfolk,E07000146,03/12/2020,Handyperson Scheme K Lynn,Contractor Payments,Chas D Allflatt Ltd,21003825,500.00
Borough Council of Kings Lynn and West Norfolk,E07000146,07/12/2020,Enabler Role,Membership & Subscription,Norfolk County Council,21003779,"2,555.00"
Borough Council of Kings Lynn and West Norfolk,E07000146,07/12/2020,NORA Phase 4,Professional Fees,North Norfolk District Council,21003872,"1,500.00"
Borough Council of Kings Lynn and West Norfolk,E07000146,07/12/2020,Financial Services,Postages,Royal Mail Group Ltd,22003265,236.02
Borough Council of Kings Lynn and West Norfolk,E07000146,07/12/2020,Benefit Administration,Postages,Royal Mail Group Ltd,22003265,396.46
Borough Council of Kings Lynn and West Norfolk,E07000146,07/12/2020,Cost of Collection - CTax,Postages,Royal Mail Group Ltd,22003265,"1,045.22"
Borough Council of Kings Lynn and West Norfolk,E07000146,07/12/2020,Kings Lynn Bid,Postages,Royal Mail Group Ltd,22003265,1.72
Borough Council of Kings Lynn and West Norfolk,E07000146,07/12/2020,Careline-Alarm Units,Equipment/Materials,Tunstall Healthcare (UK) Ltd,21003792,"9,900.00"
Borough Council of Kings Lynn and West Norfolk,E07000146,07/12/2020,Grounds,Contract Repairs,J Huggins & Son Ltd t/a National Windscreens,22003149,750.01
Borough Council of Kings Lynn and West Norfolk,E07000146,07/12/2020,Major Housing Management,External Fees/Consultancy,G C Baxter & Associates Ltd,21003866,"1,870.00"
Borough Council of Kings Lynn and West Norfolk,E07000146,07/12/2020,Resort Seafront,Miscellaneous Rents,C H S Amusements Ltd,22003264,525.00
Borough Council of Kings Lynn and West Norfolk,E07000146,07/12/2020,Mintlyn Crematorium,Repairs & Maintenance,Facultatieve Technologies Ltd,21003349,934.14
Borough Council of Kings Lynn and West Norfolk,E07000146,07/12/2020,NORA Phase 3,Professional Fees,William H Brown,21003841,"1,750.00"
Borough Council of Kings Lynn and West Norfolk,E07000146,07/12/2020,Street Sweeping,Hazardous Waste Disposal,WEAAR Ltd,21003842,650.00
Borough Council of Kings Lynn and West Norfolk,E07000146,07/12/2020,General Property,Covid 19,1-2 Call Drainage & Groundwork Ltd,21003835,"1,350.00"
Borough Council of Kings Lynn and West Norfolk,E07000146,07/12/2020,Network Hardware holding,Repairs & Maintenance,Focus Security (East Anglia) Ltd,21003861,190.00
Borough Council of Kings Lynn and West Norfolk,E07000146,07/12/2020,CCTV,Repairs & Maintenance,Focus Security (East Anglia) Ltd,21003861,"1,430.00"
Borough Council of Kings Lynn and West Norfolk,E07000146,07/12/2020,CCTV,Repairs & Maintenance,Focus Security (East Anglia) Ltd,21003863,"1,425.53"
Borough Council of Kings Lynn and West Norfolk,E07000146,07/12/2020,Network Hardware holding,Repairs & Maintenance,Focus Security (East Anglia) Ltd,21003864,527.00
Borough Council of Kings Lynn and West Norfolk,E07000146,07/12/2020,CCTV,Repairs & Maintenance,Focus Security (East Anglia) Ltd,21003865,418.55
Borough Council of Kings Lynn and West Norfolk,E07000146,07/12/2020,Homechoice,Computer Software Maint,Home Connections Lettings Ltd,21003839,"8,000.00"
Borough Council of Kings Lynn and West Norfolk,E07000146,07/12/2020,ICT,Computer Software Maint,Bytes Software Services Ltd,21003755,"26,363.52"
Borough Council of Kings Lynn and West Norfolk,E07000146,07/12/2020,General Property,Repairs & Maintenance,CGM Group (East Anglia) Ltd,21003836,"1,447.67"
Borough Council of Kings Lynn and West Norfolk,E07000146,07/12/2020,Towns Fund,Professional Fees,Engaging People Company,21003378,"2,350.00"
Borough Council of Kings Lynn and West Norfolk,E07000146,07/12/2020,Rough Sleeper Fund,Covid 19,Bunkabin Ltd,21003707,"3,440.00"
Borough Council of Kings Lynn and West Norfolk,E07000146,07/12/2020,Rough Sleeper Fund,Covid 19,Bunkabin Ltd,21003709,"4,160.00"
Borough Council of Kings Lynn and West Norfolk,E07000146,07/12/2020,ICT,Covid 19,Axess Systems Ltd,21003401,"6,336.00"
Borough Council of Kings Lynn and West Norfolk,E07000146,07/12/2020,M20FG01 Lynnsport,Rechargeable Works Insurance,Norfolk Flooring Ltd,21003398,900.00
Borough Council of Kings Lynn and West Norfolk,E07000146,07/12/2020,M20FG01 Lynnsport,Rechargeable Works Insurance,Norfolk Flooring Ltd,21003398,"3,653.10"
Borough Council of Kings Lynn and West Norfolk,E07000146,07/12/2020,Kings Court Service Charges,Covid 19,Crofton Design (City) Ltd,21003853,"4,160.00"
Borough Council of Kings Lynn and West Norfolk,E07000146,07/12/2020,Kings Court Service Charges,Covid 19,Crofton Design (City) Ltd,21003854,"4,800.00"
Borough Council of Kings Lynn and West Norfolk,E07000146,07/12/2020,Kings Court Service Charges,Covid 19,Crofton Design (City) Ltd,21003855,"2,400.00"
Borough Council of Kings Lynn and West Norfolk,E07000146,07/12/2020,Kings Court Service Charges,Covid 19,Crofton Design (City) Ltd,21003856,"4,375.00"
Borough Council of Kings Lynn and West Norfolk,E07000146,07/12/2020,Corporate,Initiatives,A Beer Consulting Limited,22003270,"15,612.64"
Borough Council of Kings Lynn and West Norfolk,E07000146,07/12/2020,Domestic Refuse,Waste Processing Cost,Kier Services Environmental,21003890,"6,807.61"
Borough Council of Kings Lynn and West Norfolk,E07000146,07/12/2020,Domestic Refuse,Contracted Services,Kier Services Environmental,21003895,"101,378.31"
Borough Council of Kings Lynn and West Norfolk,E07000146,07/12/2020,Domestic Refuse,Clinical & Medical Waste,Kier Services Environmental,21003895,"4,301.54"
Borough Council of Kings Lynn and West Norfolk,E07000146,07/12/2020,Dry Box Collection Scheme,Contracted Services,Kier Services Environmental,21003895,"99,508.02"
Borough Council of Kings Lynn and West Norfolk,E07000146,07/12/2020,Recycling Composting,Contracted Services,Kier Services Environmental,21003895,"46,031.89"
Borough Council of Kings Lynn and West Norfolk,E07000146,07/12/2020,Food Waste,Contracted Services,Kier Services Environmental,21003895,"26,822.04"
Borough Council of Kings Lynn and West Norfolk,E07000146,07/12/2020,Trade Refuse,Contracted Services,Kier Services Environmental,21003895,"10,241.38"
Borough Council of Kings Lynn and West Norfolk,E07000146,07/12/2020,Recycling Commercial,Contracted Services,Kier Services Environmental,21003895,859.66
Borough Council of Kings Lynn and West Norfolk,E07000146,07/12/2020,Food Waste,Waste Processing Cost,Kier Services Environmental,21003895,411.74
Borough Council of Kings Lynn and West Norfolk,E07000146,07/12/2020,Food Waste,Bins,Kier Services Environmental,21003895,"2,651.79"
Borough Council of Kings Lynn and West Norfolk,E07000146,07/12/2020,Refuse & Recyc Mgmt,Contracted Services,Kier Services Environmental,21003895,407.03
Borough Council of Kings Lynn and West Norfolk,E07000146,07/12/2020,Lynnsport 1,Contractor Works,Lovell Partnerships Ltd,21003801,"10,504.00"
Borough Council of Kings Lynn and West Norfolk,E07000146,10/12/2020,Lynnsport 4 /5,Works,Bowie Construction Ltd,21003478,"2,500.00"
Borough Council of Kings Lynn and West Norfolk,E07000146,10/12/2020,Handyperson Scheme K Lynn,Contractor Payments,Chas D Allflatt Ltd,21003894,"1,796.23"
Borough Council of Kings Lynn and West Norfolk,E07000146,10/12/2020,Disabled Facilties Grant,Works,Chas D Allflatt Ltd,22003300,"2,653.37"
Borough Council of Kings Lynn and West Norfolk,E07000146,10/12/2020,Register of Electors,Stationery & Office,Civica Election Services Ltd,22003243,"3,384.01"
Borough Council of Kings Lynn and West Norfolk,E07000146,10/12/2020,Lily Phase 4,Lily Advisor Payments,West Norfolk Befriending,21003996,"1,200.00"
Borough Council of Kings Lynn and West Norfolk,E07000146,10/12/2020,Grounds,Vehicle - repairs & Maint,Ernest Doe & Sons Ltd,22003283,738.10
Borough Council of Kings Lynn and West Norfolk,E07000146,10/12/2020,Stories of Lynn,Repairs & Maintenance,1-2 Call Drainage & Groundwork Ltd,21003901,"2,650.00"
Borough Council of Kings Lynn and West Norfolk,E07000146,10/12/2020,Major Housing Management,Works,Bowie Construction Ltd,21003479,"26,678.00"
Borough Council of Kings Lynn and West Norfolk,E07000146,10/12/2020,Lily Phase 4,Lily Advisor Payments,Family Action,21003990,"1,275.00"
Borough Council of Kings Lynn and West Norfolk,E07000146,10/12/2020,Lily Phase 4,Lily Advisor Payments,West Norfolk Carers Association,21003998,"1,200.00"
Borough Council of Kings Lynn and West Norfolk,E07000146,10/12/2020,Lily Phase 4,Lily Advisor Payments,West Norfolk Carers Association,21003999,"2,065.00"
Borough Council of Kings Lynn and West Norfolk,E07000146,10/12/2020,Lily Phase 4,Lily Advisor Payments,West Norfolk Carers Association,21004000,"1,505.00"
Borough Council of Kings Lynn and West Norfolk,E07000146,10/12/2020,Walks Car Park Resurf and P&D,Professional Fees,Parsons Consulting Engineers Ltd,21003629,"1,372.50"
Borough Council of Kings Lynn and West Norfolk,E07000146,10/12/2020,Reopening High Street,Equipment/Materials,Robert Fencing Ltd,21003902,"2,003.00"
Borough Council of Kings Lynn and West Norfolk,E07000146,10/12/2020,Development Control,Recruitment,TMP (UK) Ltd,22003227,"2,744.80"
Borough Council of Kings Lynn and West Norfolk,E07000146,10/12/2020,Town Hall Kings Lynn,Advertising & Marketing,Alive West Norfolk,21003899,400.00
Borough Council of Kings Lynn and West Norfolk,E07000146,10/12/2020,Stories of Lynn,Advertising & Marketing,Alive West Norfolk,21003899,600.00
Borough Council of Kings Lynn and West Norfolk,E07000146,10/12/2020,Lily Phase 4,Lily Advisor Payments,Norfolk and Waveney Mind,21003988,"1,200.00"
,,10/12/2020,Lily Phase 4,Lily Advisor Payments,Norfolk and Waveney Mind,21003989,"2,430.00"
,,10/12/2020,Re:Fit Project,Works,Ameresco Ltd,22003288,"159,963.90"
Borough Council of Kings Lynn and West Norfolk,E07000146,10/12/2020,West Winch Growth Area,Professional Fees,Clyde & Co LLP,21003952,"6,150.90"
Borough Council of Kings Lynn and West Norfolk,E07000146,10/12/2020,Printing&Copying-Floor Copiers,Click Charges,Capita Business Services Ltd,21003932,"1,699.61"
Borough Council of Kings Lynn and West Norfolk,E07000146,10/12/2020,Adapt Grant,Works,Mr Shifter East Anglia Ltd,21003551,999.60
Borough Council of Kings Lynn and West Norfolk,E07000146,10/12/2020,KL Innovation Centre,Contract Cleaning,Mr Brights Ltd,21003914,"1,518.36"
Borough Council of Kings Lynn and West Norfolk,E07000146,10/12/2020,NEWS Depot,Contract Cleaning,Marathon Services Ltd,22003292,"1,420.65"
Borough Council of Kings Lynn and West Norfolk,E07000146,10/12/2020,Parkway - Gaywood,Works,Mott MacDonald Limited,21003626,"3,400.00"
Borough Council of Kings Lynn and West Norfolk,E07000146,10/12/2020,Supplier Holding Account,Vehicle - repairs & Maint,Paul Johnson Motor Services Ltd,22003285,"6,496.21"
Borough Council of Kings Lynn and West Norfolk,E07000146,10/12/2020,Supplier Holding Account,Vehicle - repairs & Maint,Paul Johnson Motor Services Ltd,22003285,207.20
Borough Council of Kings Lynn and West Norfolk,E07000146,10/12/2020,Lily Phase 4,Lily Advisor Payments,West Norfolk Deaf Association,21004001,"1,445.00"
Borough Council of Kings Lynn and West Norfolk,E07000146,10/12/2020,Lily Phase 4,Lily Advisor Payments,West Norfolk Deaf Association,21004002,"1,080.00"
Borough Council of Kings Lynn and West Norfolk,E07000146,10/12/2020,Lily Phase 4,Lily Advisor Payments,West Norfolk Deaf Association,21004003,"1,200.00"
Borough Council of Kings Lynn and West Norfolk,E07000146,10/12/2020,Handyperson Scheme K Lynn,Contractor Payments,A Smith Contractors,21003908,535.00
Borough Council of Kings Lynn and West Norfolk,E07000146,10/12/2020,Supplier Holding Account,Vehicle - repairs & Maint,North Street Tyres,22003286,996.00
Borough Council of Kings Lynn and West Norfolk,E07000146,10/12/2020,Grounds,Materials,TMA Bark Supplies Ltd,22003154,424.70
Borough Council of Kings Lynn and West Norfolk,E07000146,10/12/2020,Public Cleansing,Repairs & Maintenance,Bucher Muncipal Ltd,22003274,972.40
Borough Council of Kings Lynn and West Norfolk,E07000146,10/12/2020,Hardwick Industrial Estate,Repairs - Services Chg,1-2 Call Drainage & Groundwork Ltd,21003944,820.00
Borough Council of Kings Lynn and West Norfolk,E07000146,10/12/2020,Vehicle Recharge on account,Fuel,Worldline IT Services UK Re Fuelgenie,22003302,"11,302.46"
Borough Council of Kings Lynn and West Norfolk,E07000146,10/12/2020,Vehicle Recharge on account,Fuel,Worldline IT Services UK Re Fuelgenie,22003302,1.54
Borough Council of Kings Lynn and West Norfolk,E07000146,10/12/2020,Vehicle Recharge on account,Fuel,Worldline IT Services UK Re Fuelgenie,22003303,"10,494.32"
Borough Council of Kings Lynn and West Norfolk,E07000146,10/12/2020,Vehicle Recharge on account,Fuel,Worldline IT Services UK Re Fuelgenie,22003303,0.56
Borough Council of Kings Lynn and West Norfolk,E07000146,10/12/2020,Financial Services,Agency Staff,Hays Specialist Recruitment,21003431,"2,950.00"
Borough Council of Kings Lynn and West Norfolk,E07000146,10/12/2020,GM Southern Area & Lynnsport,Fuel,UK Fuels Ltd,22003299,24.91
Borough Council of Kings Lynn and West Norfolk,E07000146,10/12/2020,GM Southern Area & Lynnsport,Fuel,UK Fuels Ltd,22003299,202.66
Borough Council of Kings Lynn and West Norfolk,E07000146,10/12/2020,Public Cleansing,Fuel,UK Fuels Ltd,22003299,451.90
Borough Council of Kings Lynn and West Norfolk,E07000146,10/12/2020,Grounds,Fuel,UK Fuels Ltd,22003299,24.34
Borough Council of Kings Lynn and West Norfolk,E07000146,10/12/2020,Grounds,Fuel,UK Fuels Ltd,22003299,221.83
Borough Council of Kings Lynn and West Norfolk,E07000146,10/12/2020,Dog Warden and Services,Contracted Services,Dogotel Kennels & Cattery,22003275,600.00
Borough Council of Kings Lynn and West Norfolk,E07000146,10/12/2020,Dog Warden and Services,Kennel Fees,Dogotel Kennels & Cattery,22003275,60.00
Borough Council of Kings Lynn and West Norfolk,E07000146,10/12/2020,Dog Warden and Services,Kennel Fees,Dogotel Kennels & Cattery,22003275,112.00
Borough Council of Kings Lynn and West Norfolk,E07000146,10/12/2020,Dog Warden and Services,Contracted Services,Dogotel Kennels & Cattery,22003275,395.00
Borough Council of Kings Lynn and West Norfolk,E07000146,10/12/2020,Dog Warden and Services,Kennel Fees Recd - Extl,Dogotel Kennels & Cattery,22003275,-402.50
Borough Council of Kings Lynn and West Norfolk,E07000146,10/12/2020,Leisure Management Costs,Security Services Charge,LOOMIS UK Ltd,21003986,602.56
Borough Council of Kings Lynn and West Norfolk,E07000146,10/12/2020,Parking Operations - Brgh,Security Services Charge,LOOMIS UK Ltd,21003986,723.80
Borough Council of Kings Lynn and West Norfolk,E07000146,10/12/2020,NNDC Carpark Operation,Security Services Charge,LOOMIS UK Ltd,21003986,239.22
Borough Council of Kings Lynn and West Norfolk,E07000146,10/12/2020,Parking Operations - Brgh,Tools And Equipment,Mobius Networks Ltd,21003905,633.30
Borough Council of Kings Lynn and West Norfolk,E07000146,10/12/2020,Special Expenses,Repairs & Maintenance,Westcotec Ltd,21002763,"3,350.00"
Borough Council of Kings Lynn and West Norfolk,E07000146,10/12/2020,General Property,Repairs & Maintenance,AMR Mechanical Services Ltd,21003947,"14,046.52"
Borough Council of Kings Lynn and West Norfolk,E07000146,10/12/2020,Depot Infestation,Rechargeable Works Insurance,Carter Accommodation Ltd,21003900,641.76
Borough Council of Kings Lynn and West Norfolk,E07000146,10/12/2020,Parks & Open Spaces,Tree Surgery,Golden Tree Surgeons Ltd,21003928,"8,290.00"
Borough Council of Kings Lynn and West Norfolk,E07000146,10/12/2020,Parks & Open Spaces,Tree Surgery,Golden Tree Surgeons Ltd,21003929,"1,000.00"
Borough Council of Kings Lynn and West Norfolk,E07000146,10/12/2020,Parks & Open Spaces,Tree Surgery,Golden Tree Surgeons Ltd,21003930,880.00
Borough Council of Kings Lynn and West Norfolk,E07000146,10/12/2020,Careline,Contracted Services,Connexus Housing Ltd,21003955,"4,783.40"
Borough Council of Kings Lynn and West Norfolk,E07000146,10/12/2020,Careline,Contracted Services,Connexus Housing Ltd,21003956,"18,538.80"
Borough Council of Kings Lynn and West Norfolk,E07000146,10/12/2020,HLF Code (Capital Works),Works,Bowie Construction Ltd,21003477,"1,080.00"
Borough Council of Kings Lynn and West Norfolk,E07000146,14/12/2020,Crematorium Trading Account,Webcasts/Tributes/Recordings,Vivedia Ltd,21004027,"2,058.00"
Borough Council of Kings Lynn and West Norfolk,E07000146,14/12/2020,Food Hygiene/H&S Sals/Sup,Agency Staff,G2V Recruitment Ltd,21004004,"1,350.00"
Borough Council of Kings Lynn and West Norfolk,E07000146,14/12/2020,Covid 19- LA Compliance and Enforcement,Covid 19 Marshalls,Excaliber Security Services Ltd,21004036,"2,661.55"
Borough Council of Kings Lynn and West Norfolk,E07000146,14/12/2020,Covid 19- LA Compliance and Enforcement,Covid 19 Marshalls,Excaliber Security Services Ltd,21004037,"2,700.77"
Borough Council of Kings Lynn and West Norfolk,E07000146,14/12/2020,Mintlyn Crematorium,Animal Removal,Philip Parker Associates,21004017,695.00
Borough Council of Kings Lynn and West Norfolk,E07000146,14/12/2020,Community Transport,Transport Subsidies,West Lynn Ferry Ltd,21004055,"1,716.66"
Borough Council of Kings Lynn and West Norfolk,E07000146,14/12/2020,Community Transport,Transport Subsidies,West Lynn Ferry Ltd,21004056,"1,716.66"
Borough Council of Kings Lynn and West Norfolk,E07000146,14/12/2020,NNDC Penalty Notice,Agency,North Norfolk District Council,21004033,"7,357.37"
Borough Council of Kings Lynn and West Norfolk,E07000146,14/12/2020,Parking Operations - Brgh,Repairs & Maintenance,Penty Contractors Ltd,21004040,"2,150.00"
Borough Council of Kings Lynn and West Norfolk,E07000146,14/12/2020,ICT,Computer Software Maint,Phoenix Software Ltd,21003511,613.20
Borough Council of Kings Lynn and West Norfolk,E07000146,14/12/2020,Grounds,Repairs & Maintenance,Smith Building Services Ltd,21004045,984.99
Borough Council of Kings Lynn and West Norfolk,E07000146,14/12/2020,Community Transport,Transport Subsidies,West Norfolk Community Transport Project,21004065,"12,494.00"
Borough Council of Kings Lynn and West Norfolk,E07000146,14/12/2020,Community Transport,Transport Subsidies,West Norfolk Community Transport Project,21004066,"32,344.50"
Borough Council of Kings Lynn and West Norfolk,E07000146,14/12/2020,Street Sweeping,Animal Removal,Peaceful Pets Ltd,22003327,617.50
Borough Council of Kings Lynn and West Norfolk,E07000146,14/12/2020,Street Sweeping,Animal Removal,Peaceful Pets Ltd,22003328,925.00
Borough Council of Kings Lynn and West Norfolk,E07000146,14/12/2020,ICT,Computer Hardware Maint,Switchshop Ltd,21003913,"1,120.00"
Borough Council of Kings Lynn and West Norfolk,E07000146,14/12/2020,Community Projects CRS,Service Level Agreements,Freebridge Community Housing,21004063,"20,000.00"
Borough Council of Kings Lynn and West Norfolk,E07000146,14/12/2020,ICT,Computer Hardware Maint,Fordway Solutions Ltd,21003904,943.44
Borough Council of Kings Lynn and West Norfolk,E07000146,14/12/2020,General Property,Disposal Cost Site Clearance,WEAAR Ltd,21004010,475.00
Borough Council of Kings Lynn and West Norfolk,E07000146,14/12/2020,ICT,Computer Software Maint,Idox Software Ltd,21003521,"3,087.50"
Borough Council of Kings Lynn and West Norfolk,E07000146,14/12/2020,Handyperson Scheme K Lynn,Contractor Payments,Chas D Allflatt Ltd,21004030,500.00
Borough Council of Kings Lynn and West Norfolk,E07000146,14/12/2020,Reopening High Street,Equipment/Materials,East Coast Signs Ltd,21004043,"2,475.00"
Borough Council of Kings Lynn and West Norfolk,E07000146,14/12/2020,Home Improvements Agency,Agency Staff,Seven Resourcing Ltd,21003633,"1,374.13"
Borough Council of Kings Lynn and West Norfolk,E07000146,14/12/2020,Home Improvements Agency,Agency Staff,Seven Resourcing Ltd,21003634,"1,180.00"
Borough Council of Kings Lynn and West Norfolk,E07000146,14/12/2020,ICT,Computer Software Maint,Bytes Software Services Ltd,21003848,"1,564.80"
Borough Council of Kings Lynn and West Norfolk,E07000146,14/12/2020,Corporate Health & Safety,Staff Health & Safety,Skyguard Ltd T/A Peoplesafe,21003684,"1,056.00"
Borough Council of Kings Lynn and West Norfolk,E07000146,14/12/2020,Grounds,Repairs & Maintenance,Robert Fencing Ltd,21004042,67.20
Borough Council of Kings Lynn and West Norfolk,E07000146,14/12/2020,Grounds,Repairs & Maintenance,Robert Fencing Ltd,21004042,350.00
Borough Council of Kings Lynn and West Norfolk,E07000146,17/12/2020,ICT,Telephones,British Telecommunications PLC,22003357,501.70
Borough Council of Kings Lynn and West Norfolk,E07000146,17/12/2020,Disabled Facilties Grant,Works,Chas D Allflatt Ltd,22003331,"8,729.20"
Borough Council of Kings Lynn and West Norfolk,E07000146,17/12/2020,STW Refurb/Connect Sewer,Works,C G Godfrey Ltd,21004072,"1,745.00"
Borough Council of Kings Lynn and West Norfolk,E07000146,17/12/2020,Town Hall Kings Lynn,Repairs & Maintenance,A Williams Decorators Ltd,21003946,"1,524.02"
Borough Council of Kings Lynn and West Norfolk,E07000146,17/12/2020,Contaminated Land Act,Tools And Equipment,Vodafone (Corporate) Ltd,21004146,333.00
Borough Council of Kings Lynn and West Norfolk,E07000146,17/12/2020,Resort Seafront,Tools And Equipment,Vodafone (Corporate) Ltd,21004146,333.00
Borough Council of Kings Lynn and West Norfolk,E07000146,17/12/2020,Parking Operations - Brgh,Tools And Equipment,Vodafone (Corporate) Ltd,21004146,333.00
Borough Council of Kings Lynn and West Norfolk,E07000146,17/12/2020,ICT,Recoverable Fees,Vodafone (Corporate) Ltd,21004146,367.41
Borough Council of Kings Lynn and West Norfolk,E07000146,17/12/2020,REGENERATION PROJECTS,Telephones,Vodafone (Corporate) Ltd,21004146,367.41
Borough Council of Kings Lynn and West Norfolk,E07000146,17/12/2020,Development and Estates Capital Receipts,Disposal Costs Permissions & Consultancy,David Trundley Design Services Ltd,21004164,500.00
Borough Council of Kings Lynn and West Norfolk,E07000146,17/12/2020,Development and Estates Capital Receipts,Disposal Costs Permissions & Consultancy,David Trundley Design Services Ltd,21004165,450.00
Borough Council of Kings Lynn and West Norfolk,E07000146,17/12/2020,Development and Estates Capital Receipts,Disposal Costs Permissions & Consultancy,David Trundley Design Services Ltd,21004166,450.00
Borough Council of Kings Lynn and West Norfolk,E07000146,17/12/2020,Development and Estates Capital Receipts,Disposal Costs Permissions & Consultancy,David Trundley Design Services Ltd,21004167,875.00
Borough Council of Kings Lynn and West Norfolk,E07000146,17/12/2020,EZ Dev of Spec Units,Works,UK Power Networks (Operations ) Ltd,22003348,"72,728.89"
Borough Council of Kings Lynn and West Norfolk,E07000146,17/12/2020,Radio Phones,Communications,Claranet Ltd,21004086,64.84
Borough Council of Kings Lynn and West Norfolk,E07000146,17/12/2020,Air Quality,Broadband Charge,Claranet Ltd,21004086,132.58
Borough Council of Kings Lynn and West Norfolk,E07000146,17/12/2020,Benefit Administration,Broadband Charge,Claranet Ltd,21004086,276.42
Borough Council of Kings Lynn and West Norfolk,E07000146,17/12/2020,South Lynn Community Centre,Broadband Charge,Claranet Ltd,21004086,92.48
Borough Council of Kings Lynn and West Norfolk,E07000146,17/12/2020,ICT,Broadband Charge,Claranet Ltd,21004086,46.24
Borough Council of Kings Lynn and West Norfolk,E07000146,17/12/2020,CCTV,Broadband Charge,Claranet Ltd,21004086,66.29
Borough Council of Kings Lynn and West Norfolk,E07000146,17/12/2020,ICT,Broadband Charge,Claranet Ltd,21004086,66.29
Borough Council of Kings Lynn and West Norfolk,E07000146,17/12/2020,Kings Lynn Bus Station,Broadband Charge,Claranet Ltd,21004086,66.29
Borough Council of Kings Lynn and West Norfolk,E07000146,17/12/2020,Mintlyn Crematorium,Broadband Charge,Claranet Ltd,21004086,141.12
Borough Council of Kings Lynn and West Norfolk,E07000146,17/12/2020,NNDC Carpark Operation,Broadband Charge,Claranet Ltd,21004086,135.58
Borough Council of Kings Lynn and West Norfolk,E07000146,17/12/2020,Street Sweeping,Sweeper Consumables,Bucher Muncipal Ltd,22003181,977.06
Borough Council of Kings Lynn and West Norfolk,E07000146,17/12/2020,Sth Quay Sommerfield & Thomas BRP,Planning Fees,The Morton Partnership Ltd,21004142,"1,050.00"
Borough Council of Kings Lynn and West Norfolk,E07000146,17/12/2020,Mintlyn Crematorium,Repairs & Maintenance,Facultatieve Technologies Ltd,21003948,"2,404.92"
Borough Council of Kings Lynn and West Norfolk,E07000146,17/12/2020,L/sport Fire Doors,Works,Enhance,21003927,300.00
Borough Council of Kings Lynn and West Norfolk,E07000146,17/12/2020,L/sport Fire Doors,Works,Enhance,21003927,"3,545.10"
Borough Council of Kings Lynn and West Norfolk,E07000146,17/12/2020,Cashless Pk JT(Brd on St),Merchant Fees,Chipside Ltd,21004080,0.11
Borough Council of Kings Lynn and West Norfolk,E07000146,17/12/2020,Cashless Pk JG (Bk on St),Merchant Fees,Chipside Ltd,21004080,0.40
Borough Council of Kings Lynn and West Norfolk,E07000146,17/12/2020,Cashless Pk JC(SN on St),Merchant Fees,Chipside Ltd,21004080,2.88
Borough Council of Kings Lynn and West Norfolk,E07000146,17/12/2020,Cashless Pk JE(NN on St),Merchant Fees,Chipside Ltd,21004080,11.12
Borough Council of Kings Lynn and West Norfolk,E07000146,17/12/2020,Cashless Park KR (KLWN on ST),Merchant Fees,Chipside Ltd,21004080,30.65
Borough Council of Kings Lynn and West Norfolk,E07000146,17/12/2020,Cashless Pk JI(GYon St),Merchant Fees,Chipside Ltd,21004080,31.46
Borough Council of Kings Lynn and West Norfolk,E07000146,17/12/2020,Cashless Pk YT(GY off St),Merchant Fees,Chipside Ltd,21004080,88.05
Borough Council of Kings Lynn and West Norfolk,E07000146,17/12/2020,Cashless Pk JF(NN on St),Merchant Fees,Chipside Ltd,21004080,113.80
Borough Council of Kings Lynn and West Norfolk,E07000146,17/12/2020,Cashless Park KZ (KLWN off ST),Merchant Fees,Chipside Ltd,21004080,479.21
Borough Council of Kings Lynn and West Norfolk,E07000146,17/12/2020,Cashless Pk JT(Brd on St),Transaction Fee,Chipside Ltd,21004083,1.00
Borough Council of Kings Lynn and West Norfolk,E07000146,17/12/2020,Cashless Pk JG (Bk on St),Transaction Fee,Chipside Ltd,21004083,4.00
Borough Council of Kings Lynn and West Norfolk,E07000146,17/12/2020,Cashless Pk JC(SN on St),Transaction Fee,Chipside Ltd,21004083,10.00
Borough Council of Kings Lynn and West Norfolk,E07000146,17/12/2020,Cashless Pk JI(GYon St),Transaction Fee,Chipside Ltd,21004083,56.17
Borough Council of Kings Lynn and West Norfolk,E07000146,17/12/2020,Cashless Pk JE(NN on St),Transaction Fee,Chipside Ltd,21004083,117.00
Borough Council of Kings Lynn and West Norfolk,E07000146,17/12/2020,Cashless Pk YT(GY off St),Transaction Fee,Chipside Ltd,21004083,124.17
Borough Council of Kings Lynn and West Norfolk,E07000146,17/12/2020,Cashless Park KR (KLWN on ST),Transaction Fee,Chipside Ltd,21004083,137.42
Borough Council of Kings Lynn and West Norfolk,E07000146,17/12/2020,Cashless Pk JF(NN on St),Transaction Fee,Chipside Ltd,21004083,276.08
Borough Council of Kings Lynn and West Norfolk,E07000146,17/12/2020,Cashless Park KZ (KLWN off ST),Transaction Fee,Chipside Ltd,21004083,987.67
Borough Council of Kings Lynn and West Norfolk,E07000146,17/12/2020,Phase 5 Town Centre KL,Water & Drainage Rates,Anglian Water Services,22003352,"1,039.53"
Borough Council of Kings Lynn and West Norfolk,E07000146,17/12/2020,W Norfolk Housing Co Ltd,Professional Fees,Gerald Eve LLP,21004102,"1,160.00"
Borough Council of Kings Lynn and West Norfolk,E07000146,17/12/2020,W Norfolk Housing Co Ltd,Professional Fees,Gerald Eve LLP,21004103,"1,160.00"
Borough Council of Kings Lynn and West Norfolk,E07000146,17/12/2020,W Norfolk Housing Co Ltd,Professional Fees,Gerald Eve LLP,21004103,"6,489.48"
Borough Council of Kings Lynn and West Norfolk,E07000146,17/12/2020,W Norfolk Housing Co Ltd,Professional Fees,Gerald Eve LLP,21004104,"1,927.15"
Borough Council of Kings Lynn and West Norfolk,E07000146,17/12/2020,W Norfolk Housing Co Ltd,Professional Fees,Gerald Eve LLP,21004150,880.00
Borough Council of Kings Lynn and West Norfolk,E07000146,17/12/2020,Food Hygiene/H&S Sals/Sup,Agency Staff,G2V Recruitment Ltd,21003576,"1,350.00"
Borough Council of Kings Lynn and West Norfolk,E07000146,17/12/2020,Mintlyn Crematorium,Animal Removal,Philip Parker Associates,21004076,"1,700.00"
Borough Council of Kings Lynn and West Norfolk,E07000146,17/12/2020,Sail the Wash - Sutton Br,Works,Drake Towage Ltd,21004098,"1,468.81"
Borough Council of Kings Lynn and West Norfolk,E07000146,17/12/2020,Sail the Wash - KL,Works,Drake Towage Ltd,21004098,"1,982.03"
Borough Council of Kings Lynn and West Norfolk,E07000146,17/12/2020,REGENERATION PROJECTS,Repairs & Maintenance,Drake Towage Ltd,21004099,"2,000.00"
Borough Council of Kings Lynn and West Norfolk,E07000146,17/12/2020,Reopening High Street,Equipment/Materials,Passion Marketing and Promotions Ltd,21003780,"6,398.80"
Borough Council of Kings Lynn and West Norfolk,E07000146,17/12/2020,Adapt Grant,Works,Chas D Allflatt Ltd,22003332,836.52
Borough Council of Kings Lynn and West Norfolk,E07000146,17/12/2020,Adapt Grant,Works,Chas D Allflatt Ltd,21004105,"6,479.58"
Borough Council of Kings Lynn and West Norfolk,E07000146,17/12/2020,Adapt Grant,Works,Chas D Allflatt Ltd,21004106,830.84
Borough Council of Kings Lynn and West Norfolk,E07000146,17/12/2020,Adapt Grant,Works,Gaswise Services Ltd,21004088,"5,456.65"
Borough Council of Kings Lynn and West Norfolk,E07000146,17/12/2020,Public Cleansing,Contract Repairs,Ford & Slater DAF Kings Lynn,22003330,573.07
Borough Council of Kings Lynn and West Norfolk,E07000146,17/12/2020,Cashless Pk YT(GY off St),Agency,Great Yarmouth Borough Council,21004151,"11,993.22"
Borough Council of Kings Lynn and West Norfolk,E07000146,17/12/2020,Cashless Pk YT(GY off St),Agency,Great Yarmouth Borough Council,22003362,"8,628.80"
Borough Council of Kings Lynn and West Norfolk,E07000146,17/12/2020,Parking Operations - Brgh,Rent,Norfolk County Council,22003364,875.00
Borough Council of Kings Lynn and West Norfolk,E07000146,17/12/2020,Parking Operations - Brgh,Rent,Norfolk County Council,22003365,875.00
Borough Council of Kings Lynn and West Norfolk,E07000146,17/12/2020,Cashless Pk JF(NN on St),Agency,North Norfolk District Council,22003371,"11,570.10"
Borough Council of Kings Lynn and West Norfolk,E07000146,17/12/2020,Head of Legal Services,External Legal fees,North Norfolk District Council,22003378,"4,200.00"
Borough Council of Kings Lynn and West Norfolk,E07000146,17/12/2020,Custom House & Tics,Postages,Royal Mail Group Ltd,22003375,12.98
Borough Council of Kings Lynn and West Norfolk,E07000146,17/12/2020,Financial Services,Postages,Royal Mail Group Ltd,22003375,64.93
Borough Council of Kings Lynn and West Norfolk,E07000146,17/12/2020,Benefit Administration,Postages,Royal Mail Group Ltd,22003375,347.87
Borough Council of Kings Lynn and West Norfolk,E07000146,17/12/2020,Cost of Collection - CTax,Postages,Royal Mail Group Ltd,22003375,873.93
Borough Council of Kings Lynn and West Norfolk,E07000146,17/12/2020,Financial Services,Postages,Royal Mail Group Ltd,22003342,485.90
Borough Council of Kings Lynn and West Norfolk,E07000146,17/12/2020,Benefit Administration,Postages,Royal Mail Group Ltd,22003342,345.29
Borough Council of Kings Lynn and West Norfolk,E07000146,17/12/2020,Cost of Collection - CTax,Postages,Royal Mail Group Ltd,22003342,"1,005.48"
Borough Council of Kings Lynn and West Norfolk,E07000146,17/12/2020,Kings Lynn Bid,Postages,Royal Mail Group Ltd,22003342,0.43
Borough Council of Kings Lynn and West Norfolk,E07000146,17/12/2020,Adapt Grant,Works,Stannah Lift Services Ltd,21004107,"7,063.00"
Borough Council of Kings Lynn and West Norfolk,E07000146,17/12/2020,Grounds Maintenance Equip,Equipment/Materials,Thurlow Nunn Standen Ltd,22003349,"7,870.00"
Borough Council of Kings Lynn and West Norfolk,E07000146,17/12/2020,Corporate Insurance,Insurance Premium,Zurich Insurance Plc,22003346,"1,131.14"
Borough Council of Kings Lynn and West Norfolk,E07000146,17/12/2020,Corporate Insurance,Insurance Premium,Zurich Insurance Plc,22003347,"1,131.14"
Borough Council of Kings Lynn and West Norfolk,E07000146,17/12/2020,Corporate Project Manager,Covid 19,1-2 Call Drainage & Groundwork Ltd,21004168,"1,260.00"
Borough Council of Kings Lynn and West Norfolk,E07000146,17/12/2020,Corporate Project Manager,Covid 19,1-2 Call Drainage & Groundwork Ltd,21004168,"1,767.00"
Borough Council of Kings Lynn and West Norfolk,E07000146,17/12/2020,Mintlyn Crematorium,Tools And Equipment,UPS Systems PLC,21003660,"4,993.00"
Borough Council of Kings Lynn and West Norfolk,E07000146,17/12/2020,Trade Refuse,Repairs & Maintenance,UK Container Maintenance Ltd,21003637,897.48
Borough Council of Kings Lynn and West Norfolk,E07000146,17/12/2020,Domestic Refuse,Repairs & Maintenance,UK Container Maintenance Ltd,21003637,897.48
Borough Council of Kings Lynn and West Norfolk,E07000146,17/12/2020,Trade Refuse,Repairs & Maintenance,UK Container Maintenance Ltd,21003638,618.00
Borough Council of Kings Lynn and West Norfolk,E07000146,17/12/2020,Financial Services,Agency Staff,Hays Specialist Recruitment,21003577,"2,950.00"
Borough Council of Kings Lynn and West Norfolk,E07000146,17/12/2020,General Property,Advertising & Marketing,Rightmove Group Ltd,21003682,570.00
Borough Council of Kings Lynn and West Norfolk,E07000146,17/12/2020,Air Quality,Tools And Equipment,NPL Management Ltd,21003584,650.00
Borough Council of Kings Lynn and West Norfolk,E07000146,17/12/2020,Careline,Repairs & Maintenance,AMR Fire and Security Limited,21004124,"1,221.02"
Borough Council of Kings Lynn and West Norfolk,E07000146,17/12/2020,Balance Sheet,VAT Input - VAT Only Purchases,Newlyn PLC,22003367,"1,196.02"
Borough Council of Kings Lynn and West Norfolk,E07000146,17/12/2020,Balance Sheet,VAT Input - VAT Only Purchases,Newlyn PLC,22003368,"2,829.31"
Borough Council of Kings Lynn and West Norfolk,E07000146,17/12/2020,Balance Sheet,VAT Input - VAT Only Purchases,Newlyn PLC,22003369,"4,077.83"
Borough Council of Kings Lynn and West Norfolk,E07000146,17/12/2020,Balance Sheet,VAT Input - VAT Only Purchases,Newlyn PLC,22003370,567.14
Borough Council of Kings Lynn and West Norfolk,E07000146,17/12/2020,Home Improvements Agency,Agency Staff,Seven Resourcing Ltd,21003815,"1,154.74"
Borough Council of Kings Lynn and West Norfolk,E07000146,17/12/2020,Home Improvements Agency,Agency Staff,Seven Resourcing Ltd,21003816,"1,122.40"
Borough Council of Kings Lynn and West Norfolk,E07000146,17/12/2020,St Johns Business Park,Repairs & Maintenance,Golden Tree Surgeons Ltd,21004123,"3,390.00"
Borough Council of Kings Lynn and West Norfolk,E07000146,17/12/2020,Community Projects,Service Level Agreements,Community Action Norfolk,21004079,"12,000.00"
Borough Council of Kings Lynn and West Norfolk,E07000146,17/12/2020,Improving Attainment,Small Projects,South Wootton Junior School,22003379,900.00
Borough Council of Kings Lynn and West Norfolk,E07000146,21/12/2020,ICT,Telephones,British Telecommunications PLC,22003394,502.32
Borough Council of Kings Lynn and West Norfolk,E07000146,21/12/2020,ICT,Broadband Charge,British Telecommunications PLC,22003395,"1,045.02"
Borough Council of Kings Lynn and West Norfolk,E07000146,21/12/2020,Handyperson Scheme K Lynn,Contractor Payments,Chas D Allflatt Ltd,21004225,"1,078.80"
Borough Council of Kings Lynn and West Norfolk,E07000146,21/12/2020,Adapt Grant,Works,Chas D Allflatt Ltd,21004234,"4,322.03"
Borough Council of Kings Lynn and West Norfolk,E07000146,21/12/2020,Home Improvements Agency,Miscellaneous,Chas D Allflatt Ltd,21003692,908.81
Borough Council of Kings Lynn and West Norfolk,E07000146,21/12/2020,Adapt Grant,Works,Chas D Allflatt Ltd,21003692,"2,448.02"
Borough Council of Kings Lynn and West Norfolk,E07000146,21/12/2020,Mintlyn Crematorium,Repairs & Maintenance,CGM Group (East Anglia) Ltd,21004129,455.00
Borough Council of Kings Lynn and West Norfolk,E07000146,21/12/2020,Internal Audit,Contracted Services,Fenland District Council,22003421,"6,728.39"
Borough Council of Kings Lynn and West Norfolk,E07000146,21/12/2020,Adapt Grant,Works,Gaswise Services Ltd,21004233,"5,645.33"
Borough Council of Kings Lynn and West Norfolk,E07000146,21/12/2020,Public Cleansing,Contract Repairs,Ford & Slater DAF Kings Lynn,22003399,876.02
Borough Council of Kings Lynn and West Norfolk,E07000146,21/12/2020,Parking Operations - Brgh,Repairs & Maintenance,Phs Group Plc,21003991,844.01
Borough Council of Kings Lynn and West Norfolk,E07000146,21/12/2020,Urban Open Spaces,Christmas trees,Elveden Farms Ltd,21003728,"8,550.00"
Borough Council of Kings Lynn and West Norfolk,E07000146,21/12/2020,Adapt Grant,Works,A Smith Contractors,21004208,"1,000.00"
Borough Council of Kings Lynn and West Norfolk,E07000146,21/12/2020,Corporate,Added Years Pension,Norfolk Pension Fund,21004187,"18,697.00"
Borough Council of Kings Lynn and West Norfolk,E07000146,21/12/2020,Domestic Refuse,Added Years Pension,Norfolk Pension Fund,21004187,595.33
Borough Council of Kings Lynn and West Norfolk,E07000146,21/12/2020,Trade Refuse,Added Years Pension,Norfolk Pension Fund,21004187,595.34
Borough Council of Kings Lynn and West Norfolk,E07000146,21/12/2020,Grounds,Materials,TMA Bark Supplies Ltd,22003239,424.70
